{"text_format":"1","workbook":"xlsx","n_sheets":3,"sheets":["Instructions","Installation Reporting Template","Comments"],"not_rendered":{"charts":0,"images":0,"macros":1,"external_links":0,"defined_names":0,"comments":0,"pivot_tables":0},"unopened":[],"bounds":{"document_bytes":16777216,"sheet_cells":100000,"rows_first":2000,"rows_last":500,"rows_between":2000,"halvings":0,"cell_chars":16384,"cell_head_chars":4096},"cells_cut":0,"cells_raw":0,"read":"whole","date_system":"1900"}

{"sheet":"Instructions","index":0,"n_rows":6,"n_cols":4,"rows_kept":6,"cut":false,"hidden":false,"merged":[[4,2,4,4],[5,3,5,5]]}
[]
[null,"DoD Fitness Center Standards Installation Compliance Report"]
[null,"MC&FP MWR and Resale Policy"]
[]
[null,"Instructions","On the \"Installation Reporting Template\" tab, installation representatives should complete one column for each facility. Enter in the installation name in Row 2 and all facility names in Row 3. For each standard, enter a \"1\" if the facility complies with the standard and enter a \"0\" if the facility does not comply. If nothing is entered in a cell, the assumption will be that the facility does not comply with the associated standard.\n\nFor standards with \"N/A\" as an option, an additional row, colored orange, has been added underneath the standard. If \"N/A\" applies, please indicate \"1\" for the \"N/A\" choice and leave all other fields for the associated standard blank. If a red \"Error\" appears, ensure that the other fields for the associated standard are blank.   \n\nThe consolidated column represents the overall compliance percentages for the installation and will automatically calculate as facility data gets entered.\n\nFor additional clarification on installation compliance data, please elaborate in the \"Comments\" tab in the column adjacent to the corresponding standard(s)."]
[null,"Legend",null,"N/A Cell - Applies to all elements of each associated standard\nLocked Cell - Do not enter in information\nNote - Applies to Entire Standards Section (Notes applying to specific standards are grey)"]

{"sheet":"Installation Reporting Template","index":1,"n_rows":371,"n_cols":86,"rows_kept":371,"cut":false,"hidden":false,"merged":[]}
[null,"Fitness Center Standards Installation Compliance Report","CONSOLIDATED #","CONSOLIDATED %"]
[null,"Installation Name:",{"$f":"E2","v":0}]
[null,"Facility Names:",{"$f":"COUNTA(E3:CG3)","v":0}]
[]
[null,"Standard"]
["FIT 1 - Pre-Activity Screening"]
["FIT 1.01","A pre-activity tool, such as a Physical Activity Readiness Questionnaire, is posted within the facility via appropriate signage to increase awareness regarding safe exercise or exercising safely.",{"$f":"SUM(E7:CG7)","v":0},{"$f":"IFERROR(C7/$C$3,0)","v":0},null,null,null,null,null,null,null,null,null,null,null,null,null,null,null,null,null,null,null,null,null,null,null,null,null,null,null,null,null,null,null,null,null,null,null,null,null,null,null,null,null,null,null,null,null,null,null,null,null,null,null,null,null,null,null,null,null,null,null,null,null,null,null,null,null,null,null,null,null,null,null,null,null,null,null,null,null,null,null,null,null,"x"]
["Note:","See Appendix for additional information.",null,null,null,null,null,null,null,null,null,null,null,null,null,null,null,null,null,null,null,null,null,null,null,null,null,null,null,null,null,null,null,null,null,null,null,null,null,null,null,null,null,null,null,null,null,null,null,null,null,null,null,null,null,null,null,null,null,null,null,null,null,null,null,null,null,null,null,null,null,null,null,null,null,null,null,null,null,null,null,null,null,null,null,"x"]
["FIT 1.02","Pre-activity screening tools are: ",null,null,null,null,null,null,null,null,null,null,null,null,null,null,null,null,null,null,null,null,null,null,null,null,null,null,null,null,null,null,null,null,null,null,null,null,null,null,null,null,null,null,null,null,null,null,null,null,null,null,null,null,null,null,null,null,null,null,null,null,null,null,null,null,null,null,null,null,null,null,null,null,null,null,null,null,null,null,null,null,null,null,null,"x"]
["a)","made available to all patrons who request a pre-activity screening tool;",{"$f":"SUM(E10:CG10)","v":0},{"$f":"IFERROR(C10/$C$3,0)","v":0},null,null,null,null,null,null,null,null,null,null,null,null,null,null,null,null,null,null,null,null,null,null,null,null,null,null,null,null,null,null,null,null,null,null,null,null,null,null,null,null,null,null,null,null,null,null,null,null,null,null,null,null,null,null,null,null,null,null,null,null,null,null,null,null,null,null,null,null,null,null,null,null,null,null,null,null,null,null,null,null,null,"x"]
["b)","quick, simple, and easy to implement; and",{"$f":"SUM(E11:CG11)","v":0},{"$f":"IFERROR(C11/$C$3,0)","v":0},null,null,null,null,null,null,null,null,null,null,null,null,null,null,null,null,null,null,null,null,null,null,null,null,null,null,null,null,null,null,null,null,null,null,null,null,null,null,null,null,null,null,null,null,null,null,null,null,null,null,null,null,null,null,null,null,null,null,null,null,null,null,null,null,null,null,null,null,null,null,null,null,null,null,null,null,null,null,null,null,null,"x"]
["c)","cost-effective.",{"$f":"SUM(E12:CG12)","v":0},{"$f":"IFERROR(C12/$C$3,0)","v":0},null,null,null,null,null,null,null,null,null,null,null,null,null,null,null,null,null,null,null,null,null,null,null,null,null,null,null,null,null,null,null,null,null,null,null,null,null,null,null,null,null,null,null,null,null,null,null,null,null,null,null,null,null,null,null,null,null,null,null,null,null,null,null,null,null,null,null,null,null,null,null,null,null,null,null,null,null,null,null,null,null,"x"]
["FIT 1.03","If the pre-activity screening tool identifies the presence of a known medical concern, diagnosis, or multiple risk factors, the patron is advised to consult with a qualified medical practitioner prior to beginning a physical fitness program.",{"$f":"SUM(E13:CG13)","v":0},{"$f":"IFERROR(C13/$C$3,0)","v":0},null,null,null,null,null,null,null,null,null,null,null,null,null,null,null,null,null,null,null,null,null,null,null,null,null,null,null,null,null,null,null,null,null,null,null,null,null,null,null,null,null,null,null,null,null,null,null,null,null,null,null,null,null,null,null,null,null,null,null,null,null,null,null,null,null,null,null,null,null,null,null,null,null,null,null,null,null,null,null,null,null,"x"]
["Note:","See Appendix for additional information.",null,null,null,null,null,null,null,null,null,null,null,null,null,null,null,null,null,null,null,null,null,null,null,null,null,null,null,null,null,null,null,null,null,null,null,null,null,null,null,null,null,null,null,null,null,null,null,null,null,null,null,null,null,null,null,null,null,null,null,null,null,null,null,null,null,null,null,null,null,null,null,null,null,null,null,null,null,null,null,null,null,null,null,"x"]
["FIT 2 - Administration Operations",null,null,null,null,null,null,null,null,null,null,null,null,null,null,null,null,null,null,null,null,null,null,null,null,null,null,null,null,null,null,null,null,null,null,null,null,null,null,null,null,null,null,null,null,null,null,null,null,null,null,null,null,null,null,null,null,null,null,null,null,null,null,null,null,null,null,null,null,null,null,null,null,null,null,null,null,null,null,null,null,null,null,null,null,"x"]
["FIT 2.01","Administrative operations ensure facility offerings are accessible to prospective patrons and meet an identified need within the military community in accordance with DoD standards.",{"$f":"SUM(E16:CG16)","v":0},{"$f":"IFERROR(C16/$C$3,0)","v":0},null,null,null,null,null,null,null,null,null,null,null,null,null,null,null,null,null,null,null,null,null,null,null,null,null,null,null,null,null,null,null,null,null,null,null,null,null,null,null,null,null,null,null,null,null,null,null,null,null,null,null,null,null,null,null,null,null,null,null,null,null,null,null,null,null,null,null,null,null,null,null,null,null,null,null,null,null,null,null,null,null,"x"]
["FIT 2.02","The facility complies with applicable federal law or regulation.",{"$f":"SUM(E17:CG17)","v":0},{"$f":"IFERROR(C17/$C$3,0)","v":0},null,null,null,null,null,null,null,null,null,null,null,null,null,null,null,null,null,null,null,null,null,null,null,null,null,null,null,null,null,null,null,null,null,null,null,null,null,null,null,null,null,null,null,null,null,null,null,null,null,null,null,null,null,null,null,null,null,null,null,null,null,null,null,null,null,null,null,null,null,null,null,null,null,null,null,null,null,null,null,null,null,"x"]
["FIT 2.03","Operating hours at the main staffed fitness facilities on the installation:",null,null,null,null,null,null,null,null,null,null,null,null,null,null,null,null,null,null,null,null,null,null,null,null,null,null,null,null,null,null,null,null,null,null,null,null,null,null,null,null,null,null,null,null,null,null,null,null,null,null,null,null,null,null,null,null,null,null,null,null,null,null,null,null,null,null,null,null,null,null,null,null,null,null,null,null,null,null,null,null,null,null,null,"x"]
["a)","add up to a minimum of 90 staffed hours of operation per week; and",{"$f":"SUM(E19:CG19)","v":0},{"$f":"IFERROR(C19/($C$3-C21),0)","v":0},null,null,null,null,null,null,null,null,null,null,null,null,null,null,null,null,null,null,null,null,null,null,null,null,null,null,null,null,null,null,null,null,null,null,null,null,null,null,null,null,null,null,null,null,null,null,null,null,null,null,null,null,null,null,null,null,null,null,null,null,null,null,null,null,null,null,null,null,null,null,null,null,null,null,null,null,null,null,null,null,null,"x"]
["b)","accommodate irregular duty hours.",{"$f":"SUM(E20:CG20)","v":0},{"$f":"IFERROR(C20/($C$3-C21),0)","v":0},null,null,null,null,null,null,null,null,null,null,null,null,null,null,null,null,null,null,null,null,null,null,null,null,null,null,null,null,null,null,null,null,null,null,null,null,null,null,null,null,null,null,null,null,null,null,null,null,null,null,null,null,null,null,null,null,null,null,null,null,null,null,null,null,null,null,null,null,null,null,null,null,null,null,null,null,null,null,null,null,null,"x"]
["N/A:","This installation does not have a main staffed physical fitness facility.",{"$f":"SUM(E21:CG21)","v":0},{"$f":"IFERROR(_xlfn.IFS(SUM(E21:CG21)+COUNTA(E19:CG19) >$C$3, \"ERROR\",(SUM(E21:CG21)+COUNTA(E20:CG20))>$C$3,\"ERROR\"),\" \")","v":" "},null,null,null,null,null,null,null,null,null,null,null,null,null,null,null,null,null,null,null,null,null,null,null,null,null,null,null,null,null,null,null,null,null,null,null,null,null,null,null,null,null,null,null,null,null,null,null,null,null,null,null,null,null,null,null,null,null,null,null,null,null,null,null,null,null,null,null,null,null,null,null,null,null,null,null,null,null,null,null,null,null,"x"]
["FIT 2.04","Each facility maintains a utilization log of some type to monitor usage levels.",{"$f":"SUM(E22:CG22)","v":0},{"$f":"IFERROR(C22/$C$3,0)","v":0},null,null,null,null,null,null,null,null,null,null,null,null,null,null,null,null,null,null,null,null,null,null,null,null,null,null,null,null,null,null,null,null,null,null,null,null,null,null,null,null,null,null,null,null,null,null,null,null,null,null,null,null,null,null,null,null,null,null,null,null,null,null,null,null,null,null,null,null,null,null,null,null,null,null,null,null,null,null,null,null,null,"x"]
["FIT 2.05","The facility encourages participation by:",null,null,null,null,null,null,null,null,null,null,null,null,null,null,null,null,null,null,null,null,null,null,null,null,null,null,null,null,null,null,null,null,null,null,null,null,null,null,null,null,null,null,null,null,null,null,null,null,null,null,null,null,null,null,null,null,null,null,null,null,null,null,null,null,null,null,null,null,null,null,null,null,null,null,null,null,null,null,null,null,null,null,null,"x"]
["a)","offering programming that meets the physical fitness needs of the military community; and",{"$f":"SUM(E24:CG24)","v":0},{"$f":"IFERROR(C24/($C$3-C26),0)","v":0},null,null,null,null,null,null,null,null,null,null,null,null,null,null,null,null,null,null,null,null,null,null,null,null,null,null,null,null,null,null,null,null,null,null,null,null,null,null,null,null,null,null,null,null,null,null,null,null,null,null,null,null,null,null,null,null,null,null,null,null,null,null,null,null,null,null,null,null,null,null,null,null,null,null,null,null,null,null,null,null,null,"x"]
["b)","providing partnership opportunities in the military/local community.",{"$f":"SUM(E25:CG25)","v":0},{"$f":"IFERROR(C25/($C$3-C26),0)","v":0},null,null,null,null,null,null,null,null,null,null,null,null,null,null,null,null,null,null,null,null,null,null,null,null,null,null,null,null,null,null,null,null,null,null,null,null,null,null,null,null,null,null,null,null,null,null,null,null,null,null,null,null,null,null,null,null,null,null,null,null,null,null,null,null,null,null,null,null,null,null,null,null,null,null,null,null,null,null,null,null,null,"x"]
["N/A:","The facility is unstaffed or in an isolated/remote location.",0,{"$f":"IFERROR(_xlfn.IFS(SUM(E26:CG26)+COUNTA(E24:CG24) >$C$3, \"ERROR\",(SUM(E26:CG26)+COUNTA(E25:CG25))>$C$3,\"ERROR\"),\" \")","v":" "},null,null,null,null,null,null,null,null,null,null,null,null,null,null,null,null,null,null,null,null,null,null,null,null,null,null,null,null,null,null,null,null,null,null,null,null,null,null,null,null,null,null,null,null,null,null,null,null,null,null,null,null,null,null,null,null,null,null,null,null,null,null,null,null,null,null,null,null,null,null,null,null,null,null,null,null,null,null,null,null,null,"x"]
["FIT 2.06","New patrons are offered an orientation to the facility activities and equipment prior to their participation.",0,{"$f":"IFERROR(C27/$C$3,0)","v":0},null,null,null,null,null,null,null,null,null,null,null,null,null,null,null,null,null,null,null,null,null,null,null,null,null,null,null,null,null,null,null,null,null,null,null,null,null,null,null,null,null,null,null,null,null,null,null,null,null,null,null,null,null,null,null,null,null,null,null,null,null,null,null,null,null,null,null,null,null,null,null,null,null,null,null,null,null,null,null,null,null,"x"]
["Note:","See Appendix for additional information.",null,null,null,null,null,null,null,null,null,null,null,null,null,null,null,null,null,null,null,null,null,null,null,null,null,null,null,null,null,null,null,null,null,null,null,null,null,null,null,null,null,null,null,null,null,null,null,null,null,null,null,null,null,null,null,null,null,null,null,null,null,null,null,null,null,null,null,null,null,null,null,null,null,null,null,null,null,null,null,null,null,null,null,"x"]
["FIT 2.07","Patrons have access to a schedule of events or programs that are available to them.",0,{"$f":"IFERROR(C29/$C$3,0)","v":0},null,null,null,null,null,null,null,null,null,null,null,null,null,null,null,null,null,null,null,null,null,null,null,null,null,null,null,null,null,null,null,null,null,null,null,null,null,null,null,null,null,null,null,null,null,null,null,null,null,null,null,null,null,null,null,null,null,null,null,null,null,null,null,null,null,null,null,null,null,null,null,null,null,null,null,null,null,null,null,null,null,"x"]
["FIT 2.08","Each facility has a centralized location for the communication and dissemination of relevant information to patrons.",0,{"$f":"IFERROR(C30/$C$3,0)","v":0},null,null,null,null,null,null,null,null,null,null,null,null,null,null,null,null,null,null,null,null,null,null,null,null,null,null,null,null,null,null,null,null,null,null,null,null,null,null,null,null,null,null,null,null,null,null,null,null,null,null,null,null,null,null,null,null,null,null,null,null,null,null,null,null,null,null,null,null,null,null,null,null,null,null,null,null,null,null,null,null,null,"x"]
["FIT 2.09","The facility maintains a comprehensive fitness and health resource for patrons with interests or needs that cannot be met by the fitness facility.",0,{"$f":"IFERROR(C31/$C$3,0)","v":0},null,null,null,null,null,null,null,null,null,null,null,null,null,null,null,null,null,null,null,null,null,null,null,null,null,null,null,null,null,null,null,null,null,null,null,null,null,null,null,null,null,null,null,null,null,null,null,null,null,null,null,null,null,null,null,null,null,null,null,null,null,null,null,null,null,null,null,null,null,null,null,null,null,null,null,null,null,null,null,null,null,"x"]
["FIT 3 - Client Supervision and Monitoring for Staffed Facilities",null,null,null,null,null,null,null,null,null,null,null,null,null,null,null,null,null,null,null,null,null,null,null,null,null,null,null,null,null,null,null,null,null,null,null,null,null,null,null,null,null,null,null,null,null,null,null,null,null,null,null,null,null,null,null,null,null,null,null,null,null,null,null,null,null,null,null,null,null,null,null,null,null,null,null,null,null,null,null,null,null,null,null,null,"x"]
["FIT 3.01","Qualified staff with approved DoD or Service certifications/credentials are available to provide supervision, instruction, and guidance appropriate to the activities being conducted. ",0,{"$f":"IFERROR(C33/($C$3-C34),0)","v":0},null,null,null,null,null,null,null,null,null,null,null,null,null,null,null,null,null,null,null,null,null,null,null,null,null,null,null,null,null,null,null,null,null,null,null,null,null,null,null,null,null,null,null,null,null,null,null,null,null,null,null,null,null,null,null,null,null,null,null,null,null,null,null,null,null,null,null,null,null,null,null,null,null,null,null,null,null,null,null,null,null,"x"]
["N/A:","The facility is fully unstaffed.",{"$f":"SUM(E34:CG34)","v":0},{"$f":"IFERROR(_xlfn.IFS((SUM(E34:CG34)+COUNTA(E33:CG33))>$C$3,\"ERROR\"),\" \")","v":" "},null,null,null,null,null,null,null,null,null,null,null,null,null,null,null,null,null,null,null,null,null,null,null,null,null,null,null,null,null,null,null,null,null,null,null,null,null,null,null,null,null,null,null,null,null,null,null,null,null,null,null,null,null,null,null,null,null,null,null,null,null,null,null,null,null,null,null,null,null,null,null,null,null,null,null,null,null,null,null,null,null,"x"]
["FIT 3.02","Staffing standards are established based on minimum staffing to ensure sufficient staff is available to respond in an emergency and to ensure health, safety, and optimum exercise benefit. Staffing standards require: ",null,null,null,null,null,null,null,null,null,null,null,null,null,null,null,null,null,null,null,null,null,null,null,null,null,null,null,null,null,null,null,null,null,null,null,null,null,null,null,null,null,null,null,null,null,null,null,null,null,null,null,null,null,null,null,null,null,null,null,null,null,null,null,null,null,null,null,null,null,null,null,null,null,null,null,null,null,null,null,null,null,null,null,"x"]
["a)","at least two staff on duty during all staffed hours of operation;",0,{"$f":"IFERROR(C36/($C$3-$C$40),0)","v":0},null,null,null,null,null,null,null,null,null,null,null,null,null,null,null,null,null,null,null,null,null,null,null,null,null,null,null,null,null,null,null,null,null,null,null,null,null,null,null,null,null,null,null,null,null,null,null,null,null,null,null,null,null,null,null,null,null,null,null,null,null,null,null,null,null,null,null,null,null,null,null,null,null,null,null,null,null,null,null,null,null,"x"]
["b)","at least one certified personal trainer or fitness instructor be included in a roaming capacity and on duty at the installation during peak hours of operation;",0,{"$f":"IFERROR(C37/($C$3-$C$40),0)","v":0},null,null,null,null,null,null,null,null,null,null,null,null,null,null,null,null,null,null,null,null,null,null,null,null,null,null,null,null,null,null,null,null,null,null,null,null,null,null,null,null,null,null,null,null,null,null,null,null,null,null,null,null,null,null,null,null,null,null,null,null,null,null,null,null,null,null,null,null,null,null,null,null,null,null,null,null,null,null,null,null,null,"x"]
["c)","consideration of customer usage levels; and",0,{"$f":"IFERROR(C38/($C$3-$C$40),0)","v":0},null,null,null,null,null,null,null,null,null,null,null,null,null,null,null,null,null,null,null,null,null,null,null,null,null,null,null,null,null,null,null,null,null,null,null,null,null,null,null,null,null,null,null,null,null,null,null,null,null,null,null,null,null,null,null,null,null,null,null,null,null,null,null,null,null,null,null,null,null,null,null,null,null,null,null,null,null,null,null,null,null,"x"]
["d)","consideration of the scope of the program.",{"$f":"SUM(E39:CG39)","v":0},{"$f":"IFERROR(C39/($C$3-$C$40),0)","v":0},null,null,null,null,null,null,null,null,null,null,null,null,null,null,null,null,null,null,null,null,null,null,null,null,null,null,null,null,null,null,null,null,null,null,null,null,null,null,null,null,null,null,null,null,null,null,null,null,null,null,null,null,null,null,null,null,null,null,null,null,null,null,null,null,null,null,null,null,null,null,null,null,null,null,null,null,null,null,null,null,null,"x"]
["N/A:","The facility is fully unstaffed.",{"$f":"SUM(E40:CG40)","v":0},{"$f":"IFERROR(_xlfn.IFS(SUM(E40:CG40)+COUNTA(E36:CG36) >$C$3, \"ERROR\",SUM(E40:CG40)+COUNTA(E37:CG37) >$C$3, \"ERROR\",SUM(E40:CG40)+COUNTA(E38:CG38) >$C$3, \"ERROR\",(SUM(E40:CG40)+COUNTA(E39:CG39))>$C$3,\"ERROR\"),\" \")","v":" "},null,null,null,null,null,null,null,null,null,null,null,null,null,null,null,null,null,null,null,null,null,null,null,null,null,null,null,null,null,null,null,null,null,null,null,null,null,null,null,null,null,null,null,null,null,null,null,null,null,null,null,null,null,null,null,null,null,null,null,null,null,null,null,null,null,null,null,null,null,null,null,null,null,null,null,null,null,null,null,null,null,"x"]
["FIT 3.03","To promote effective supervision and instruction, additional staffing or technology may be needed to ensure:",null,null,null,null,null,null,null,null,null,null,null,null,null,null,null,null,null,null,null,null,null,null,null,null,null,null,null,null,null,null,null,null,null,null,null,null,null,null,null,null,null,null,null,null,null,null,null,null,null,null,null,null,null,null,null,null,null,null,null,null,null,null,null,null,null,null,null,null,null,null,null,null,null,null,null,null,null,null,null,null,null,null,null,"x"]
["a)","Service-established ratios are met;",{"$f":"SUM(E42:CG42)","v":0},{"$f":"IFERROR(C42/($C$3-$C$46),0)","v":0},null,null,null,null,null,null,null,null,null,null,null,null,null,null,null,null,null,null,null,null,null,null,null,null,null,null,null,null,null,null,null,null,null,null,null,null,null,null,null,null,null,null,null,null,null,null,null,null,null,null,null,null,null,null,null,null,null,null,null,null,null,null,null,null,null,null,null,null,null,null,null,null,null,null,null,null,null,null,null,null,null,"x"]
["b)","trained staff are able to monitor each activity;",0,{"$f":"IFERROR(C43/($C$3-$C$46),0)","v":0},null,null,null,null,null,null,null,null,null,null,null,null,null,null,null,null,null,null,null,null,null,null,null,null,null,null,null,null,null,null,null,null,null,null,null,null,null,null,null,null,null,null,null,null,null,null,null,null,null,null,null,null,null,null,null,null,null,null,null,null,null,null,null,null,null,null,null,null,null,null,null,null,null,null,null,null,null,null,null,null,null,"x"]
["c)","staff and participants can see one another and communicate clearly, allowing quick access to individuals in need of assistance; and",0,0,null,null,null,null,null,null,null,null,null,null,null,null,null,null,null,null,null,null,null,null,null,null,null,null,null,null,null,null,null,null,null,null,null,null,null,null,null,null,null,null,null,null,null,null,null,null,null,null,null,null,null,null,null,null,null,null,null,null,null,null,null,null,null,null,null,null,null,null,null,null,null,null,null,null,null,null,null,null,null,null,null,"x"]
["d)","the number or grouping of participants allows for optimal use of available equipment, space, and time.",0,0,null,null,null,null,null,null,null,null,null,null,null,null,null,null,null,null,null,null,null,null,null,null,null,null,null,null,null,null,null,null,null,null,null,null,null,null,null,null,null,null,null,null,null,null,null,null,null,null,null,null,null,null,null,null,null,null,null,null,null,null,null,null,null,null,null,null,null,null,null,null,null,null,null,null,null,null,null,null,null,null,null,"x"]
["N/A:","The facility is fully unstaffed.",{"$f":"SUM(E46:CG46)","v":0},{"$f":"IFERROR(_xlfn.IFS(SUM(E46:CG46)+COUNTA(E42:CG42) >$C$3, \"ERROR\",SUM(E46:CG46)+COUNTA(E43:CG43) >$C$3, \"ERROR\",SUM(E46:CG46)+COUNTA(E44:CG44) >$C$3, \"ERROR\",(SUM(E46:CG46)+COUNTA(E45:CG45))>$C$3,\"ERROR\"),\" \")","v":" "},null,null,null,null,null,null,null,null,null,null,null,null,null,null,null,null,null,null,null,null,null,null,null,null,null,null,null,null,null,null,null,null,null,null,null,null,null,null,null,null,null,null,null,null,null,null,null,null,null,null,null,null,null,null,null,null,null,null,null,null,null,null,null,null,null,null,null,null,null,null,null,null,null,null,null,null,null,null,null,null,null,"x"]
["Note:","See Appendix for additional information.",null,null,null,null,null,null,null,null,null,null,null,null,null,null,null,null,null,null,null,null,null,null,null,null,null,null,null,null,null,null,null,null,null,null,null,null,null,null,null,null,null,null,null,null,null,null,null,null,null,null,null,null,null,null,null,null,null,null,null,null,null,null,null,null,null,null,null,null,null,null,null,null,null,null,null,null,null,null,null,null,null,null,null,"x"]
["FIT 3.04","Patrons are encouraged to use spotters for certain activities through proper signage and instruction and trained staff is available, as needed, to perform this task.",{"$f":"SUM(E48:CG48)","v":0},{"$f":"IFERROR(C48/($C$3-C49),0)","v":0},null,null,null,null,null,null,null,null,null,null,null,null,null,null,null,null,null,null,null,null,null,null,null,null,null,null,null,null,null,null,null,null,null,null,null,null,null,null,null,null,null,null,null,null,null,null,null,null,null,null,null,null,null,null,null,null,null,null,null,null,null,null,null,null,null,null,null,null,null,null,null,null,null,null,null,null,null,null,null,null,null,"x"]
["N/A:","The facility is fully unstaffed.",{"$f":"SUM(E49:CG49)","v":0},{"$f":"IFERROR(_xlfn.IFS((SUM(E49:CG49)+COUNTA(E48:CG48))>$C$3,\"ERROR\"),\" \")","v":" "},null,null,null,null,null,null,null,null,null,null,null,null,null,null,null,null,null,null,null,null,null,null,null,null,null,null,null,null,null,null,null,null,null,null,null,null,null,null,null,null,null,null,null,null,null,null,null,null,null,null,null,null,null,null,null,null,null,null,null,null,null,null,null,null,null,null,null,null,null,null,null,null,null,null,null,null,null,null,null,null,null,"x"]
["Note:","See Appendix for additional information.",null,null,null,null,null,null,null,null,null,null,null,null,null,null,null,null,null,null,null,null,null,null,null,null,null,null,null,null,null,null,null,null,null,null,null,null,null,null,null,null,null,null,null,null,null,null,null,null,null,null,null,null,null,null,null,null,null,null,null,null,null,null,null,null,null,null,null,null,null,null,null,null,null,null,null,null,null,null,null,null,null,null,null,"x"]
["FIT 4 - Client Supervision and Monitoring for Staffed Facilities",null,null,null,null,null,null,null,null,null,null,null,null,null,null,null,null,null,null,null,null,null,null,null,null,null,null,null,null,null,null,null,null,null,null,null,null,null,null,null,null,null,null,null,null,null,null,null,null,null,null,null,null,null,null,null,null,null,null,null,null,null,null,null,null,null,null,null,null,null,null,null,null,null,null,null,null,null,null,null,null,null,null,null,null,"x"]
["FIT 4.01","The health and safety of patrons and staff is promoted at all times through:",null,{"$f":"IFERROR(_xlfn.IFS(SUM(E52:CG52)+COUNTA(E49:CG49) >$C$3, \"ERROR\",SUM(E52:CG52)+COUNTA(E50:CG50) >$C$3, \"ERROR\",(SUM(E52:CG52)+COUNTA(E51:CG51))>$C$3,\"ERROR\"),\" \")","v":" "},null,null,null,null,null,null,null,null,null,null,null,null,null,null,null,null,null,null,null,null,null,null,null,null,null,null,null,null,null,null,null,null,null,null,null,null,null,null,null,null,null,null,null,null,null,null,null,null,null,null,null,null,null,null,null,null,null,null,null,null,null,null,null,null,null,null,null,null,null,null,null,null,null,null,null,null,null,null,null,null,null,"x"]
["a)","facility policy and procedures;",{"$f":"SUM(E53:CG53)","v":0},{"$f":"IFERROR(C53/($C$3-$C$56),0)","v":0},null,null,null,null,null,null,null,null,null,null,null,null,null,null,null,null,null,null,null,null,null,null,null,null,null,null,null,null,null,null,null,null,null,null,null,null,null,null,null,null,null,null,null,null,null,null,null,null,null,null,null,null,null,null,null,null,null,null,null,null,null,null,null,null,null,null,null,null,null,null,null,null,null,null,null,null,null,null,null,null,null,"x"]
["b)","facility design and layout; and",0,{"$f":"IFERROR(C54/($C$3-$C$56),0)","v":0},null,null,null,null,null,null,null,null,null,null,null,null,null,null,null,null,null,null,null,null,null,null,null,null,null,null,null,null,null,null,null,null,null,null,null,null,null,null,null,null,null,null,null,null,null,null,null,null,null,null,null,null,null,null,null,null,null,null,null,null,null,null,null,null,null,null,null,null,null,null,null,null,null,null,null,null,null,null,null,null,null,"x"]
["c)","staff training and qualifications.",0,0,null,null,null,null,null,null,null,null,null,null,null,null,null,null,null,null,null,null,null,null,null,null,null,null,null,null,null,null,null,null,null,null,null,null,null,null,null,null,null,null,null,null,null,null,null,null,null,null,null,null,null,null,null,null,null,null,null,null,null,null,null,null,null,null,null,null,null,null,null,null,null,null,null,null,null,null,null,null,null,null,null,"x"]
["N/A:","The facility is fully unstaffed.",{"$f":"SUM(E56:CG56)","v":0},{"$f":"IFERROR(_xlfn.IFS(SUM(E56:CG56)+COUNTA(E53:CG53) >$C$3, \"ERROR\",SUM(E56:CG56)+COUNTA(E54:CG54) >$C$3, \"ERROR\",(SUM(E56:CG56)+COUNTA(E55:CG55))>$C$3,\"ERROR\"),\" \")","v":" "},null,null,null,null,null,null,null,null,null,null,null,null,null,null,null,null,null,null,null,null,null,null,null,null,null,null,null,null,null,null,null,null,null,null,null,null,null,null,null,null,null,null,null,null,null,null,null,null,null,null,null,null,null,null,null,null,null,null,null,null,null,null,null,null,null,null,null,null,null,null,null,null,null,null,null,null,null,null,null,null,null,"x"]
["FIT 4.02","Informational, safety, and warning signage is:",null,null,null,null,null,null,null,null,null,null,null,null,null,null,null,null,null,null,null,null,null,null,null,null,null,null,null,null,null,null,null,null,null,null,null,null,null,null,null,null,null,null,null,null,null,null,null,null,null,null,null,null,null,null,null,null,null,null,null,null,null,null,null,null,null,null,null,null,null,null,null,null,null,null,null,null,null,null,null,null,null,null,null,"x"]
["a)","posted in conspicuous locations where necessary;",0,{"$f":"IFERROR(C58/($C$3),0)","v":0},null,null,null,null,null,null,null,null,null,null,null,null,null,null,null,null,null,null,null,null,null,null,null,null,null,null,null,null,null,null,null,null,null,null,null,null,null,null,null,null,null,null,null,null,null,null,null,null,null,null,null,null,null,null,null,null,null,null,null,null,null,null,null,null,null,null,null,null,null,null,null,null,null,null,null,null,null,null,null,null,null,"x"]
["b)","posted in accordance with applicable federal codes; and",{"$f":"SUM(E59:CG59)","v":0},{"$f":"IFERROR(C59/($C$3),0)","v":0},null,null,null,null,null,null,null,null,null,null,null,null,null,null,null,null,null,null,null,null,null,null,null,null,null,null,null,null,null,null,null,null,null,null,null,null,null,null,null,null,null,null,null,null,null,null,null,null,null,null,null,null,null,null,null,null,null,null,null,null,null,null,null,null,null,null,null,null,null,null,null,null,null,null,null,null,null,null,null,null,null,"x"]
["c)","legible and easily understood by the identified Service population. ",0,{"$f":"IFERROR(C60/($C$3),0)","v":0},null,null,null,null,null,null,null,null,null,null,null,null,null,null,null,null,null,null,null,null,null,null,null,null,null,null,null,null,null,null,null,null,null,null,null,null,null,null,null,null,null,null,null,null,null,null,null,null,null,null,null,null,null,null,null,null,null,null,null,null,null,null,null,null,null,null,null,null,null,null,null,null,null,null,null,null,null,null,null,null,null,"x"]
["Note:","See Appendix for additional information.",null,null,null,null,null,null,null,null,null,null,null,null,null,null,null,null,null,null,null,null,null,null,null,null,null,null,null,null,null,null,null,null,null,null,null,null,null,null,null,null,null,null,null,null,null,null,null,null,null,null,null,null,null,null,null,null,null,null,null,null,null,null,null,null,null,null,null,null,null,null,null,null,null,null,null,null,null,null,null,null,null,null,null,"x"]
["FIT 4.03","All staff are trained on the facility's emergency response plan and review and practice the plan at least quarterly.",0,{"$f":"IFERROR(C62/($C$3-C63),0)","v":0},null,null,null,null,null,null,null,null,null,null,null,null,null,null,null,null,null,null,null,null,null,null,null,null,null,null,null,null,null,null,null,null,null,null,null,null,null,null,null,null,null,null,null,null,null,null,null,null,null,null,null,null,null,null,null,null,null,null,null,null,null,null,null,null,null,null,null,null,null,null,null,null,null,null,null,null,null,null,null,null,null,"x"]
["N/A:","The facility is fully unstaffed.",{"$f":"SUM(E63:CG63)","v":0},{"$f":"IFERROR(_xlfn.IFS((SUM(E63:CG63)+COUNTA(E62:CG62))>$C$3,\"ERROR\"),\" \")","v":" "},null,null,null,null,null,null,null,null,null,null,null,null,null,null,null,null,null,null,null,null,null,null,null,null,null,null,null,null,null,null,null,null,null,null,null,null,null,null,null,null,null,null,null,null,null,null,null,null,null,null,null,null,null,null,null,null,null,null,null,null,null,null,null,null,null,null,null,null,null,null,null,null,null,null,null,null,null,null,null,null,null,"x"]
["Note:","See Appendix for additional information.",null,null,null,null,null,null,null,null,null,null,null,null,null,null,null,null,null,null,null,null,null,null,null,null,null,null,null,null,null,null,null,null,null,null,null,null,null,null,null,null,null,null,null,null,null,null,null,null,null,null,null,null,null,null,null,null,null,null,null,null,null,null,null,null,null,null,null,null,null,null,null,null,null,null,null,null,null,null,null,null,null,null,null,"x"]
["FIT 4.04","The facility is equipped to handle medical emergencies including: ",null,null,null,null,null,null,null,null,null,null,null,null,null,null,null,null,null,null,null,null,null,null,null,null,null,null,null,null,null,null,null,null,null,null,null,null,null,null,null,null,null,null,null,null,null,null,null,null,null,null,null,null,null,null,null,null,null,null,null,null,null,null,null,null,null,null,null,null,null,null,null,null,null,null,null,null,null,null,null,null,null,null,null,"x"]
["a)","maintaining a readily available communication device, poison control information, first aid supplies and manuals, and Automatic External Defibrillators (AED) in accessible locations throughout the facility;",{"$f":"SUM(E66:CG66)","v":0},{"$f":"IFERROR(C66/($C$3),0)","v":0},null,null,null,null,null,null,null,null,null,null,null,null,null,null,null,null,null,null,null,null,null,null,null,null,null,null,null,null,null,null,null,null,null,null,null,null,null,null,null,null,null,null,null,null,null,null,null,null,null,null,null,null,null,null,null,null,null,null,null,null,null,null,null,null,null,null,null,null,null,null,null,null,null,null,null,null,null,null,null,null,null,"x"]
["b)","consulting with a health professional, as necessary, to develop procedures for medical emergencies; and",0,{"$f":"IFERROR(C67/($C$3),0)","v":0},null,null,null,null,null,null,null,null,null,null,null,null,null,null,null,null,null,null,null,null,null,null,null,null,null,null,null,null,null,null,null,null,null,null,null,null,null,null,null,null,null,null,null,null,null,null,null,null,null,null,null,null,null,null,null,null,null,null,null,null,null,null,null,null,null,null,null,null,null,null,null,null,null,null,null,null,null,null,null,null,null,"x"]
["c)","maintaining emergency contact information for staff, including volunteers.",0,{"$f":"IFERROR(C68/($C$3),0)","v":0},null,null,null,null,null,null,null,null,null,null,null,null,null,null,null,null,null,null,null,null,null,null,null,null,null,null,null,null,null,null,null,null,null,null,null,null,null,null,null,null,null,null,null,null,null,null,null,null,null,null,null,null,null,null,null,null,null,null,null,null,null,null,null,null,null,null,null,null,null,null,null,null,null,null,null,null,null,null,null,null,null,"x"]
["Note:","See FIT 5 - Public Access Defibrillation (PAD) Program for more information on AEDs.",null,null,null,null,null,null,null,null,null,null,null,null,null,null,null,null,null,null,null,null,null,null,null,null,null,null,null,null,null,null,null,null,null,null,null,null,null,null,null,null,null,null,null,null,null,null,null,null,null,null,null,null,null,null,null,null,null,null,null,null,null,null,null,null,null,null,null,null,null,null,null,null,null,null,null,null,null,null,null,null,null,null,null,"x"]
["Note:","See Appendix for additional information.",null,null,null,null,null,null,null,null,null,null,null,null,null,null,null,null,null,null,null,null,null,null,null,null,null,null,null,null,null,null,null,null,null,null,null,null,null,null,null,null,null,null,null,null,null,null,null,null,null,null,null,null,null,null,null,null,null,null,null,null,null,null,null,null,null,null,null,null,null,null,null,null,null,null,null,null,null,null,null,null,null,null,null,"x"]
["FIT 4.05","All fitness staff, including contractors, are prepared to respond in medical emergencies through:",null,null,null,null,null,null,null,null,null,null,null,null,null,null,null,null,null,null,null,null,null,null,null,null,null,null,null,null,null,null,null,null,null,null,null,null,null,null,null,null,null,null,null,null,null,null,null,null,null,null,null,null,null,null,null,null,null,null,null,null,null,null,null,null,null,null,null,null,null,null,null,null,null,null,null,null,null,null,null,null,null,null,null,"x"]
["a)","current training on basic first-aid;",{"$f":"SUM(E72:CG72)","v":0},{"$f":"IFERROR(C72/($C$3-C75),0)","v":0},null,null,null,null,null,null,null,null,null,null,null,null,null,null,null,null,null,null,null,null,null,null,null,null,null,null,null,null,null,null,null,null,null,null,null,null,null,null,null,null,null,null,null,null,null,null,null,null,null,null,null,null,null,null,null,null,null,null,null,null,null,null,null,null,null,null,null,null,null,null,null,null,null,null,null,null,null,null,null,null,null,"x"]
["b)","current certification in Cardiopulmonary Resuscitation (CPR) and the use of AEDs; and",0,{"$f":"IFERROR(C73/($C$3-C75),0)","v":0},null,null,null,null,null,null,null,null,null,null,null,null,null,null,null,null,null,null,null,null,null,null,null,null,null,null,null,null,null,null,null,null,null,null,null,null,null,null,null,null,null,null,null,null,null,null,null,null,null,null,null,null,null,null,null,null,null,null,null,null,null,null,null,null,null,null,null,null,null,null,null,null,null,null,null,null,null,null,null,null,null,"x"]
["c)","current training on universal precautions for preventing exposure to and transmission of blood-borne pathogens.",0,{"$f":"IFERROR(C74/($C$3-C75),0)","v":0},null,null,null,null,null,null,null,null,null,null,null,null,null,null,null,null,null,null,null,null,null,null,null,null,null,null,null,null,null,null,null,null,null,null,null,null,null,null,null,null,null,null,null,null,null,null,null,null,null,null,null,null,null,null,null,null,null,null,null,null,null,null,null,null,null,null,null,null,null,null,null,null,null,null,null,null,null,null,null,null,null,"x"]
["N/A:","The facility is fully unstaffed.",{"$f":"SUM(E75:CG75)","v":0},{"$f":"IFERROR(_xlfn.IFS(SUM(E75:CG75)+COUNTA(E72:CG72) >$C$3, \"ERROR\",SUM(E75:CG75)+COUNTA(E73:CG73) >$C$3, \"ERROR\",(SUM(E75:CG75)+COUNTA(E74:CG74))>$C$3,\"ERROR\"),\" \")","v":" "},null,null,null,null,null,null,null,null,null,null,null,null,null,null,null,null,null,null,null,null,null,null,null,null,null,null,null,null,null,null,null,null,null,null,null,null,null,null,null,null,null,null,null,null,null,null,null,null,null,null,null,null,null,null,null,null,null,null,null,null,null,null,null,null,null,null,null,null,null,null,null,null,null,null,null,null,null,null,null,null,null,"x"]
["Note:","See FIT 13 - Child Play Areas for additional requirements specific to child play areas.",null,null,null,null,null,null,null,null,null,null,null,null,null,null,null,null,null,null,null,null,null,null,null,null,null,null,null,null,null,null,null,null,null,null,null,null,null,null,null,null,null,null,null,null,null,null,null,null,null,null,null,null,null,null,null,null,null,null,null,null,null,null,null,null,null,null,null,null,null,null,null,null,null,null,null,null,null,null,null,null,null,null,null,"x"]
["Note:","See Appendix for additional information.",null,null,null,null,null,null,null,null,null,null,null,null,null,null,null,null,null,null,null,null,null,null,null,null,null,null,null,null,null,null,null,null,null,null,null,null,null,null,null,null,null,null,null,null,null,null,null,null,null,null,null,null,null,null,null,null,null,null,null,null,null,null,null,null,null,null,null,null,null,null,null,null,null,null,null,null,null,null,null,null,null,null,null,"x"]
["FIT 4.06","There is a system in place to document and report all incidents and accidents that involve actual harm, injuries, and deaths to oversight entities and all staff are trained on their reporting responsibilities. ",0,{"$f":"IFERROR(C78/$C$3,0)","v":0},null,null,null,null,null,null,null,null,null,null,null,null,null,null,null,null,null,null,null,null,null,null,null,null,null,null,null,null,null,null,null,null,null,null,null,null,null,null,null,null,null,null,null,null,null,null,null,null,null,null,null,null,null,null,null,null,null,null,null,null,null,null,null,null,null,null,null,null,null,null,null,null,null,null,null,null,null,null,null,null,null,"x"]
["Note:","See Appendix for additional information.",null,null,null,null,null,null,null,null,null,null,null,null,null,null,null,null,null,null,null,null,null,null,null,null,null,null,null,null,null,null,null,null,null,null,null,null,null,null,null,null,null,null,null,null,null,null,null,null,null,null,null,null,null,null,null,null,null,null,null,null,null,null,null,null,null,null,null,null,null,null,null,null,null,null,null,null,null,null,null,null,null,null,null,"x"]
["FIT 4.07","A review of immediate and ongoing risks is conducted at least annually that includes a review of incidents, accidents, and grievances related to:",null,null,null,null,null,null,null,null,null,null,null,null,null,null,null,null,null,null,null,null,null,null,null,null,null,null,null,null,null,null,null,null,null,null,null,null,null,null,null,null,null,null,null,null,null,null,null,null,null,null,null,null,null,null,null,null,null,null,null,null,null,null,null,null,null,null,null,null,null,null,null,null,null,null,null,null,null,null,null,null,null,null,null,"x"]
["a)","facility safety issues; and",{"$f":"SUM(E81:CG81)","v":0},{"$f":"IFERROR(C81/($C$3),0)","v":0},null,null,null,null,null,null,null,null,null,null,null,null,null,null,null,null,null,null,null,null,null,null,null,null,null,null,null,null,null,null,null,null,null,null,null,null,null,null,null,null,null,null,null,null,null,null,null,null,null,null,null,null,null,null,null,null,null,null,null,null,null,null,null,null,null,null,null,null,null,null,null,null,null,null,null,null,null,null,null,null,null,"x"]
["b)","serious injuries and deaths.",{"$f":"SUM(E82:CG82)","v":0},{"$f":"IFERROR(C82/($C$3),0)","v":0},null,null,null,null,null,null,null,null,null,null,null,null,null,null,null,null,null,null,null,null,null,null,null,null,null,null,null,null,null,null,null,null,null,null,null,null,null,null,null,null,null,null,null,null,null,null,null,null,null,null,null,null,null,null,null,null,null,null,null,null,null,null,null,null,null,null,null,null,null,null,null,null,null,null,null,null,null,null,null,null,null,"x"]
["FIT 4.08","There is a written schedule and established procedures for cleaning and disinfecting the various areas in the facility, including all equipment, and written records are maintained as evidence that it has occurred.",0,{"$f":"IFERROR(C83/($C$3),0)","v":0},null,null,null,null,null,null,null,null,null,null,null,null,null,null,null,null,null,null,null,null,null,null,null,null,null,null,null,null,null,null,null,null,null,null,null,null,null,null,null,null,null,null,null,null,null,null,null,null,null,null,null,null,null,null,null,null,null,null,null,null,null,null,null,null,null,null,null,null,null,null,null,null,null,null,null,null,null,null,null,null,null,"x"]
["Note:","See Appendix for additional information.",null,null,null,null,null,null,null,null,null,null,null,null,null,null,null,null,null,null,null,null,null,null,null,null,null,null,null,null,null,null,null,null,null,null,null,null,null,null,null,null,null,null,null,null,null,null,null,null,null,null,null,null,null,null,null,null,null,null,null,null,null,null,null,null,null,null,null,null,null,null,null,null,null,null,null,null,null,null,null,null,null,null,null,"x"]
["Note:","See Table 1 for Cleaning and Disinfecting Schedule.",null,null,null,null,null,null,null,null,null,null,null,null,null,null,null,null,null,null,null,null,null,null,null,null,null,null,null,null,null,null,null,null,null,null,null,null,null,null,null,null,null,null,null,null,null,null,null,null,null,null,null,null,null,null,null,null,null,null,null,null,null,null,null,null,null,null,null,null,null,null,null,null,null,null,null,null,null,null,null,null,null,null,null,"x"]
["FIT 4.09","Drinking water is available to patrons and readily accessible from exercise areas.",{"$f":"SUM(E86:CG86)","v":0},{"$f":"IFERROR(C86/($C$3),0)","v":0},null,null,null,null,null,null,null,null,null,null,null,null,null,null,null,null,null,null,null,null,null,null,null,null,null,null,null,null,null,null,null,null,null,null,null,null,null,null,null,null,null,null,null,null,null,null,null,null,null,null,null,null,null,null,null,null,null,null,null,null,null,null,null,null,null,null,null,null,null,null,null,null,null,null,null,null,null,null,null,null,null,"x"]
["FIT 4.10","Child-resistant covers, fencing, or other safety measures eliminate unsupervised access to standing water, including whirlpools, by children.",0,{"$f":"IFERROR(C87/($C$3),0)","v":0},null,null,null,null,null,null,null,null,null,null,null,null,null,null,null,null,null,null,null,null,null,null,null,null,null,null,null,null,null,null,null,null,null,null,null,null,null,null,null,null,null,null,null,null,null,null,null,null,null,null,null,null,null,null,null,null,null,null,null,null,null,null,null,null,null,null,null,null,null,null,null,null,null,null,null,null,null,null,null,null,null,"x"]
["N/A:","Patrons do not have access to standing water such as whirlpools.",{"$f":"SUM(E88:CG88)","v":0},{"$f":"IFERROR(_xlfn.IFS((SUM(E88:CG88)+COUNTA(E87:CG87))>$C$3,\"ERROR\"),\" \")","v":" "},null,null,null,null,null,null,null,null,null,null,null,null,null,null,null,null,null,null,null,null,null,null,null,null,null,null,null,null,null,null,null,null,null,null,null,null,null,null,null,null,null,null,null,null,null,null,null,null,null,null,null,null,null,null,null,null,null,null,null,null,null,null,null,null,null,null,null,null,null,null,null,null,null,null,null,null,null,null,null,null,null,"x"]
["FIT 5 - Public Access Defibrillation (PAD) Program",null,null,null,null,null,null,null,null,null,null,null,null,null,null,null,null,null,null,null,null,null,null,null,null,null,null,null,null,null,null,null,null,null,null,null,null,null,null,null,null,null,null,null,null,null,null,null,null,null,null,null,null,null,null,null,null,null,null,null,null,null,null,null,null,null,null,null,null,null,null,null,null,null,null,null,null,null,null,null,null,null,null,null,null,"x"]
["Note:","See Appendix for additional information.",null,null,null,null,null,null,null,null,null,null,null,null,null,null,null,null,null,null,null,null,null,null,null,null,null,null,null,null,null,null,null,null,null,null,null,null,null,null,null,null,null,null,null,null,null,null,null,null,null,null,null,null,null,null,null,null,null,null,null,null,null,null,null,null,null,null,null,null,null,null,null,null,null,null,null,null,null,null,null,null,null,null,null,"x"]
["FIT 5.01","The fitness facility has a PAD program in place that:",null,null,null,null,null,null,null,null,null,null,null,null,null,null,null,null,null,null,null,null,null,null,null,null,null,null,null,null,null,null,null,null,null,null,null,null,null,null,null,null,null,null,null,null,null,null,null,null,null,null,null,null,null,null,null,null,null,null,null,null,null,null,null,null,null,null,null,null,null,null,null,null,null,null,null,null,null,null,null,null,null,null,null,"x"]
["a)","guides the facility’s response to a cardiac emergency;",{"$f":"SUM(E92:CG92)","v":0},{"$f":"IFERROR(C92/$C$3,0)","v":0},null,null,null,null,null,null,null,null,null,null,null,null,null,null,null,null,null,null,null,null,null,null,null,null,null,null,null,null,null,null,null,null,null,null,null,null,null,null,null,null,null,null,null,null,null,null,null,null,null,null,null,null,null,null,null,null,null,null,null,null,null,null,null,null,null,null,null,null,null,null,null,null,null,null,null,null,null,null,null,null,null,"x"]
["b)","prepares staff to respond in the event of a cardiac emergency; and",0,{"$f":"IFERROR(C93/$C$3,0)","v":0},null,null,null,null,null,null,null,null,null,null,null,null,null,null,null,null,null,null,null,null,null,null,null,null,null,null,null,null,null,null,null,null,null,null,null,null,null,null,null,null,null,null,null,null,null,null,null,null,null,null,null,null,null,null,null,null,null,null,null,null,null,null,null,null,null,null,null,null,null,null,null,null,null,null,null,null,null,null,null,null,null,"x"]
["c)","ensures proper number, placement, and maintenance of AEDs.",0,{"$f":"IFERROR(C94/$C$3,0)","v":0},null,null,null,null,null,null,null,null,null,null,null,null,null,null,null,null,null,null,null,null,null,null,null,null,null,null,null,null,null,null,null,null,null,null,null,null,null,null,null,null,null,null,null,null,null,null,null,null,null,null,null,null,null,null,null,null,null,null,null,null,null,null,null,null,null,null,null,null,null,null,null,null,null,null,null,null,null,null,null,null,null,"x"]
["FIT 5.02","The facility has a PAD program in place that is consistent with the installation-wide plan and is:",null,null,null,null,null,null,null,null,null,null,null,null,null,null,null,null,null,null,null,null,null,null,null,null,null,null,null,null,null,null,null,null,null,null,null,null,null,null,null,null,null,null,null,null,null,null,null,null,null,null,null,null,null,null,null,null,null,null,null,null,null,null,null,null,null,null,null,null,null,null,null,null,null,null,null,null,null,null,null,null,null,null,null,"x"]
["a)","developed under the guidance of the appropriate authority;",0,{"$f":"IFERROR(C96/$C$3,0)","v":0},null,null,null,null,null,null,null,null,null,null,null,null,null,null,null,null,null,null,null,null,null,null,null,null,null,null,null,null,null,null,null,null,null,null,null,null,null,null,null,null,null,null,null,null,null,null,null,null,null,null,null,null,null,null,null,null,null,null,null,null,null,null,null,null,null,null,null,null,null,null,null,null,null,null,null,null,null,null,null,null,null,"x"]
["b)","updated based on the most current scientific literature; and",{"$f":"SUM(E97:CG97)","v":0},{"$f":"IFERROR(C97/$C$3,0)","v":0},null,null,null,null,null,null,null,null,null,null,null,null,null,null,null,null,null,null,null,null,null,null,null,null,null,null,null,null,null,null,null,null,null,null,null,null,null,null,null,null,null,null,null,null,null,null,null,null,null,null,null,null,null,null,null,null,null,null,null,null,null,null,null,null,null,null,null,null,null,null,null,null,null,null,null,null,null,null,null,null,null,"x"]
["c)","reviewed by the appropriate authority to ensure legal compliance.",0,{"$f":"IFERROR(C98/$C$3,0)","v":0},null,null,null,null,null,null,null,null,null,null,null,null,null,null,null,null,null,null,null,null,null,null,null,null,null,null,null,null,null,null,null,null,null,null,null,null,null,null,null,null,null,null,null,null,null,null,null,null,null,null,null,null,null,null,null,null,null,null,null,null,null,null,null,null,null,null,null,null,null,null,null,null,null,null,null,null,null,null,null,null,null,"x"]
["FIT 5.03","To ensure its effectiveness, the PAD program includes initiation of the local Emergency Medical Services (EMS) response.",0,{"$f":"IFERROR(C99/$C$3,0)","v":0},null,null,null,null,null,null,null,null,null,null,null,null,null,null,null,null,null,null,null,null,null,null,null,null,null,null,null,null,null,null,null,null,null,null,null,null,null,null,null,null,null,null,null,null,null,null,null,null,null,null,null,null,null,null,null,null,null,null,null,null,null,null,null,null,null,null,null,null,null,null,null,null,null,null,null,null,null,null,null,null,null,"x"]
["FIT 5.04","AEDs in operation at the facility are regularly inspected and maintained according to manufacturers' specifications and formalized procedures.",0,{"$f":"IFERROR(C100/$C$3,0)","v":0},null,null,null,null,null,null,null,null,null,null,null,null,null,null,null,null,null,null,null,null,null,null,null,null,null,null,null,null,null,null,null,null,null,null,null,null,null,null,null,null,null,null,null,null,null,null,null,null,null,null,null,null,null,null,null,null,null,null,null,null,null,null,null,null,null,null,null,null,null,null,null,null,null,null,null,null,null,null,null,null,null,"x"]
["Note:","See Appendix for additional information.",null,null,null,null,null,null,null,null,null,null,null,null,null,null,null,null,null,null,null,null,null,null,null,null,null,null,null,null,null,null,null,null,null,null,null,null,null,null,null,null,null,null,null,null,null,null,null,null,null,null,null,null,null,null,null,null,null,null,null,null,null,null,null,null,null,null,null,null,null,null,null,null,null,null,null,null,null,null,null,null,null,null,null,"x"]
["FIT 5.05","The quantity and location of AEDs is determined based on:",null,null,null,null,null,null,null,null,null,null,null,null,null,null,null,null,null,null,null,null,null,null,null,null,null,null,null,null,null,null,null,null,null,null,null,null,null,null,null,null,null,null,null,null,null,null,null,null,null,null,null,null,null,null,null,null,null,null,null,null,null,null,null,null,null,null,null,null,null,null,null,null,null,null,null,null,null,null,null,null,null,null,null,"x"]
["a)","a response time of three minutes or less from the moment of collapse to the moment the AED is at the person’s side;",0,{"$f":"IFERROR(C103/$C$3,0)","v":0},null,null,null,null,null,null,null,null,null,null,null,null,null,null,null,null,null,null,null,null,null,null,null,null,null,null,null,null,null,null,null,null,null,null,null,null,null,null,null,null,null,null,null,null,null,null,null,null,null,null,null,null,null,null,null,null,null,null,null,null,null,null,null,null,null,null,null,null,null,null,null,null,null,null,null,null,null,null,null,null,null,"x"]
["b)","reducing the potential for tampering, theft, and misuse; and",{"$f":"SUM(E104:CG104)","v":0},{"$f":"IFERROR(C104/$C$3,0)","v":0},null,null,null,null,null,null,null,null,null,null,null,null,null,null,null,null,null,null,null,null,null,null,null,null,null,null,null,null,null,null,null,null,null,null,null,null,null,null,null,null,null,null,null,null,null,null,null,null,null,null,null,null,null,null,null,null,null,null,null,null,null,null,null,null,null,null,null,null,null,null,null,null,null,null,null,null,null,null,null,null,null,"x"]
["c)","ensuring close proximity to a telephone, particularly when automatic notification does not occur upon opening the cabinet or removing the device.",0,{"$f":"IFERROR(C105/$C$3,0)","v":0},null,null,null,null,null,null,null,null,null,null,null,null,null,null,null,null,null,null,null,null,null,null,null,null,null,null,null,null,null,null,null,null,null,null,null,null,null,null,null,null,null,null,null,null,null,null,null,null,null,null,null,null,null,null,null,null,null,null,null,null,null,null,null,null,null,null,null,null,null,null,null,null,null,null,null,null,null,null,null,null,null,"x"]
["Note:","See Appendix for additional information.",null,null,null,null,null,null,null,null,null,null,null,null,null,null,null,null,null,null,null,null,null,null,null,null,null,null,null,null,null,null,null,null,null,null,null,null,null,null,null,null,null,null,null,null,null,null,null,null,null,null,null,null,null,null,null,null,null,null,null,null,null,null,null,null,null,null,null,null,null,null,null,null,null,null,null,null,null,null,null,null,null,null,null,"x"]
["FIT 5.06","AEDs are easily accessible and their location is well-marked, publicized, and known among trained staff.",0,{"$f":"IFERROR(C107/$C$3,0)","v":0},null,null,null,null,null,null,null,null,null,null,null,null,null,null,null,null,null,null,null,null,null,null,null,null,null,null,null,null,null,null,null,null,null,null,null,null,null,null,null,null,null,null,null,null,null,null,null,null,null,null,null,null,null,null,null,null,null,null,null,null,null,null,null,null,null,null,null,null,null,null,null,null,null,null,null,null,null,null,null,null,null,"x"]
["FIT 5.07","Protocols are in place to initiate a post-event review within 24-hours of the incident that includes:",null,null,null,null,null,null,null,null,null,null,null,null,null,null,null,null,null,null,null,null,null,null,null,null,null,null,null,null,null,null,null,null,null,null,null,null,null,null,null,null,null,null,null,null,null,null,null,null,null,null,null,null,null,null,null,null,null,null,null,null,null,null,null,null,null,null,null,null,null,null,null,null,null,null,null,null,null,null,null,null,null,null,null,"x"]
["a)","assessing the response including people, the device, and protocols;",{"$f":"SUM(E109:CG109)","v":0},{"$f":"IFERROR(C109/$C$3,0)","v":0},null,null,null,null,null,null,null,null,null,null,null,null,null,null,null,null,null,null,null,null,null,null,null,null,null,null,null,null,null,null,null,null,null,null,null,null,null,null,null,null,null,null,null,null,null,null,null,null,null,null,null,null,null,null,null,null,null,null,null,null,null,null,null,null,null,null,null,null,null,null,null,null,null,null,null,null,null,null,null,null,null,"x"]
["b)","completing incident reports; and",0,{"$f":"IFERROR(C110/$C$3,0)","v":0},null,null,null,null,null,null,null,null,null,null,null,null,null,null,null,null,null,null,null,null,null,null,null,null,null,null,null,null,null,null,null,null,null,null,null,null,null,null,null,null,null,null,null,null,null,null,null,null,null,null,null,null,null,null,null,null,null,null,null,null,null,null,null,null,null,null,null,null,null,null,null,null,null,null,null,null,null,null,null,null,null,"x"]
["c)","restocking supplies.",0,{"$f":"IFERROR(C111/$C$3,0)","v":0},null,null,null,null,null,null,null,null,null,null,null,null,null,null,null,null,null,null,null,null,null,null,null,null,null,null,null,null,null,null,null,null,null,null,null,null,null,null,null,null,null,null,null,null,null,null,null,null,null,null,null,null,null,null,null,null,null,null,null,null,null,null,null,null,null,null,null,null,null,null,null,null,null,null,null,null,null,null,null,null,null,"x"]
["FIT 6 - Requirements for Unstaffed MWR Facilities",null,null,null,null,null,null,null,null,null,null,null,null,null,null,null,null,null,null,null,null,null,null,null,null,null,null,null,null,null,null,null,null,null,null,null,null,null,null,null,null,null,null,null,null,null,null,null,null,null,null,null,null,null,null,null,null,null,null,null,null,null,null,null,null,null,null,null,null,null,null,null,null,null,null,null,null,null,null,null,null,null,null,null,null,"x"]
["FIT 6.01","Unstaffed facilities are authorized provided:",null,null,null,null,null,null,null,null,null,null,null,null,null,null,null,null,null,null,null,null,null,null,null,null,null,null,null,null,null,null,null,null,null,null,null,null,null,null,null,null,null,null,null,null,null,null,null,null,null,null,null,null,null,null,null,null,null,null,null,null,null,null,null,null,null,null,null,null,null,null,null,null,null,null,null,null,null,null,null,null,null,null,null,"x"]
["a)","an appropriate operational risk management assessment is conducted by the garrison/installation commander;",{"$f":"SUM(E114:CG114)","v":0},{"$f":"IFERROR(C114/($C$3-$C$117),0)","v":0},null,null,null,null,null,null,null,null,null,null,null,null,null,null,null,null,null,null,null,null,null,null,null,null,null,null,null,null,null,null,null,null,null,null,null,null,null,null,null,null,null,null,null,null,null,null,null,null,null,null,null,null,null,null,null,null,null,null,null,null,null,null,null,null,null,null,null,null,null,null,null,null,null,null,null,null,null,null,null,null,null,"x"]
["b)","patrons are informed of the risks associated with using the unstaffed facility; and",0,{"$f":"IFERROR(C115/($C$3-$C$117),0)","v":0},null,null,null,null,null,null,null,null,null,null,null,null,null,null,null,null,null,null,null,null,null,null,null,null,null,null,null,null,null,null,null,null,null,null,null,null,null,null,null,null,null,null,null,null,null,null,null,null,null,null,null,null,null,null,null,null,null,null,null,null,null,null,null,null,null,null,null,null,null,null,null,null,null,null,null,null,null,null,null,null,null,"x"]
["c)","mechanisms are in place (e.g., CCTV, restricted areas, etc.) to protect patrons to the greatest extent possible given the limitations of the facility.",0,{"$f":"IFERROR(C116/($C$3-$C$117),0)","v":0},null,null,null,null,null,null,null,null,null,null,null,null,null,null,null,null,null,null,null,null,null,null,null,null,null,null,null,null,null,null,null,null,null,null,null,null,null,null,null,null,null,null,null,null,null,null,null,null,null,null,null,null,null,null,null,null,null,null,null,null,null,null,null,null,null,null,null,null,null,null,null,null,null,null,null,null,null,null,null,null,null,"x"]
["N/A:","The facility is fully staffed.",{"$f":"SUM(E117:CG117)","v":0},{"$f":"IFERROR(_xlfn.IFS(SUM(E117:CG117)+COUNTA(E114:CG114) >$C$3, \"ERROR\",SUM(E117:CG117)+COUNTA(E115:CG115) >$C$3, \"ERROR\",(SUM(E117:CG117)+COUNTA(E116:CG116))>$C$3,\"ERROR\"),\" \")","v":" "},null,null,null,null,null,null,null,null,null,null,null,null,null,null,null,null,null,null,null,null,null,null,null,null,null,null,null,null,null,null,null,null,null,null,null,null,null,null,null,null,null,null,null,null,null,null,null,null,null,null,null,null,null,null,null,null,null,null,null,null,null,null,null,null,null,null,null,null,null,null,null,null,null,null,null,null,null,null,null,null,null,"x"]
["Note:","Unit specific facilities, CO approved tenant facilities, non-MWR facilities, and facilities onboard ships are excluded from all FIT 6 Standards. Lodging fitness facilities will operate per Service specific policy.",null,null,null,null,null,null,null,null,null,null,null,null,null,null,null,null,null,null,null,null,null,null,null,null,null,null,null,null,null,null,null,null,null,null,null,null,null,null,null,null,null,null,null,null,null,null,null,null,null,null,null,null,null,null,null,null,null,null,null,null,null,null,null,null,null,null,null,null,null,null,null,null,null,null,null,null,null,null,null,null,null,null,null,"x"]
["FIT 6.02","Unstaffed facilities must be granted appropriate waivers from Service headquarters prior to operation based on the following criteria:",null,null,null,null,null,null,null,null,null,null,null,null,null,null,null,null,null,null,null,null,null,null,null,null,null,null,null,null,null,null,null,null,null,null,null,null,null,null,null,null,null,null,null,null,null,null,null,null,null,null,null,null,null,null,null,null,null,null,null,null,null,null,null,null,null,null,null,null,null,null,null,null,null,null,null,null,null,null,null,null,null,null,null,"x"]
["a)","appropriate access to fully staffed fitness facilities will be maintained for all patrons (unstaffed facilities will not eliminate the installation requirement to operate a fully staffed facility 90 hours per week);",{"$f":"SUM(E120:CG120)","v":0},{"$f":"IFERROR(C120/($C$3-$C$125),0)","v":0},null,null,null,null,null,null,null,null,null,null,null,null,null,null,null,null,null,null,null,null,null,null,null,null,null,null,null,null,null,null,null,null,null,null,null,null,null,null,null,null,null,null,null,null,null,null,null,null,null,null,null,null,null,null,null,null,null,null,null,null,null,null,null,null,null,null,null,null,null,null,null,null,null,null,null,null,null,null,null,null,null,"x"]
["b)","there is no access to a staffed facility within a reasonable commute of the targeted geographic area;",0,{"$f":"IFERROR(C121/($C$3-$C$125),0)","v":0},null,null,null,null,null,null,null,null,null,null,null,null,null,null,null,null,null,null,null,null,null,null,null,null,null,null,null,null,null,null,null,null,null,null,null,null,null,null,null,null,null,null,null,null,null,null,null,null,null,null,null,null,null,null,null,null,null,null,null,null,null,null,null,null,null,null,null,null,null,null,null,null,null,null,null,null,null,null,null,null,null,"x"]
["c)","the chosen facility can meet applicable Service fitness facility standards;",0,{"$f":"IFERROR(C122/($C$3-$C$125),0)","v":0},null,null,null,null,null,null,null,null,null,null,null,null,null,null,null,null,null,null,null,null,null,null,null,null,null,null,null,null,null,null,null,null,null,null,null,null,null,null,null,null,null,null,null,null,null,null,null,null,null,null,null,null,null,null,null,null,null,null,null,null,null,null,null,null,null,null,null,null,null,null,null,null,null,null,null,null,null,null,null,null,null,"x"]
["d)","completion of a risk assessment certified by the installation Safety Office that is documented and incorporated into facility Standard Operating Procedures; and",0,{"$f":"IFERROR(C123/($C$3-$C$125),0)","v":0},null,null,null,null,null,null,null,null,null,null,null,null,null,null,null,null,null,null,null,null,null,null,null,null,null,null,null,null,null,null,null,null,null,null,null,null,null,null,null,null,null,null,null,null,null,null,null,null,null,null,null,null,null,null,null,null,null,null,null,null,null,null,null,null,null,null,null,null,null,null,null,null,null,null,null,null,null,null,null,null,null,"x"]
["e)","additional criteria identified by each military Service.",0,{"$f":"IFERROR(C124/($C$3-$C$125),0)","v":0},null,null,null,null,null,null,null,null,null,null,null,null,null,null,null,null,null,null,null,null,null,null,null,null,null,null,null,null,null,null,null,null,null,null,null,null,null,null,null,null,null,null,null,null,null,null,null,null,null,null,null,null,null,null,null,null,null,null,null,null,null,null,null,null,null,null,null,null,null,null,null,null,null,null,null,null,null,null,null,null,null,"x"]
["N/A:","The facility is fully staffed.",{"$f":"SUM(E125:CG125)","v":0},{"$f":"IFERROR(_xlfn.IFS(SUM(E125:CG125)+COUNTA(E120:CG120) >$C$3, \"ERROR\",SUM(E125:CG125)+COUNTA(E121:CG121) >$C$3, \"ERROR\",SUM(E125:CG125)+COUNTA(E122:CG122) >$C$3, \"ERROR\",SUM(E125:CG125)+COUNTA(E123:CG123) >$C$3, \"ERROR\",(SUM(E125:CG125)+COUNTA(E124:CG124))>$C$3,\"ERROR\"),\" \")","v":" "},null,null,null,null,null,null,null,null,null,null,null,null,null,null,null,null,null,null,null,null,null,null,null,null,null,null,null,null,null,null,null,null,null,null,null,null,null,null,null,null,null,null,null,null,null,null,null,null,null,null,null,null,null,null,null,null,null,null,null,null,null,null,null,null,null,null,null,null,null,null,null,null,null,null,null,null,null,null,null,null,null,"x"]
["FIT 6.03","Appropriate signage is displayed that:",null,null,null,null,null,null,null,null,null,null,null,null,null,null,null,null,null,null,null,null,null,null,null,null,null,null,null,null,null,null,null,null,null,null,null,null,null,null,null,null,null,null,null,null,null,null,null,null,null,null,null,null,null,null,null,null,null,null,null,null,null,null,null,null,null,null,null,null,null,null,null,null,null,null,null,null,null,null,null,null,null,null,null,"x"]
["a)","communicates to patrons that the facility is unstaffed;",0,{"$f":"IFERROR(C127/($C$3-$C$130),0)","v":0},null,null,null,null,null,null,null,null,null,null,null,null,null,null,null,null,null,null,null,null,null,null,null,null,null,null,null,null,null,null,null,null,null,null,null,null,null,null,null,null,null,null,null,null,null,null,null,null,null,null,null,null,null,null,null,null,null,null,null,null,null,null,null,null,null,null,null,null,null,null,null,null,null,null,null,null,null,null,null,null,null,"x"]
["b)","informs them of the inherent risk of using an unstaffed facility; and",0,{"$f":"IFERROR(C128/($C$3-$C$130),0)","v":0},null,null,null,null,null,null,null,null,null,null,null,null,null,null,null,null,null,null,null,null,null,null,null,null,null,null,null,null,null,null,null,null,null,null,null,null,null,null,null,null,null,null,null,null,null,null,null,null,null,null,null,null,null,null,null,null,null,null,null,null,null,null,null,null,null,null,null,null,null,null,null,null,null,null,null,null,null,null,null,null,null,"x"]
["c)","indicates that by using the facility they are assuming personal responsibility and waiving the facility’s liability.",{"$f":"SUM(E129:CG129)","v":0},{"$f":"IFERROR(C129/($C$3-$C$130),0)","v":0},null,null,null,null,null,null,null,null,null,null,null,null,null,null,null,null,null,null,null,null,null,null,null,null,null,null,null,null,null,null,null,null,null,null,null,null,null,null,null,null,null,null,null,null,null,null,null,null,null,null,null,null,null,null,null,null,null,null,null,null,null,null,null,null,null,null,null,null,null,null,null,null,null,null,null,null,null,null,null,null,null,"x"]
["N/A:","The facility is fully staffed.",{"$f":"SUM(E130:CG130)","v":0},{"$f":"IFERROR(_xlfn.IFS(SUM(E130:CG130)+COUNTA(E127:CG127) >$C$3, \"ERROR\",SUM(E130:CG130)+COUNTA(E128:CG128) >$C$3, \"ERROR\",(SUM(E130:CG130)+COUNTA(E129:CG129))>$C$3,\"ERROR\"),\" \")","v":" "},null,null,null,null,null,null,null,null,null,null,null,null,null,null,null,null,null,null,null,null,null,null,null,null,null,null,null,null,null,null,null,null,null,null,null,null,null,null,null,null,null,null,null,null,null,null,null,null,null,null,null,null,null,null,null,null,null,null,null,null,null,null,null,null,null,null,null,null,null,null,null,null,null,null,null,null,null,null,null,null,null,"x"]
["FIT 6.04","The facility uses signage and handouts to:",null,null,null,null,null,null,null,null,null,null,null,null,null,null,null,null,null,null,null,null,null,null,null,null,null,null,null,null,null,null,null,null,null,null,null,null,null,null,null,null,null,null,null,null,null,null,null,null,null,null,null,null,null,null,null,null,null,null,null,null,null,null,null,null,null,null,null,null,null,null,null,null,null,null,null,null,null,null,null,null,null,null,null,"x"]
["a)","outline the proper steps for engaging in safe physical activity;",0,{"$f":"IFERROR(C132/($C$3-$C$136),0)","v":0},null,null,null,null,null,null,null,null,null,null,null,null,null,null,null,null,null,null,null,null,null,null,null,null,null,null,null,null,null,null,null,null,null,null,null,null,null,null,null,null,null,null,null,null,null,null,null,null,null,null,null,null,null,null,null,null,null,null,null,null,null,null,null,null,null,null,null,null,null,null,null,null,null,null,null,null,null,null,null,null,null,"x"]
["b)","make self-administered, pre-activity screening tools available;",0,{"$f":"IFERROR(C133/($C$3-$C$136),0)","v":0},null,null,null,null,null,null,null,null,null,null,null,null,null,null,null,null,null,null,null,null,null,null,null,null,null,null,null,null,null,null,null,null,null,null,null,null,null,null,null,null,null,null,null,null,null,null,null,null,null,null,null,null,null,null,null,null,null,null,null,null,null,null,null,null,null,null,null,null,null,null,null,null,null,null,null,null,null,null,null,null,null,"x"]
["c)","encourage patrons to consult with a qualified medical practitioner prior to beginning a fitness program; and",0,{"$f":"IFERROR(C134/($C$3-$C$136),0)","v":0},null,null,null,null,null,null,null,null,null,null,null,null,null,null,null,null,null,null,null,null,null,null,null,null,null,null,null,null,null,null,null,null,null,null,null,null,null,null,null,null,null,null,null,null,null,null,null,null,null,null,null,null,null,null,null,null,null,null,null,null,null,null,null,null,null,null,null,null,null,null,null,null,null,null,null,null,null,null,null,null,null,"x"]
["d)","inform patrons of facility eligibility requirements including any age restrictions.",0,{"$f":"IFERROR(C135/($C$3-$C$136),0)","v":0},null,null,null,null,null,null,null,null,null,null,null,null,null,null,null,null,null,null,null,null,null,null,null,null,null,null,null,null,null,null,null,null,null,null,null,null,null,null,null,null,null,null,null,null,null,null,null,null,null,null,null,null,null,null,null,null,null,null,null,null,null,null,null,null,null,null,null,null,null,null,null,null,null,null,null,null,null,null,null,null,null,"x"]
["N/A:","The facility is fully staffed.",{"$f":"SUM(E136:CG136)","v":0},{"$f":"IFERROR(_xlfn.IFS(SUM(E136:CG136)+COUNTA(E132:CG132) >$C$3, \"ERROR\",SUM(E136:CG136)+COUNTA(E133:CG133) >$C$3, \"ERROR\",SUM(E136:CG136)+COUNTA(E134:CG134) >$C$3, \"ERROR\",(SUM(E136:CG136)+COUNTA(E135:CG135))>$C$3,\"ERROR\"),\" \")","v":" "},null,null,null,null,null,null,null,null,null,null,null,null,null,null,null,null,null,null,null,null,null,null,null,null,null,null,null,null,null,null,null,null,null,null,null,null,null,null,null,null,null,null,null,null,null,null,null,null,null,null,null,null,null,null,null,null,null,null,null,null,null,null,null,null,null,null,null,null,null,null,null,null,null,null,null,null,null,null,null,null,null,"x"]
["FIT 6.05","The facility ensures patrons can initiate an emergency response by:",null,null,null,null,null,null,null,null,null,null,null,null,null,null,null,null,null,null,null,null,null,null,null,null,null,null,null,null,null,null,null,null,null,null,null,null,null,null,null,null,null,null,null,null,null,null,null,null,null,null,null,null,null,null,null,null,null,null,null,null,null,null,null,null,null,null,null,null,null,null,null,null,null,null,null,null,null,null,null,null,null,null,null,"x"]
["a)","posting emergency response procedures in highly visible areas throughout the facility;",{"$f":"SUM(E138:CG138)","v":0},{"$f":"IFERROR(C138/($C$3-C141),0)","v":0},null,null,null,null,null,null,null,null,null,null,null,null,null,null,null,null,null,null,null,null,null,null,null,null,null,null,null,null,null,null,null,null,null,null,null,null,null,null,null,null,null,null,null,null,null,null,null,null,null,null,null,null,null,null,null,null,null,null,null,null,null,null,null,null,null,null,null,null,null,null,null,null,null,null,null,null,null,null,null,null,null,"x"]
["b)","making an active phone line available within the facility; and",0,{"$f":"IFERROR(C139/($C$3-C141),0)","v":0},null,null,null,null,null,null,null,null,null,null,null,null,null,null,null,null,null,null,null,null,null,null,null,null,null,null,null,null,null,null,null,null,null,null,null,null,null,null,null,null,null,null,null,null,null,null,null,null,null,null,null,null,null,null,null,null,null,null,null,null,null,null,null,null,null,null,null,null,null,null,null,null,null,null,null,null,null,null,null,null,null,"x"]
["c)","posting emergency numbers and contacts by the phone.",{"$f":"SUM(E140:CG140)","v":0},{"$f":"IFERROR(C140/($C$3-C141),0)","v":0},null,null,null,null,null,null,null,null,null,null,null,null,null,null,null,null,null,null,null,null,null,null,null,null,null,null,null,null,null,null,null,null,null,null,null,null,null,null,null,null,null,null,null,null,null,null,null,null,null,null,null,null,null,null,null,null,null,null,null,null,null,null,null,null,null,null,null,null,null,null,null,null,null,null,null,null,null,null,null,null,null,"x"]
["N/A:","The facility is fully staffed.",{"$f":"SUM(E141:CG141)","v":0},{"$f":"IFERROR(_xlfn.IFS(SUM(E141:CG141)+COUNTA(E138:CG138) >$C$3, \"ERROR\",SUM(E141:CG141)+COUNTA(E139:CG139) >$C$3, \"ERROR\",(SUM(E141:CG141)+COUNTA(E140:CG140))>$C$3,\"ERROR\"),\" \")","v":" "},null,null,null,null,null,null,null,null,null,null,null,null,null,null,null,null,null,null,null,null,null,null,null,null,null,null,null,null,null,null,null,null,null,null,null,null,null,null,null,null,null,null,null,null,null,null,null,null,null,null,null,null,null,null,null,null,null,null,null,null,null,null,null,null,null,null,null,null,null,null,null,null,null,null,null,null,null,null,null,null,null,"x"]
["FIT 6.06","Information on reporting an adverse incident is displayed in the facility.",0,{"$f":"IFERROR(C142/($C$3-C143),0)","v":0},null,null,null,null,null,null,null,null,null,null,null,null,null,null,null,null,null,null,null,null,null,null,null,null,null,null,null,null,null,null,null,null,null,null,null,null,null,null,null,null,null,null,null,null,null,null,null,null,null,null,null,null,null,null,null,null,null,null,null,null,null,null,null,null,null,null,null,null,null,null,null,null,null,null,null,null,null,null,null,null,null,"x"]
["N/A:","The facility is fully staffed.",{"$f":"SUM(E143:CG143)","v":0},{"$f":"IFERROR(_xlfn.IFS((SUM(E143:CG143)+COUNTA(E142:CG142))>$C$3,\"ERROR\"),\" \")","v":" "},null,null,null,null,null,null,null,null,null,null,null,null,null,null,null,null,null,null,null,null,null,null,null,null,null,null,null,null,null,null,null,null,null,null,null,null,null,null,null,null,null,null,null,null,null,null,null,null,null,null,null,null,null,null,null,null,null,null,null,null,null,null,null,null,null,null,null,null,null,null,null,null,null,null,null,null,null,null,null,null,null,"x"]
["FIT 6.07","Facility policy highly encourages patrons work out with a partner. ",0,{"$f":"IFERROR(C144/($C$3-C145),0)","v":0},null,null,null,null,null,null,null,null,null,null,null,null,null,null,null,null,null,null,null,null,null,null,null,null,null,null,null,null,null,null,null,null,null,null,null,null,null,null,null,null,null,null,null,null,null,null,null,null,null,null,null,null,null,null,null,null,null,null,null,null,null,null,null,null,null,null,null,null,null,null,null,null,null,null,null,null,null,null,null,null,null,"x"]
["N/A:","The facility is fully staffed.",{"$f":"SUM(E145:CG145)","v":0},{"$f":"IFERROR(_xlfn.IFS((SUM(E145:CG145)+COUNTA(E144:CG144))>$C$3,\"ERROR\"),\" \")","v":" "},null,null,null,null,null,null,null,null,null,null,null,null,null,null,null,null,null,null,null,null,null,null,null,null,null,null,null,null,null,null,null,null,null,null,null,null,null,null,null,null,null,null,null,null,null,null,null,null,null,null,null,null,null,null,null,null,null,null,null,null,null,null,null,null,null,null,null,null,null,null,null,null,null,null,null,null,null,null,null,null,null,"x"]
["FIT 6.08","Rules, policies, and guidelines for use of the facility are communicated to patrons and appropriately enforced when violations are reported.",0,{"$f":"IFERROR(C146/($C$3-C147),0)","v":0},null,null,null,null,null,null,null,null,null,null,null,null,null,null,null,null,null,null,null,null,null,null,null,null,null,null,null,null,null,null,null,null,null,null,null,null,null,null,null,null,null,null,null,null,null,null,null,null,null,null,null,null,null,null,null,null,null,null,null,null,null,null,null,null,null,null,null,null,null,null,null,null,null,null,null,null,null,null,null,null,null,"x"]
["N/A:","The facility is fully staffed.",{"$f":"SUM(E147:CG147)","v":0},{"$f":"IFERROR(_xlfn.IFS((SUM(E147:CG147)+COUNTA(E146:CG146))>$C$3,\"ERROR\"),\" \")","v":" "},null,null,null,null,null,null,null,null,null,null,null,null,null,null,null,null,null,null,null,null,null,null,null,null,null,null,null,null,null,null,null,null,null,null,null,null,null,null,null,null,null,null,null,null,null,null,null,null,null,null,null,null,null,null,null,null,null,null,null,null,null,null,null,null,null,null,null,null,null,null,null,null,null,null,null,null,null,null,null,null,null,"x"]
["FIT 6.09","Random inspections of unstaffed facilities are conducted throughout the day/evening to promote rule enforcement.",0,{"$f":"IFERROR(C148/($C$3-C149),0)","v":0},null,null,null,null,null,null,null,null,null,null,null,null,null,null,null,null,null,null,null,null,null,null,null,null,null,null,null,null,null,null,null,null,null,null,null,null,null,null,null,null,null,null,null,null,null,null,null,null,null,null,null,null,null,null,null,null,null,null,null,null,null,null,null,null,null,null,null,null,null,null,null,null,null,null,null,null,null,null,null,null,null,"x"]
["N/A:","The facility is fully staffed.",{"$f":"SUM(E149:CG149)","v":0},{"$f":"IFERROR(_xlfn.IFS((SUM(E149:CG149)+COUNTA(E148:CG148))>$C$3,\"ERROR\"),\" \")","v":" "},null,null,null,null,null,null,null,null,null,null,null,null,null,null,null,null,null,null,null,null,null,null,null,null,null,null,null,null,null,null,null,null,null,null,null,null,null,null,null,null,null,null,null,null,null,null,null,null,null,null,null,null,null,null,null,null,null,null,null,null,null,null,null,null,null,null,null,null,null,null,null,null,null,null,null,null,null,null,null,null,null,"x"]
["FIT 6.10","Individuals responsible for preventative maintenance and regular cleaning of the equipment and facility are identified to ensure the facility is maintained according to established procedures.",0,{"$f":"IFERROR(C150/($C$3-C151),0)","v":0},null,null,null,null,null,null,null,null,null,null,null,null,null,null,null,null,null,null,null,null,null,null,null,null,null,null,null,null,null,null,null,null,null,null,null,null,null,null,null,null,null,null,null,null,null,null,null,null,null,null,null,null,null,null,null,null,null,null,null,null,null,null,null,null,null,null,null,null,null,null,null,null,null,null,null,null,null,null,null,null,null,"x"]
["N/A:","The facility is fully staffed.",0,{"$f":"IFERROR(_xlfn.IFS((SUM(E151:CG151)+COUNTA(E150:CG150))>$C$3,\"ERROR\"),\" \")","v":" "},null,null,null,null,null,null,null,null,null,null,null,null,null,null,null,null,null,null,null,null,null,null,null,null,null,null,null,null,null,null,null,null,null,null,null,null,null,null,null,null,null,null,null,null,null,null,null,null,null,null,null,null,null,null,null,null,null,null,null,null,null,null,null,null,null,null,null,null,null,null,null,null,null,null,null,null,null,null,null,null,null,"x"]
["Note:","See FIT 4.08 and FIT 8.06 for more information on appropriate cleaning and maintenance schedules.",null,null,null,null,null,null,null,null,null,null,null,null,null,null,null,null,null,null,null,null,null,null,null,null,null,null,null,null,null,null,null,null,null,null,null,null,null,null,null,null,null,null,null,null,null,null,null,null,null,null,null,null,null,null,null,null,null,null,null,null,null,null,null,null,null,null,null,null,null,null,null,null,null,null,null,null,null,null,null,null,null,null,null,"x"]
["FIT 6.11","Unsupervised youth under the age of 18 (excluding all Active Duty) are prohibited from using unstaffed facilities and the participation of supervised youth is further limited based on the appropriateness of available equipment to their size, weight, and experience level.",{"$f":"SUM(E153:CG153)","v":0},{"$f":"IFERROR(C153/($C$3-C154),0)","v":0},null,null,null,null,null,null,null,null,null,null,null,null,null,null,null,null,null,null,null,null,null,null,null,null,null,null,null,null,null,null,null,null,null,null,null,null,null,null,null,null,null,null,null,null,null,null,null,null,null,null,null,null,null,null,null,null,null,null,null,null,null,null,null,null,null,null,null,null,null,null,null,null,null,null,null,null,null,null,null,null,null,"x"]
["N/A:","The facility is fully staffed.",0,{"$f":"IFERROR(_xlfn.IFS((SUM(E154:CG154)+COUNTA(E153:CG153))>$C$3,\"ERROR\"),\" \")","v":" "},null,null,null,null,null,null,null,null,null,null,null,null,null,null,null,null,null,null,null,null,null,null,null,null,null,null,null,null,null,null,null,null,null,null,null,null,null,null,null,null,null,null,null,null,null,null,null,null,null,null,null,null,null,null,null,null,null,null,null,null,null,null,null,null,null,null,null,null,null,null,null,null,null,null,null,null,null,null,null,null,null,"x"]
["FIT 7 - Designing a Fitness Program",null,null,null,null,null,null,null,null,null,null,null,null,null,null,null,null,null,null,null,null,null,null,null,null,null,null,null,null,null,null,null,null,null,null,null,null,null,null,null,null,null,null,null,null,null,null,null,null,null,null,null,null,null,null,null,null,null,null,null,null,null,null,null,null,null,null,null,null,null,null,null,null,null,null,null,null,null,null,null,null,null,null,null,null,"x"]
["FIT 7.01","The facility offers an array of physical fitness activities that promote the development of a physical fitness program that is appropriate to the individual’s current fitness level, goals, age, and overall health.",{"$f":"SUM(E156:CG156)","v":0},{"$f":"IFERROR(C156/($C$3),0)","v":0},null,null,null,null,null,null,null,null,null,null,null,null,null,null,null,null,null,null,null,null,null,null,null,null,null,null,null,null,null,null,null,null,null,null,null,null,null,null,null,null,null,null,null,null,null,null,null,null,null,null,null,null,null,null,null,null,null,null,null,null,null,null,null,null,null,null,null,null,null,null,null,null,null,null,null,null,null,null,null,null,null,"x"]
["FIT 7.02","Fitness programs geared towards serving individuals with elevated risk of fitness-related health issues have a medical liaison or medical advisory committee to assist in reviewing:",null,null,null,null,null,null,null,null,null,null,null,null,null,null,null,null,null,null,null,null,null,null,null,null,null,null,null,null,null,null,null,null,null,null,null,null,null,null,null,null,null,null,null,null,null,null,null,null,null,null,null,null,null,null,null,null,null,null,null,null,null,null,null,null,null,null,null,null,null,null,null,null,null,null,null,null,null,null,null,null,null,null,null,"x"]
["a)","pre-activity screening protocols;",0,{"$f":"IFERROR(C158/($C$3-C161),0)","v":0},null,null,null,null,null,null,null,null,null,null,null,null,null,null,null,null,null,null,null,null,null,null,null,null,null,null,null,null,null,null,null,null,null,null,null,null,null,null,null,null,null,null,null,null,null,null,null,null,null,null,null,null,null,null,null,null,null,null,null,null,null,null,null,null,null,null,null,null,null,null,null,null,null,null,null,null,null,null,null,null,null,"x"]
["b)","programming; and",0,{"$f":"IFERROR(C159/($C$3-C161),0)","v":0},null,null,null,null,null,null,null,null,null,null,null,null,null,null,null,null,null,null,null,null,null,null,null,null,null,null,null,null,null,null,null,null,null,null,null,null,null,null,null,null,null,null,null,null,null,null,null,null,null,null,null,null,null,null,null,null,null,null,null,null,null,null,null,null,null,null,null,null,null,null,null,null,null,null,null,null,null,null,null,null,null,"x"]
["c)","emergency response protocols.",{"$f":"SUM(E160:CG160)","v":0},{"$f":"IFERROR(C160/($C$3-C161),0)","v":0},null,null,null,null,null,null,null,null,null,null,null,null,null,null,null,null,null,null,null,null,null,null,null,null,null,null,null,null,null,null,null,null,null,null,null,null,null,null,null,null,null,null,null,null,null,null,null,null,null,null,null,null,null,null,null,null,null,null,null,null,null,null,null,null,null,null,null,null,null,null,null,null,null,null,null,null,null,null,null,null,null,"x"]
["N/A:","Facility does not provide this service.",{"$f":"SUM(E161:CG161)","v":0},{"$f":"IFERROR(_xlfn.IFS(SUM(E161:CG161)+COUNTA(E158:CG158) >$C$3, \"ERROR\",SUM(E161:CG161)+COUNTA(E159:CG159) >$C$3, \"ERROR\",(SUM(E161:CG161)+COUNTA(E160:CG160))>$C$3,\"ERROR\"),\" \")","v":" "},null,null,null,null,null,null,null,null,null,null,null,null,null,null,null,null,null,null,null,null,null,null,null,null,null,null,null,null,null,null,null,null,null,null,null,null,null,null,null,null,null,null,null,null,null,null,null,null,null,null,null,null,null,null,null,null,null,null,null,null,null,null,null,null,null,null,null,null,null,null,null,null,null,null,null,null,null,null,null,null,null,"x"]
["Note:","See Appendix for additional information.",null,null,null,null,null,null,null,null,null,null,null,null,null,null,null,null,null,null,null,null,null,null,null,null,null,null,null,null,null,null,null,null,null,null,null,null,null,null,null,null,null,null,null,null,null,null,null,null,null,null,null,null,null,null,null,null,null,null,null,null,null,null,null,null,null,null,null,null,null,null,null,null,null,null,null,null,null,null,null,null,null,null,null,"x"]
["FIT 7.03","When staff works one-on-one with patrons in scheduled or fee-based appointments, a record is created for each patron that contains:",null,null,null,null,null,null,null,null,null,null,null,null,null,null,null,null,null,null,null,null,null,null,null,null,null,null,null,null,null,null,null,null,null,null,null,null,null,null,null,null,null,null,null,null,null,null,null,null,null,null,null,null,null,null,null,null,null,null,null,null,null,null,null,null,null,null,null,null,null,null,null,null,null,null,null,null,null,null,null,null,null,null,null,"x"]
["a)","training logs, progress entries, activity instruction, and supervision notes as applicable; and",{"$f":"SUM(E164:CG164)","v":0},{"$f":"IFERROR(C164/($C$3-C166),0)","v":0},null,null,null,null,null,null,null,null,null,null,null,null,null,null,null,null,null,null,null,null,null,null,null,null,null,null,null,null,null,null,null,null,null,null,null,null,null,null,null,null,null,null,null,null,null,null,null,null,null,null,null,null,null,null,null,null,null,null,null,null,null,null,null,null,null,null,null,null,null,null,null,null,null,null,null,null,null,null,null,null,null,"x"]
["b)","results of pre-activity screenings and medical clearance, as needed.",0,{"$f":"IFERROR(C165/($C$3-C166),0)","v":0},null,null,null,null,null,null,null,null,null,null,null,null,null,null,null,null,null,null,null,null,null,null,null,null,null,null,null,null,null,null,null,null,null,null,null,null,null,null,null,null,null,null,null,null,null,null,null,null,null,null,null,null,null,null,null,null,null,null,null,null,null,null,null,null,null,null,null,null,null,null,null,null,null,null,null,null,null,null,null,null,null,"x"]
["N/A:","Facility does not provide this service.",{"$f":"SUM(E166:CG166)","v":0},{"$f":"IFERROR(_xlfn.IFS(SUM(E166:CG166)+COUNTA(E164:CG164) >$C$3, \"ERROR\",(SUM(E166:CG166)+COUNTA(E165:CG165))>$C$3,\"ERROR\"),\" \")","v":" "},null,null,null,null,null,null,null,null,null,null,null,null,null,null,null,null,null,null,null,null,null,null,null,null,null,null,null,null,null,null,null,null,null,null,null,null,null,null,null,null,null,null,null,null,null,null,null,null,null,null,null,null,null,null,null,null,null,null,null,null,null,null,null,null,null,null,null,null,null,null,null,null,null,null,null,null,null,null,null,null,null,"x"]
["Note:","See Appendix for additional information.",null,null,null,null,null,null,null,null,null,null,null,null,null,null,null,null,null,null,null,null,null,null,null,null,null,null,null,null,null,null,null,null,null,null,null,null,null,null,null,null,null,null,null,null,null,null,null,null,null,null,null,null,null,null,null,null,null,null,null,null,null,null,null,null,null,null,null,null,null,null,null,null,null,null,null,null,null,null,null,null,null,null,null,"x"]
["FIT 7.04","Facilities that offer staff-led programming designed specifically for youth under the age of 18:",null,null,null,null,null,null,null,null,null,null,null,null,null,null,null,null,null,null,null,null,null,null,null,null,null,null,null,null,null,null,null,null,null,null,null,null,null,null,null,null,null,null,null,null,null,null,null,null,null,null,null,null,null,null,null,null,null,null,null,null,null,null,null,null,null,null,null,null,null,null,null,null,null,null,null,null,null,null,null,null,null,null,null,"x"]
["a)","have parents complete a waiver and release for the youth;",0,{"$f":"IFERROR(C169/($C$3-$C$175),0)","v":0},null,null,null,null,null,null,null,null,null,null,null,null,null,null,null,null,null,null,null,null,null,null,null,null,null,null,null,null,null,null,null,null,null,null,null,null,null,null,null,null,null,null,null,null,null,null,null,null,null,null,null,null,null,null,null,null,null,null,null,null,null,null,null,null,null,null,null,null,null,null,null,null,null,null,null,null,null,null,null,null,null,"x"]
["b)","develop and inform parents of age limits;",0,0,null,null,null,null,null,null,null,null,null,null,null,null,null,null,null,null,null,null,null,null,null,null,null,null,null,null,null,null,null,null,null,null,null,null,null,null,null,null,null,null,null,null,null,null,null,null,null,null,null,null,null,null,null,null,null,null,null,null,null,null,null,null,null,null,null,null,null,null,null,null,null,null,null,null,null,null,null,null,null,null,null,"x"]
["c)","develop and inform parents of policies and procedures regarding the use of restrooms and locker rooms;",{"$f":"SUM(E171:CG171)","v":0},0,null,null,null,null,null,null,null,null,null,null,null,null,null,null,null,null,null,null,null,null,null,null,null,null,null,null,null,null,null,null,null,null,null,null,null,null,null,null,null,null,null,null,null,null,null,null,null,null,null,null,null,null,null,null,null,null,null,null,null,null,null,null,null,null,null,null,null,null,null,null,null,null,null,null,null,null,null,null,null,null,null,"x"]
["d)","establish sign-in and sign-out procedures if the parent will not be on-site while the youth is in the facility;",0,0,null,null,null,null,null,null,null,null,null,null,null,null,null,null,null,null,null,null,null,null,null,null,null,null,null,null,null,null,null,null,null,null,null,null,null,null,null,null,null,null,null,null,null,null,null,null,null,null,null,null,null,null,null,null,null,null,null,null,null,null,null,null,null,null,null,null,null,null,null,null,null,null,null,null,null,null,null,null,null,null,null,"x"]
["e)","conduct training (to include prevention, identification, and reporting) before staff work with youth; and",0,0,null,null,null,null,null,null,null,null,null,null,null,null,null,null,null,null,null,null,null,null,null,null,null,null,null,null,null,null,null,null,null,null,null,null,null,null,null,null,null,null,null,null,null,null,null,null,null,null,null,null,null,null,null,null,null,null,null,null,null,null,null,null,null,null,null,null,null,null,null,null,null,null,null,null,null,null,null,null,null,null,null,"x"]
["f)","ensure individuals (e.g., military, nonappropriated fund employees, appropriated fund employees, contractors, specified volunteers) who have regular contact with children under age 18 have a CNACI and Installation Records Check (IRC) per DoDI 1402.05.",{"$f":"SUM(E174:CG174)","v":0},0,null,null,null,null,null,null,null,null,null,null,null,null,null,null,null,null,null,null,null,null,null,null,null,null,null,null,null,null,null,null,null,null,null,null,null,null,null,null,null,null,null,null,null,null,null,null,null,null,null,null,null,null,null,null,null,null,null,null,null,null,null,null,null,null,null,null,null,null,null,null,null,null,null,null,null,null,null,null,null,null,null,"x"]
["N/A:","Facility does not provide this service.",{"$f":"SUM(E175:CG175)","v":0},{"$f":"IFERROR(_xlfn.IFS(SUM(E175:CG175)+COUNTA(E169:CG169) >$C$3, \"ERROR\",SUM(E175:CG175)+COUNTA(E170:CG170) >$C$3, \"ERROR\",SUM(E175:CG175)+COUNTA(E171:CG171) >$C$3, \"ERROR\",SUM(E175:CG175)+COUNTA(E172:CG172) >$C$3, \"ERROR\",SUM(E175:CG175)+COUNTA(E173:CG173) >$C$3, \"ERROR\",(SUM(E175:CG175)+COUNTA(E174:CG174))>$C$3,\"ERROR\"),\" \")","v":" "},null,null,null,null,null,null,null,null,null,null,null,null,null,null,null,null,null,null,null,null,null,null,null,null,null,null,null,null,null,null,null,null,null,null,null,null,null,null,null,null,null,null,null,null,null,null,null,null,null,null,null,null,null,null,null,null,null,null,null,null,null,null,null,null,null,null,null,null,null,null,null,null,null,null,null,null,null,null,null,null,null,"x"]
["Note:","This standard does not apply to general use of the facility by youth working out with a parent.",null,null,null,null,null,null,null,null,null,null,null,null,null,null,null,null,null,null,null,null,null,null,null,null,null,null,null,null,null,null,null,null,null,null,null,null,null,null,null,null,null,null,null,null,null,null,null,null,null,null,null,null,null,null,null,null,null,null,null,null,null,null,null,null,null,null,null,null,null,null,null,null,null,null,null,null,null,null,null,null,null,null,null,"x"]
["FIT 7.05","Facility follows Service-specific policies/guidelines governing the age and associated requirements for use of the facility by youth. ",0,{"$f":"IFERROR(C177/($C$3-C178),0)","v":0},null,null,null,null,null,null,null,null,null,null,null,null,null,null,null,null,null,null,null,null,null,null,null,null,null,null,null,null,null,null,null,null,null,null,null,null,null,null,null,null,null,null,null,null,null,null,null,null,null,null,null,null,null,null,null,null,null,null,null,null,null,null,null,null,null,null,null,null,null,null,null,null,null,null,null,null,null,null,null,null,null,"x"]
["N/A:","Facility does not provide this service.",{"$f":"SUM(E178:CG178)","v":0},{"$f":"IFERROR(_xlfn.IFS((SUM(E178:CG178)+COUNTA(E177:CG177))>$C$3,\"ERROR\"),\" \")","v":" "},null,null,null,null,null,null,null,null,null,null,null,null,null,null,null,null,null,null,null,null,null,null,null,null,null,null,null,null,null,null,null,null,null,null,null,null,null,null,null,null,null,null,null,null,null,null,null,null,null,null,null,null,null,null,null,null,null,null,null,null,null,null,null,null,null,null,null,null,null,null,null,null,null,null,null,null,null,null,null,null,null,"x"]
["Note:","See Appendix for additional information. ",null,null,null,null,null,null,null,null,null,null,null,null,null,null,null,null,null,null,null,null,null,null,null,null,null,null,null,null,null,null,null,null,null,null,null,null,null,null,null,null,null,null,null,null,null,null,null,null,null,null,null,null,null,null,null,null,null,null,null,null,null,null,null,null,null,null,null,null,null,null,null,null,null,null,null,null,null,null,null,null,null,null,null,"x"]
["FIT 7.06","Policies and procedures governing the use of activity areas containing free weights and exercise devices by youth under the age of 16 require:",null,null,null,null,null,null,null,null,null,null,null,null,null,null,null,null,null,null,null,null,null,null,null,null,null,null,null,null,null,null,null,null,null,null,null,null,null,null,null,null,null,null,null,null,null,null,null,null,null,null,null,null,null,null,null,null,null,null,null,null,null,null,null,null,null,null,null,null,null,null,null,null,null,null,null,null,null,null,null,null,null,null,null,"x"]
["a)","youth be at least 12 years of age to participate;",{"$f":"SUM(E181:CG181)","v":0},{"$f":"IFERROR(C181/$C$3,0)","v":0},null,null,null,null,null,null,null,null,null,null,null,null,null,null,null,null,null,null,null,null,null,null,null,null,null,null,null,null,null,null,null,null,null,null,null,null,null,null,null,null,null,null,null,null,null,null,null,null,null,null,null,null,null,null,null,null,null,null,null,null,null,null,null,null,null,null,null,null,null,null,null,null,null,null,null,null,null,null,null,null,null,"x"]
["b)","direct supervision by a responsible qualified adult (e.g., an adult family member, legal guardian, qualified C&Y staff member, qualified coach) at all times;",0,{"$f":"IFERROR(C182/$C$3,0)","v":0},null,null,null,null,null,null,null,null,null,null,null,null,null,null,null,null,null,null,null,null,null,null,null,null,null,null,null,null,null,null,null,null,null,null,null,null,null,null,null,null,null,null,null,null,null,null,null,null,null,null,null,null,null,null,null,null,null,null,null,null,null,null,null,null,null,null,null,null,null,null,null,null,null,null,null,null,null,null,null,null,null,"x"]
["c)","youth access be limited to activities and equipment that are appropriate to the youth’s size, fitness level, and experience;",0,0,null,null,null,null,null,null,null,null,null,null,null,null,null,null,null,null,null,null,null,null,null,null,null,null,null,null,null,null,null,null,null,null,null,null,null,null,null,null,null,null,null,null,null,null,null,null,null,null,null,null,null,null,null,null,null,null,null,null,null,null,null,null,null,null,null,null,null,null,null,null,null,null,null,null,null,null,null,null,null,null,null,"x"]
["d)","appropriate involvement of the child’s health care provider in designing the fitness program when youth are medically referred; and",0,0,null,null,null,null,null,null,null,null,null,null,null,null,null,null,null,null,null,null,null,null,null,null,null,null,null,null,null,null,null,null,null,null,null,null,null,null,null,null,null,null,null,null,null,null,null,null,null,null,null,null,null,null,null,null,null,null,null,null,null,null,null,null,null,null,null,null,null,null,null,null,null,null,null,null,null,null,null,null,null,null,null,"x"]
["e)","an increased level of supervision and instruction appropriate to the age of youth.",0,0,null,null,null,null,null,null,null,null,null,null,null,null,null,null,null,null,null,null,null,null,null,null,null,null,null,null,null,null,null,null,null,null,null,null,null,null,null,null,null,null,null,null,null,null,null,null,null,null,null,null,null,null,null,null,null,null,null,null,null,null,null,null,null,null,null,null,null,null,null,null,null,null,null,null,null,null,null,null,null,null,null,"x"]
["Note:","See Appendix for additional information.",null,null,null,null,null,null,null,null,null,null,null,null,null,null,null,null,null,null,null,null,null,null,null,null,null,null,null,null,null,null,null,null,null,null,null,null,null,null,null,null,null,null,null,null,null,null,null,null,null,null,null,null,null,null,null,null,null,null,null,null,null,null,null,null,null,null,null,null,null,null,null,null,null,null,null,null,null,null,null,null,null,null,null,"x"]
["FIT 8 - Facility Equipment",null,null,null,null,null,null,null,null,null,null,null,null,null,null,null,null,null,null,null,null,null,null,null,null,null,null,null,null,null,null,null,null,null,null,null,null,null,null,null,null,null,null,null,null,null,null,null,null,null,null,null,null,null,null,null,null,null,null,null,null,null,null,null,null,null,null,null,null,null,null,null,null,null,null,null,null,null,null,null,null,null,null,null,null,"x"]
["FIT 8.01","The quantity and quality of equipment are in accordance with Service-specific requirements to fulfill the facility’s mission.",{"$f":"SUM(E188:CG188)","v":0},{"$f":"IFERROR(C188/$C$3,0)","v":0},null,null,null,null,null,null,null,null,null,null,null,null,null,null,null,null,null,null,null,null,null,null,null,null,null,null,null,null,null,null,null,null,null,null,null,null,null,null,null,null,null,null,null,null,null,null,null,null,null,null,null,null,null,null,null,null,null,null,null,null,null,null,null,null,null,null,null,null,null,null,null,null,null,null,null,null,null,null,null,null,null,"x"]
["FIT 8.02","The variety, amount, and availability of exercise equipment at each facility match patron needs and preferences, limit wait times, and are determined based on:",null,null,null,null,null,null,null,null,null,null,null,null,null,null,null,null,null,null,null,null,null,null,null,null,null,null,null,null,null,null,null,null,null,null,null,null,null,null,null,null,null,null,null,null,null,null,null,null,null,null,null,null,null,null,null,null,null,null,null,null,null,null,null,null,null,null,null,null,null,null,null,null,null,null,null,null,null,null,null,null,null,null,null,"x"]
["a)","installation size;",0,{"$f":"IFERROR(C190/$C$3,0)","v":0},null,null,null,null,null,null,null,null,null,null,null,null,null,null,null,null,null,null,null,null,null,null,null,null,null,null,null,null,null,null,null,null,null,null,null,null,null,null,null,null,null,null,null,null,null,null,null,null,null,null,null,null,null,null,null,null,null,null,null,null,null,null,null,null,null,null,null,null,null,null,null,null,null,null,null,null,null,null,null,null,null,"x"]
["b)","facility size;",0,0,null,null,null,null,null,null,null,null,null,null,null,null,null,null,null,null,null,null,null,null,null,null,null,null,null,null,null,null,null,null,null,null,null,null,null,null,null,null,null,null,null,null,null,null,null,null,null,null,null,null,null,null,null,null,null,null,null,null,null,null,null,null,null,null,null,null,null,null,null,null,null,null,null,null,null,null,null,null,null,null,null,"x"]
["c)","the hours of heaviest usage;",0,0,null,null,null,null,null,null,null,null,null,null,null,null,null,null,null,null,null,null,null,null,null,null,null,null,null,null,null,null,null,null,null,null,null,null,null,null,null,null,null,null,null,null,null,null,null,null,null,null,null,null,null,null,null,null,null,null,null,null,null,null,null,null,null,null,null,null,null,null,null,null,null,null,null,null,null,null,null,null,null,null,null,"x"]
["d)","patrons’ preferred mode of exercise; and",0,0,null,null,null,null,null,null,null,null,null,null,null,null,null,null,null,null,null,null,null,null,null,null,null,null,null,null,null,null,null,null,null,null,null,null,null,null,null,null,null,null,null,null,null,null,null,null,null,null,null,null,null,null,null,null,null,null,null,null,null,null,null,null,null,null,null,null,null,null,null,null,null,null,null,null,null,null,null,null,null,null,null,"x"]
["e)","industry guidelines.",0,0,null,null,null,null,null,null,null,null,null,null,null,null,null,null,null,null,null,null,null,null,null,null,null,null,null,null,null,null,null,null,null,null,null,null,null,null,null,null,null,null,null,null,null,null,null,null,null,null,null,null,null,null,null,null,null,null,null,null,null,null,null,null,null,null,null,null,null,null,null,null,null,null,null,null,null,null,null,null,null,null,null,"x"]
["Note:","See Appendix for additional information.",null,null,null,null,null,null,null,null,null,null,null,null,null,null,null,null,null,null,null,null,null,null,null,null,null,null,null,null,null,null,null,null,null,null,null,null,null,null,null,null,null,null,null,null,null,null,null,null,null,null,null,null,null,null,null,null,null,null,null,null,null,null,null,null,null,null,null,null,null,null,null,null,null,null,null,null,null,null,null,null,null,null,null,"x"]
["FIT 8.03","Cardiovascular equipment shall be made up of a sufficient blend of equipment to meet the needs of patrons including but not limited to:",null,null,null,null,null,null,null,null,null,null,null,null,null,null,null,null,null,null,null,null,null,null,null,null,null,null,null,null,null,null,null,null,null,null,null,null,null,null,null,null,null,null,null,null,null,null,null,null,null,null,null,null,null,null,null,null,null,null,null,null,null,null,null,null,null,null,null,null,null,null,null,null,null,null,null,null,null,null,null,null,null,null,null,"x"]
["a)","treadmills;",{"$f":"SUM(E197:CG197)","v":0},{"$f":"IFERROR(C197/$C$3,0)","v":0},null,null,null,null,null,null,null,null,null,null,null,null,null,null,null,null,null,null,null,null,null,null,null,null,null,null,null,null,null,null,null,null,null,null,null,null,null,null,null,null,null,null,null,null,null,null,null,null,null,null,null,null,null,null,null,null,null,null,null,null,null,null,null,null,null,null,null,null,null,null,null,null,null,null,null,null,null,null,null,null,null,"x"]
["b)","stationary bikes, including a mix of upright and recumbent;",0,{"$f":"IFERROR(C198/$C$3,0)","v":0},null,null,null,null,null,null,null,null,null,null,null,null,null,null,null,null,null,null,null,null,null,null,null,null,null,null,null,null,null,null,null,null,null,null,null,null,null,null,null,null,null,null,null,null,null,null,null,null,null,null,null,null,null,null,null,null,null,null,null,null,null,null,null,null,null,null,null,null,null,null,null,null,null,null,null,null,null,null,null,null,null,"x"]
["c)","rowing machines; and",0,{"$f":"IFERROR(C199/$C$3,0)","v":0},null,null,null,null,null,null,null,null,null,null,null,null,null,null,null,null,null,null,null,null,null,null,null,null,null,null,null,null,null,null,null,null,null,null,null,null,null,null,null,null,null,null,null,null,null,null,null,null,null,null,null,null,null,null,null,null,null,null,null,null,null,null,null,null,null,null,null,null,null,null,null,null,null,null,null,null,null,null,null,null,null,"x"]
["d)","elliptical machines.",0,{"$f":"IFERROR(C200/$C$3,0)","v":0},null,null,null,null,null,null,null,null,null,null,null,null,null,null,null,null,null,null,null,null,null,null,null,null,null,null,null,null,null,null,null,null,null,null,null,null,null,null,null,null,null,null,null,null,null,null,null,null,null,null,null,null,null,null,null,null,null,null,null,null,null,null,null,null,null,null,null,null,null,null,null,null,null,null,null,null,null,null,null,null,null,"x"]
["FIT 8.04","Free weight equipment shall be made up of a sufficient blend of equipment to meet the needs of patrons including, but not limited to:",null,null,null,null,null,null,null,null,null,null,null,null,null,null,null,null,null,null,null,null,null,null,null,null,null,null,null,null,null,null,null,null,null,null,null,null,null,null,null,null,null,null,null,null,null,null,null,null,null,null,null,null,null,null,null,null,null,null,null,null,null,null,null,null,null,null,null,null,null,null,null,null,null,null,null,null,null,null,null,null,null,null,null,"x"]
["a)","free weights;",{"$f":"SUM(E202:CG202)","v":0},{"$f":"IFERROR(C202/$C$3,0)","v":0},null,null,null,null,null,null,null,null,null,null,null,null,null,null,null,null,null,null,null,null,null,null,null,null,null,null,null,null,null,null,null,null,null,null,null,null,null,null,null,null,null,null,null,null,null,null,null,null,null,null,null,null,null,null,null,null,null,null,null,null,null,null,null,null,null,null,null,null,null,null,null,null,null,null,null,null,null,null,null,null,null,"x"]
["b)","selectorized machines; and",0,{"$f":"IFERROR(C203/$C$3,0)","v":0},null,null,null,null,null,null,null,null,null,null,null,null,null,null,null,null,null,null,null,null,null,null,null,null,null,null,null,null,null,null,null,null,null,null,null,null,null,null,null,null,null,null,null,null,null,null,null,null,null,null,null,null,null,null,null,null,null,null,null,null,null,null,null,null,null,null,null,null,null,null,null,null,null,null,null,null,null,null,null,null,null,"x"]
["c)","Olympic benches.",0,{"$f":"IFERROR(C204/$C$3,0)","v":0},null,null,null,null,null,null,null,null,null,null,null,null,null,null,null,null,null,null,null,null,null,null,null,null,null,null,null,null,null,null,null,null,null,null,null,null,null,null,null,null,null,null,null,null,null,null,null,null,null,null,null,null,null,null,null,null,null,null,null,null,null,null,null,null,null,null,null,null,null,null,null,null,null,null,null,null,null,null,null,null,null,"x"]
["FIT 8.05","Manufacturer-recommended safety equipment, such as collars, are required for patrons to promote safe use of the facility’s equipment.",0,{"$f":"IFERROR(C205/$C$3,0)","v":0},null,null,null,null,null,null,null,null,null,null,null,null,null,null,null,null,null,null,null,null,null,null,null,null,null,null,null,null,null,null,null,null,null,null,null,null,null,null,null,null,null,null,null,null,null,null,null,null,null,null,null,null,null,null,null,null,null,null,null,null,null,null,null,null,null,null,null,null,null,null,null,null,null,null,null,null,null,null,null,null,null,"x"]
["FIT 8.06","When purchasing and installing new equipment, staff:",null,null,null,null,null,null,null,null,null,null,null,null,null,null,null,null,null,null,null,null,null,null,null,null,null,null,null,null,null,null,null,null,null,null,null,null,null,null,null,null,null,null,null,null,null,null,null,null,null,null,null,null,null,null,null,null,null,null,null,null,null,null,null,null,null,null,null,null,null,null,null,null,null,null,null,null,null,null,null,null,null,null,null,"x"]
["a)","purchase commercial-grade equipment;",{"$f":"SUM(E207:CG207)","v":0},{"$f":"IFERROR(C207/$C$3,0)","v":0},null,null,null,null,null,null,null,null,null,null,null,null,null,null,null,null,null,null,null,null,null,null,null,null,null,null,null,null,null,null,null,null,null,null,null,null,null,null,null,null,null,null,null,null,null,null,null,null,null,null,null,null,null,null,null,null,null,null,null,null,null,null,null,null,null,null,null,null,null,null,null,null,null,null,null,null,null,null,null,null,null,"x"]
["b)","purchase equipment that will enhance the facility’s offerings;",{"$f":"SUM(E208:CG208)","v":0},0,null,null,null,null,null,null,null,null,null,null,null,null,null,null,null,null,null,null,null,null,null,null,null,null,null,null,null,null,null,null,null,null,null,null,null,null,null,null,null,null,null,null,null,null,null,null,null,null,null,null,null,null,null,null,null,null,null,null,null,null,null,null,null,null,null,null,null,null,null,null,null,null,null,null,null,null,null,null,null,null,null,"x"]
["c)","ensure customer uses equipment for its intended use;",{"$f":"SUM(E209:CG209)","v":0},0,null,null,null,null,null,null,null,null,null,null,null,null,null,null,null,null,null,null,null,null,null,null,null,null,null,null,null,null,null,null,null,null,null,null,null,null,null,null,null,null,null,null,null,null,null,null,null,null,null,null,null,null,null,null,null,null,null,null,null,null,null,null,null,null,null,null,null,null,null,null,null,null,null,null,null,null,null,null,null,null,null,"x"]
["d)","install equipment according to manufacturers’ instructions; and",0,0,null,null,null,null,null,null,null,null,null,null,null,null,null,null,null,null,null,null,null,null,null,null,null,null,null,null,null,null,null,null,null,null,null,null,null,null,null,null,null,null,null,null,null,null,null,null,null,null,null,null,null,null,null,null,null,null,null,null,null,null,null,null,null,null,null,null,null,null,null,null,null,null,null,null,null,null,null,null,null,null,null,"x"]
["e)","inspect all equipment prior to use to ensure it is operating properly.",0,0,null,null,null,null,null,null,null,null,null,null,null,null,null,null,null,null,null,null,null,null,null,null,null,null,null,null,null,null,null,null,null,null,null,null,null,null,null,null,null,null,null,null,null,null,null,null,null,null,null,null,null,null,null,null,null,null,null,null,null,null,null,null,null,null,null,null,null,null,null,null,null,null,null,null,null,null,null,null,null,null,null,"x"]
["FIT 8.07","Equipment is regularly inspected and maintained according to manufacturers’ instructions and consistent with industry guidelines.",0,0,null,null,null,null,null,null,null,null,null,null,null,null,null,null,null,null,null,null,null,null,null,null,null,null,null,null,null,null,null,null,null,null,null,null,null,null,null,null,null,null,null,null,null,null,null,null,null,null,null,null,null,null,null,null,null,null,null,null,null,null,null,null,null,null,null,null,null,null,null,null,null,null,null,null,null,null,null,null,null,null,null,"x"]
["Note:","See Appendix for additional information.",null,null,null,null,null,null,null,null,null,null,null,null,null,null,null,null,null,null,null,null,null,null,null,null,null,null,null,null,null,null,null,null,null,null,null,null,null,null,null,null,null,null,null,null,null,null,null,null,null,null,null,null,null,null,null,null,null,null,null,null,null,null,null,null,null,null,null,null,null,null,null,null,null,null,null,null,null,null,null,null,null,null,null,"x"]
["Note:","See Table 2 for Preventative Maintenance Practices.",null,null,null,null,null,null,null,null,null,null,null,null,null,null,null,null,null,null,null,null,null,null,null,null,null,null,null,null,null,null,null,null,null,null,null,null,null,null,null,null,null,null,null,null,null,null,null,null,null,null,null,null,null,null,null,null,null,null,null,null,null,null,null,null,null,null,null,null,null,null,null,null,null,null,null,null,null,null,null,null,null,null,null,"x"]
["FIT 8.08","Equipment that is in need of repair is:",null,null,null,null,null,null,null,null,null,null,null,null,null,null,null,null,null,null,null,null,null,null,null,null,null,null,null,null,null,null,null,null,null,null,null,null,null,null,null,null,null,null,null,null,null,null,null,null,null,null,null,null,null,null,null,null,null,null,null,null,null,null,null,null,null,null,null,null,null,null,null,null,null,null,null,null,null,null,null,null,null,null,null,"x"]
["a)","removed from service immediately or clearly marked \"out of order\";",{"$f":"SUM(E216:CG216)","v":0},{"$f":"IFERROR(C216/$C$3,0)","v":0},null,null,null,null,null,null,null,null,null,null,null,null,null,null,null,null,null,null,null,null,null,null,null,null,null,null,null,null,null,null,null,null,null,null,null,null,null,null,null,null,null,null,null,null,null,null,null,null,null,null,null,null,null,null,null,null,null,null,null,null,null,null,null,null,null,null,null,null,null,null,null,null,null,null,null,null,null,null,null,null,null,"x"]
["b)","repaired according to manufacturers' specifications; and",0,{"$f":"IFERROR(C217/$C$3,0)","v":0},null,null,null,null,null,null,null,null,null,null,null,null,null,null,null,null,null,null,null,null,null,null,null,null,null,null,null,null,null,null,null,null,null,null,null,null,null,null,null,null,null,null,null,null,null,null,null,null,null,null,null,null,null,null,null,null,null,null,null,null,null,null,null,null,null,null,null,null,null,null,null,null,null,null,null,null,null,null,null,null,null,"x"]
["c)","re-inspected and tested to ensure proper performance prior to use.",0,0,null,null,null,null,null,null,null,null,null,null,null,null,null,null,null,null,null,null,null,null,null,null,null,null,null,null,null,null,null,null,null,null,null,null,null,null,null,null,null,null,null,null,null,null,null,null,null,null,null,null,null,null,null,null,null,null,null,null,null,null,null,null,null,null,null,null,null,null,null,null,null,null,null,null,null,null,null,null,null,null,null,"x"]
["Note:","See Appendix for additional information.",null,null,null,null,null,null,null,null,null,null,null,null,null,null,null,null,null,null,null,null,null,null,null,null,null,null,null,null,null,null,null,null,null,null,null,null,null,null,null,null,null,null,null,null,null,null,null,null,null,null,null,null,null,null,null,null,null,null,null,null,null,null,null,null,null,null,null,null,null,null,null,null,null,null,null,null,null,null,null,null,null,null,null,"x"]
["FIT 8.09","The organization maintains records on facility equipment including:",null,null,null,null,null,null,null,null,null,null,null,null,null,null,null,null,null,null,null,null,null,null,null,null,null,null,null,null,null,null,null,null,null,null,null,null,null,null,null,null,null,null,null,null,null,null,null,null,null,null,null,null,null,null,null,null,null,null,null,null,null,null,null,null,null,null,null,null,null,null,null,null,null,null,null,null,null,null,null,null,null,null,null,"x"]
["a)","manufacturer-provided user manuals, warranties, and operating guides for reference;",{"$f":"SUM(E221:CG221)","v":0},0,null,null,null,null,null,null,null,null,null,null,null,null,null,null,null,null,null,null,null,null,null,null,null,null,null,null,null,null,null,null,null,null,null,null,null,null,null,null,null,null,null,null,null,null,null,null,null,null,null,null,null,null,null,null,null,null,null,null,null,null,null,null,null,null,null,null,null,null,null,null,null,null,null,null,null,null,null,null,null,null,null,"x"]
["b)","documentation of equipment selection, purchase, installation, and set-up; and",0,0,null,null,null,null,null,null,null,null,null,null,null,null,null,null,null,null,null,null,null,null,null,null,null,null,null,null,null,null,null,null,null,null,null,null,null,null,null,null,null,null,null,null,null,null,null,null,null,null,null,null,null,null,null,null,null,null,null,null,null,null,null,null,null,null,null,null,null,null,null,null,null,null,null,null,null,null,null,null,null,null,null,"x"]
["c)","records of inspections, maintenance, equipment rotation plan, and repairs.",0,0,null,null,null,null,null,null,null,null,null,null,null,null,null,null,null,null,null,null,null,null,null,null,null,null,null,null,null,null,null,null,null,null,null,null,null,null,null,null,null,null,null,null,null,null,null,null,null,null,null,null,null,null,null,null,null,null,null,null,null,null,null,null,null,null,null,null,null,null,null,null,null,null,null,null,null,null,null,null,null,null,null,"x"]
["FIT 9 - Sauna, Steam, and Whirlpool Facilities ",null,null,null,null,null,null,null,null,null,null,null,null,null,null,null,null,null,null,null,null,null,null,null,null,null,null,null,null,null,null,null,null,null,null,null,null,null,null,null,null,null,null,null,null,null,null,null,null,null,null,null,null,null,null,null,null,null,null,null,null,null,null,null,null,null,null,null,null,null,null,null,null,null,null,null,null,null,null,null,null,null,null,null,null,"x"]
["FIT 9.01","Sauna, steam, and whirlpool facilities are maintained and properly monitored to ensure the safety of patrons.",0,{"$f":"IFERROR(C225/($C$3-C226),0)","v":0},null,null,null,null,null,null,null,null,null,null,null,null,null,null,null,null,null,null,null,null,null,null,null,null,null,null,null,null,null,null,null,null,null,null,null,null,null,null,null,null,null,null,null,null,null,null,null,null,null,null,null,null,null,null,null,null,null,null,null,null,null,null,null,null,null,null,null,null,null,null,null,null,null,null,null,null,null,null,null,null,null,"x"]
["N/A:","The facility does not offer a sauna, steam room, or whirlpool.",{"$f":"SUM(E226:CG226)","v":0},{"$f":"IFERROR(_xlfn.IFS((SUM(E226:CG226)+COUNTA(E225:CG225))>$C$3,\"ERROR\"),\" \")","v":" "},null,null,null,null,null,null,null,null,null,null,null,null,null,null,null,null,null,null,null,null,null,null,null,null,null,null,null,null,null,null,null,null,null,null,null,null,null,null,null,null,null,null,null,null,null,null,null,null,null,null,null,null,null,null,null,null,null,null,null,null,null,null,null,null,null,null,null,null,null,null,null,null,null,null,null,null,null,null,null,null,null,"x"]
["Note:","See Appendix for additional information.",null,null,null,null,null,null,null,null,null,null,null,null,null,null,null,null,null,null,null,null,null,null,null,null,null,null,null,null,null,null,null,null,null,null,null,null,null,null,null,null,null,null,null,null,null,null,null,null,null,null,null,null,null,null,null,null,null,null,null,null,null,null,null,null,null,null,null,null,null,null,null,null,null,null,null,null,null,null,null,null,null,null,null,"x"]
["FIT 9.02","Proper signage promotes safe usage of the sauna, steam room, or whirlpool by:",null,null,null,null,null,null,null,null,null,null,null,null,null,null,null,null,null,null,null,null,null,null,null,null,null,null,null,null,null,null,null,null,null,null,null,null,null,null,null,null,null,null,null,null,null,null,null,null,null,null,null,null,null,null,null,null,null,null,null,null,null,null,null,null,null,null,null,null,null,null,null,null,null,null,null,null,null,null,null,null,null,null,null,"x"]
["a)","educating patrons on potential health risks, developed under the guidance of the appropriate Service authority;",0,{"$f":"IFERROR(C229/($C$3-C234),0)","v":0},null,null,null,null,null,null,null,null,null,null,null,null,null,null,null,null,null,null,null,null,null,null,null,null,null,null,null,null,null,null,null,null,null,null,null,null,null,null,null,null,null,null,null,null,null,null,null,null,null,null,null,null,null,null,null,null,null,null,null,null,null,null,null,null,null,null,null,null,null,null,null,null,null,null,null,null,null,null,null,null,null,"x"]
["b)","recommending that patrons wait at least ten minutes after exercising to cool down, or until sweating has subsided, before using one of these facilities;",0,{"$f":"IFERROR(C230/($C$3-C234),0)","v":0},null,null,null,null,null,null,null,null,null,null,null,null,null,null,null,null,null,null,null,null,null,null,null,null,null,null,null,null,null,null,null,null,null,null,null,null,null,null,null,null,null,null,null,null,null,null,null,null,null,null,null,null,null,null,null,null,null,null,null,null,null,null,null,null,null,null,null,null,null,null,null,null,null,null,null,null,null,null,null,null,null,"x"]
["c)","informing users of age restrictions;",0,{"$f":"IFERROR(C231/($C$3-C234),0)","v":0},null,null,null,null,null,null,null,null,null,null,null,null,null,null,null,null,null,null,null,null,null,null,null,null,null,null,null,null,null,null,null,null,null,null,null,null,null,null,null,null,null,null,null,null,null,null,null,null,null,null,null,null,null,null,null,null,null,null,null,null,null,null,null,null,null,null,null,null,null,null,null,null,null,null,null,null,null,null,null,null,null,"x"]
["d)","encouraging patrons to take a soap shower prior to entering these facilities; and",{"$f":"SUM(E232:CG232)","v":0},{"$f":"IFERROR(C232/($C$3-C234),0)","v":0},null,null,null,null,null,null,null,null,null,null,null,null,null,null,null,null,null,null,null,null,null,null,null,null,null,null,null,null,null,null,null,null,null,null,null,null,null,null,null,null,null,null,null,null,null,null,null,null,null,null,null,null,null,null,null,null,null,null,null,null,null,null,null,null,null,null,null,null,null,null,null,null,null,null,null,null,null,null,null,null,null,"x"]
["e)","informing patrons of an emergency call/alarm in the steam/sauna room that sounds at the control counter.",{"$f":"SUM(E233:CG233)","v":0},{"$f":"IFERROR(C233/($C$3-C234),0)","v":0},null,null,null,null,null,null,null,null,null,null,null,null,null,null,null,null,null,null,null,null,null,null,null,null,null,null,null,null,null,null,null,null,null,null,null,null,null,null,null,null,null,null,null,null,null,null,null,null,null,null,null,null,null,null,null,null,null,null,null,null,null,null,null,null,null,null,null,null,null,null,null,null,null,null,null,null,null,null,null,null,null,"x"]
["N/A:","The facility does not offer a sauna, steam room, or whirlpool.",{"$f":"SUM(E234:CG234)","v":0},{"$f":"IFERROR(_xlfn.IFS(SUM(E234:CG234)+COUNTA(E229:CG229) >$C$3, \"ERROR\",SUM(E234:CG234)+COUNTA(E230:CG230) >$C$3, \"ERROR\",SUM(E234:CG234)+COUNTA(E231:CG231) >$C$3, \"ERROR\",SUM(E234:CG234)+COUNTA(E232:CG232) >$C$3, \"ERROR\",(SUM(E234:CG234)+COUNTA(E233:CG233))>$C$3,\"ERROR\"),\" \")","v":" "},null,null,null,null,null,null,null,null,null,null,null,null,null,null,null,null,null,null,null,null,null,null,null,null,null,null,null,null,null,null,null,null,null,null,null,null,null,null,null,null,null,null,null,null,null,null,null,null,null,null,null,null,null,null,null,null,null,null,null,null,null,null,null,null,null,null,null,null,null,null,null,null,null,null,null,null,null,null,null,null,null,"x"]
["FIT 9.03","Facilities that offer a sauna, steam room, or whirlpool to patrons post signage prohibiting:",null,null,null,null,null,null,null,null,null,null,null,null,null,null,null,null,null,null,null,null,null,null,null,null,null,null,null,null,null,null,null,null,null,null,null,null,null,null,null,null,null,null,null,null,null,null,null,null,null,null,null,null,null,null,null,null,null,null,null,null,null,null,null,null,null,null,null,null,null,null,null,null,null,null,null,null,null,null,null,null,null,null,null,"x"]
["a)","food;",{"$f":"SUM(E236:CG236)","v":0},{"$f":"IFERROR(C236/($C$3-$C$245),0)","v":0},null,null,null,null,null,null,null,null,null,null,null,null,null,null,null,null,null,null,null,null,null,null,null,null,null,null,null,null,null,null,null,null,null,null,null,null,null,null,null,null,null,null,null,null,null,null,null,null,null,null,null,null,null,null,null,null,null,null,null,null,null,null,null,null,null,null,null,null,null,null,null,null,null,null,null,null,null,null,null,null,null,"x"]
["b)","children or youth under 18 years-of-age (excluding all Active Duty);",0,{"$f":"IFERROR(C237/($C$3-$C$245),0)","v":0},null,null,null,null,null,null,null,null,null,null,null,null,null,null,null,null,null,null,null,null,null,null,null,null,null,null,null,null,null,null,null,null,null,null,null,null,null,null,null,null,null,null,null,null,null,null,null,null,null,null,null,null,null,null,null,null,null,null,null,null,null,null,null,null,null,null,null,null,null,null,null,null,null,null,null,null,null,null,null,null,null,"x"]
["c)","spending more than ten minutes in these areas at one time;",0,0,null,null,null,null,null,null,null,null,null,null,null,null,null,null,null,null,null,null,null,null,null,null,null,null,null,null,null,null,null,null,null,null,null,null,null,null,null,null,null,null,null,null,null,null,null,null,null,null,null,null,null,null,null,null,null,null,null,null,null,null,null,null,null,null,null,null,null,null,null,null,null,null,null,null,null,null,null,null,null,null,null,"x"]
["d)","shaving;",0,0,null,null,null,null,null,null,null,null,null,null,null,null,null,null,null,null,null,null,null,null,null,null,null,null,null,null,null,null,null,null,null,null,null,null,null,null,null,null,null,null,null,null,null,null,null,null,null,null,null,null,null,null,null,null,null,null,null,null,null,null,null,null,null,null,null,null,null,null,null,null,null,null,null,null,null,null,null,null,null,null,null,"x"]
["e)","diving or jumping into the whirlpool;",0,0,null,null,null,null,null,null,null,null,null,null,null,null,null,null,null,null,null,null,null,null,null,null,null,null,null,null,null,null,null,null,null,null,null,null,null,null,null,null,null,null,null,null,null,null,null,null,null,null,null,null,null,null,null,null,null,null,null,null,null,null,null,null,null,null,null,null,null,null,null,null,null,null,null,null,null,null,null,null,null,null,null,"x"]
["f)","use of body lotions, oils, or suntan preparations;",{"$f":"SUM(E241:CG241)","v":0},0,null,null,null,null,null,null,null,null,null,null,null,null,null,null,null,null,null,null,null,null,null,null,null,null,null,null,null,null,null,null,null,null,null,null,null,null,null,null,null,null,null,null,null,null,null,null,null,null,null,null,null,null,null,null,null,null,null,null,null,null,null,null,null,null,null,null,null,null,null,null,null,null,null,null,null,null,null,null,null,null,null,"x"]
["g)","exercise in the sauna, steam room, or whirlpool;",0,0,null,null,null,null,null,null,null,null,null,null,null,null,null,null,null,null,null,null,null,null,null,null,null,null,null,null,null,null,null,null,null,null,null,null,null,null,null,null,null,null,null,null,null,null,null,null,null,null,null,null,null,null,null,null,null,null,null,null,null,null,null,null,null,null,null,null,null,null,null,null,null,null,null,null,null,null,null,null,null,null,null,"x"]
["h)","submerging to the bottom of the whirlpool; and",0,0,null,null,null,null,null,null,null,null,null,null,null,null,null,null,null,null,null,null,null,null,null,null,null,null,null,null,null,null,null,null,null,null,null,null,null,null,null,null,null,null,null,null,null,null,null,null,null,null,null,null,null,null,null,null,null,null,null,null,null,null,null,null,null,null,null,null,null,null,null,null,null,null,null,null,null,null,null,null,null,null,null,"x"]
["i)","use by individuals at increased risk of injury or illness unless authorized by a physician.",{"$f":"SUM(E244:CG244)","v":0},0,null,null,null,null,null,null,null,null,null,null,null,null,null,null,null,null,null,null,null,null,null,null,null,null,null,null,null,null,null,null,null,null,null,null,null,null,null,null,null,null,null,null,null,null,null,null,null,null,null,null,null,null,null,null,null,null,null,null,null,null,null,null,null,null,null,null,null,null,null,null,null,null,null,null,null,null,null,null,null,null,null,"x"]
["N/A:","The facility does not offer a sauna, steam room, or whirlpool.",{"$f":"SUM(E245:CG245)","v":0},{"$f":"IFERROR(_xlfn.IFS(SUM(E245:CG245)+COUNTA(E236:CG236) >$C$3, \"ERROR\",SUM(E245:CG245)+COUNTA(E237:CG237) >$C$3, \"ERROR\",SUM(E245:CG245)+COUNTA(E238:CG238) >$C$3, \"ERROR\",SUM(E245:CG245)+COUNTA(E239:CG239) >$C$3, \"ERROR\",SUM(E245:CG245)+COUNTA(E240:CG240) >$C$3, \"ERROR\",SUM(E245:CG245)+COUNTA(E241:CG241) >$C$3, \"ERROR\",SUM(E245:CG245)+COUNTA(E242:CG242) >$C$3, \"ERROR\",SUM(E245:CG245)+COUNTA(E243:CG243) >$C$3, \"ERROR\",(SUM(E245:CG245)+COUNTA(E244:CG244))>$C$3,\"ERROR\"),\" \")","v":" "},null,null,null,null,null,null,null,null,null,null,null,null,null,null,null,null,null,null,null,null,null,null,null,null,null,null,null,null,null,null,null,null,null,null,null,null,null,null,null,null,null,null,null,null,null,null,null,null,null,null,null,null,null,null,null,null,null,null,null,null,null,null,null,null,null,null,null,null,null,null,null,null,null,null,null,null,null,null,null,null,null,"x"]
["Note:","See Appendix for additional information.",null,null,null,null,null,null,null,null,null,null,null,null,null,null,null,null,null,null,null,null,null,null,null,null,null,null,null,null,null,null,null,null,null,null,null,null,null,null,null,null,null,null,null,null,null,null,null,null,null,null,null,null,null,null,null,null,null,null,null,null,null,null,null,null,null,null,null,null,null,null,null,null,null,null,null,null,null,null,null,null,null,null,null,"x"]
["FIT 9.04","Sauna, steam room, and whirlpool areas are equipped with:",null,null,null,null,null,null,null,null,null,null,null,null,null,null,null,null,null,null,null,null,null,null,null,null,null,null,null,null,null,null,null,null,null,null,null,null,null,null,null,null,null,null,null,null,null,null,null,null,null,null,null,null,null,null,null,null,null,null,null,null,null,null,null,null,null,null,null,null,null,null,null,null,null,null,null,null,null,null,null,null,null,null,null,"x"]
["a)","thermometers and time clocks visible to patrons to facilitate self-monitoring;",{"$f":"SUM(E248:CG248)","v":0},{"$f":"IFERROR(C248/($C$3-C253),0)","v":0},null,null,null,null,null,null,null,null,null,null,null,null,null,null,null,null,null,null,null,null,null,null,null,null,null,null,null,null,null,null,null,null,null,null,null,null,null,null,null,null,null,null,null,null,null,null,null,null,null,null,null,null,null,null,null,null,null,null,null,null,null,null,null,null,null,null,null,null,null,null,null,null,null,null,null,null,null,null,null,null,null,"x"]
["b)","emergency systems to shut off the equipment automatically when unsafe conditions arise, including whirlpool drains when they become clogged;",0,{"$f":"IFERROR(C249/($C$3-C253),0)","v":0},null,null,null,null,null,null,null,null,null,null,null,null,null,null,null,null,null,null,null,null,null,null,null,null,null,null,null,null,null,null,null,null,null,null,null,null,null,null,null,null,null,null,null,null,null,null,null,null,null,null,null,null,null,null,null,null,null,null,null,null,null,null,null,null,null,null,null,null,null,null,null,null,null,null,null,null,null,null,null,null,null,"x"]
["c)","drain covers and other anti-entrapment devices or systems consistent with the Virginia Graeme Baker Pool and Spa Safety Act;",0,{"$f":"IFERROR(C250/($C$3-C253),0)","v":0},null,null,null,null,null,null,null,null,null,null,null,null,null,null,null,null,null,null,null,null,null,null,null,null,null,null,null,null,null,null,null,null,null,null,null,null,null,null,null,null,null,null,null,null,null,null,null,null,null,null,null,null,null,null,null,null,null,null,null,null,null,null,null,null,null,null,null,null,null,null,null,null,null,null,null,null,null,null,null,null,null,"x"]
["d)","controls to shut off the equipment that are easily accessible by patrons in the event of an emergency; and",0,{"$f":"IFERROR(C251/($C$3-C253),0)","v":0},null,null,null,null,null,null,null,null,null,null,null,null,null,null,null,null,null,null,null,null,null,null,null,null,null,null,null,null,null,null,null,null,null,null,null,null,null,null,null,null,null,null,null,null,null,null,null,null,null,null,null,null,null,null,null,null,null,null,null,null,null,null,null,null,null,null,null,null,null,null,null,null,null,null,null,null,null,null,null,null,null,"x"]
["e)","an emergency call/alarm in the steam/sauna room that sounds at the control counter.",0,{"$f":"IFERROR(C252/($C$3-C253),0)","v":0},null,null,null,null,null,null,null,null,null,null,null,null,null,null,null,null,null,null,null,null,null,null,null,null,null,null,null,null,null,null,null,null,null,null,null,null,null,null,null,null,null,null,null,null,null,null,null,null,null,null,null,null,null,null,null,null,null,null,null,null,null,null,null,null,null,null,null,null,null,null,null,null,null,null,null,null,null,null,null,null,null,"x"]
["N/A:","The facility does not offer a sauna, steam room, or whirlpool.",{"$f":"SUM(E253:CG253)","v":0},{"$f":"IFERROR(_xlfn.IFS(SUM(E253:CG253)+COUNTA(E248:CG248) >$C$3, \"ERROR\",SUM(E253:CG253)+COUNTA(E249:CG249) >$C$3, \"ERROR\",SUM(E253:CG253)+COUNTA(E250:CG250) >$C$3, \"ERROR\",SUM(E253:CG253)+COUNTA(E251:CG251) >$C$3, \"ERROR\",(SUM(E253:CG253)+COUNTA(E252:CG252))>$C$3,\"ERROR\"),\" \")","v":" "},null,null,null,null,null,null,null,null,null,null,null,null,null,null,null,null,null,null,null,null,null,null,null,null,null,null,null,null,null,null,null,null,null,null,null,null,null,null,null,null,null,null,null,null,null,null,null,null,null,null,null,null,null,null,null,null,null,null,null,null,null,null,null,null,null,null,null,null,null,null,null,null,null,null,null,null,null,null,null,null,null,"x"]
["FIT 9.05","Whirlpool water chemistry, filtration rates, and circulation are at appropriate levels, comply with all applicable codes and industry standards, and records are kept on file to ensure compliance with the codes and standards.",0,{"$f":"IFERROR(C254/($C$3-C255),0)","v":0},null,null,null,null,null,null,null,null,null,null,null,null,null,null,null,null,null,null,null,null,null,null,null,null,null,null,null,null,null,null,null,null,null,null,null,null,null,null,null,null,null,null,null,null,null,null,null,null,null,null,null,null,null,null,null,null,null,null,null,null,null,null,null,null,null,null,null,null,null,null,null,null,null,null,null,null,null,null,null,null,null,"x"]
["N/A:","The facility does not offer a whirlpool.",0,{"$f":"IFERROR(_xlfn.IFS((SUM(E255:CG255)+COUNTA(E254:CG254))>$C$3,\"ERROR\"),\" \")","v":" "},null,null,null,null,null,null,null,null,null,null,null,null,null,null,null,null,null,null,null,null,null,null,null,null,null,null,null,null,null,null,null,null,null,null,null,null,null,null,null,null,null,null,null,null,null,null,null,null,null,null,null,null,null,null,null,null,null,null,null,null,null,null,null,null,null,null,null,null,null,null,null,null,null,null,null,null,null,null,null,null,null,"x"]
["FIT 9.06","Saunas, steam rooms, and whirlpools are kept at the following temperatures:",null,null,null,null,null,null,null,null,null,null,null,null,null,null,null,null,null,null,null,null,null,null,null,null,null,null,null,null,null,null,null,null,null,null,null,null,null,null,null,null,null,null,null,null,null,null,null,null,null,null,null,null,null,null,null,null,null,null,null,null,null,null,null,null,null,null,null,null,null,null,null,null,null,null,null,null,null,null,null,null,null,null,null,"x"]
["a)","160 to 170 degrees Fahrenheit for the sauna;",0,{"$f":"IFERROR(C257/($C$3-C260),0)","v":0},null,null,null,null,null,null,null,null,null,null,null,null,null,null,null,null,null,null,null,null,null,null,null,null,null,null,null,null,null,null,null,null,null,null,null,null,null,null,null,null,null,null,null,null,null,null,null,null,null,null,null,null,null,null,null,null,null,null,null,null,null,null,null,null,null,null,null,null,null,null,null,null,null,null,null,null,null,null,null,null,null,"x"]
["b)","100 to 110 degrees Fahrenheit for the steam room; and",0,{"$f":"IFERROR(C258/($C$3-C260),0)","v":0},null,null,null,null,null,null,null,null,null,null,null,null,null,null,null,null,null,null,null,null,null,null,null,null,null,null,null,null,null,null,null,null,null,null,null,null,null,null,null,null,null,null,null,null,null,null,null,null,null,null,null,null,null,null,null,null,null,null,null,null,null,null,null,null,null,null,null,null,null,null,null,null,null,null,null,null,null,null,null,null,null,"x"]
["c)","102 to 105 degrees Fahrenheit for the whirlpool.",{"$f":"SUM(E259:CG259)","v":0},{"$f":"IFERROR(C259/($C$3-C260),0)","v":0},null,null,null,null,null,null,null,null,null,null,null,null,null,null,null,null,null,null,null,null,null,null,null,null,null,null,null,null,null,null,null,null,null,null,null,null,null,null,null,null,null,null,null,null,null,null,null,null,null,null,null,null,null,null,null,null,null,null,null,null,null,null,null,null,null,null,null,null,null,null,null,null,null,null,null,null,null,null,null,null,null,"x"]
["N/A:","The facility does not offer either a sauna, a steam room, or a whirlpool.",0,{"$f":"IFERROR(_xlfn.IFS(SUM(E260:CG260)+COUNTA(E257:CG257) >$C$3, \"ERROR\",SUM(E260:CG260)+COUNTA(E258:CG258) >$C$3, \"ERROR\",(SUM(E260:CG260)+COUNTA(E259:CG259))>$C$3,\"ERROR\"),\" \")","v":" "},null,null,null,null,null,null,null,null,null,null,null,null,null,null,null,null,null,null,null,null,null,null,null,null,null,null,null,null,null,null,null,null,null,null,null,null,null,null,null,null,null,null,null,null,null,null,null,null,null,null,null,null,null,null,null,null,null,null,null,null,null,null,null,null,null,null,null,null,null,null,null,null,null,null,null,null,null,null,null,null,null,"x"]
["FIT 9.07","Staff are trained on proper usage, monitoring, and emergency procedures for sauna, steam, and whirlpool areas.",0,{"$f":"IFERROR(C261/($C$3-C262),0)","v":0},null,null,null,null,null,null,null,null,null,null,null,null,null,null,null,null,null,null,null,null,null,null,null,null,null,null,null,null,null,null,null,null,null,null,null,null,null,null,null,null,null,null,null,null,null,null,null,null,null,null,null,null,null,null,null,null,null,null,null,null,null,null,null,null,null,null,null,null,null,null,null,null,null,null,null,null,null,null,null,null,null,"x"]
["N/A:","The facility does not offer a sauna, steam room, or whirlpool.",{"$f":"SUM(E262:CG262)","v":0},{"$f":"IFERROR(_xlfn.IFS((SUM(E262:CG262)+COUNTA(E261:CG261))>$C$3,\"ERROR\"),\" \")","v":" "},null,null,null,null,null,null,null,null,null,null,null,null,null,null,null,null,null,null,null,null,null,null,null,null,null,null,null,null,null,null,null,null,null,null,null,null,null,null,null,null,null,null,null,null,null,null,null,null,null,null,null,null,null,null,null,null,null,null,null,null,null,null,null,null,null,null,null,null,null,null,null,null,null,null,null,null,null,null,null,null,null,"x"]
["FIT 10 - Indoor/Outdoor Space",null,null,null,null,null,null,null,null,null,null,null,null,null,null,null,null,null,null,null,null,null,null,null,null,null,null,null,null,null,null,null,null,null,null,null,null,null,null,null,null,null,null,null,null,null,null,null,null,null,null,null,null,null,null,null,null,null,null,null,null,null,null,null,null,null,null,null,null,null,null,null,null,null,null,null,null,null,null,null,null,null,null,null,null,"x"]
["Note:","See Appendix for additional information.",null,null,null,null,null,null,null,null,null,null,null,null,null,null,null,null,null,null,null,null,null,null,null,null,null,null,null,null,null,null,null,null,null,null,null,null,null,null,null,null,null,null,null,null,null,null,null,null,null,null,null,null,null,null,null,null,null,null,null,null,null,null,null,null,null,null,null,null,null,null,null,null,null,null,null,null,null,null,null,null,null,null,null,"x"]
["FIT 10.01","Facilities are well-maintained and spacious enough to ensure the comfort and safety of patrons.",0,{"$f":"IFERROR(C265/$C$3,0)","v":0},null,null,null,null,null,null,null,null,null,null,null,null,null,null,null,null,null,null,null,null,null,null,null,null,null,null,null,null,null,null,null,null,null,null,null,null,null,null,null,null,null,null,null,null,null,null,null,null,null,null,null,null,null,null,null,null,null,null,null,null,null,null,null,null,null,null,null,null,null,null,null,null,null,null,null,null,null,null,null,null,null,"x"]
["FIT 10.02","Physical activity spaces (e.g. group exercise/unit pt., gymnasium, and free weight area) are:",null,null,null,null,null,null,null,null,null,null,null,null,null,null,null,null,null,null,null,null,null,null,null,null,null,null,null,null,null,null,null,null,null,null,null,null,null,null,null,null,null,null,null,null,null,null,null,null,null,null,null,null,null,null,null,null,null,null,null,null,null,null,null,null,null,null,null,null,null,null,null,null,null,null,null,null,null,null,null,null,null,null,null,"x"]
["a)","large enough to accommodate expected patron demand;",0,0,null,null,null,null,null,null,null,null,null,null,null,null,null,null,null,null,null,null,null,null,null,null,null,null,null,null,null,null,null,null,null,null,null,null,null,null,null,null,null,null,null,null,null,null,null,null,null,null,null,null,null,null,null,null,null,null,null,null,null,null,null,null,null,null,null,null,null,null,null,null,null,null,null,null,null,null,null,null,null,null,null,"x"]
["b)","large enough to accommodate the type of equipment or activities to be conducted; and",{"$f":"SUM(E268:CG268)","v":0},{"$f":"IFERROR(C268/$C$3,0)","v":0},null,null,null,null,null,null,null,null,null,null,null,null,null,null,null,null,null,null,null,null,null,null,null,null,null,null,null,null,null,null,null,null,null,null,null,null,null,null,null,null,null,null,null,null,null,null,null,null,null,null,null,null,null,null,null,null,null,null,null,null,null,null,null,null,null,null,null,null,null,null,null,null,null,null,null,null,null,null,null,null,null,"x"]
["c)","properly illuminated.",0,0,null,null,null,null,null,null,null,null,null,null,null,null,null,null,null,null,null,null,null,null,null,null,null,null,null,null,null,null,null,null,null,null,null,null,null,null,null,null,null,null,null,null,null,null,null,null,null,null,null,null,null,null,null,null,null,null,null,null,null,null,null,null,null,null,null,null,null,null,null,null,null,null,null,null,null,null,null,null,null,null,null,"x"]
["FIT 10.03","The indoor facility is designed in a way that:",null,null,null,null,null,null,null,null,null,null,null,null,null,null,null,null,null,null,null,null,null,null,null,null,null,null,null,null,null,null,null,null,null,null,null,null,null,null,null,null,null,null,null,null,null,null,null,null,null,null,null,null,null,null,null,null,null,null,null,null,null,null,null,null,null,null,null,null,null,null,null,null,null,null,null,null,null,null,null,null,null,null,null,"x"]
["a)","separates physical activity spaces from operational, storage, and maintenance spaces;",0,{"$f":"IFERROR(C271/($C$3),0)","v":0},null,null,null,null,null,null,null,null,null,null,null,null,null,null,null,null,null,null,null,null,null,null,null,null,null,null,null,null,null,null,null,null,null,null,null,null,null,null,null,null,null,null,null,null,null,null,null,null,null,null,null,null,null,null,null,null,null,null,null,null,null,null,null,null,null,null,null,null,null,null,null,null,null,null,null,null,null,null,null,null,null,"x"]
["b)","facilitates safe and easy movement throughout the facility;",0,{"$f":"IFERROR(C272/($C$3),0)","v":0},null,null,null,null,null,null,null,null,null,null,null,null,null,null,null,null,null,null,null,null,null,null,null,null,null,null,null,null,null,null,null,null,null,null,null,null,null,null,null,null,null,null,null,null,null,null,null,null,null,null,null,null,null,null,null,null,null,null,null,null,null,null,null,null,null,null,null,null,null,null,null,null,null,null,null,null,null,null,null,null,null,"x"]
["c)","meets industry guidelines for square footage allotments; and",{"$f":"SUM(E273:CG273)","v":0},{"$f":"IFERROR(C273/$C$3,0)","v":0},null,null,null,null,null,null,null,null,null,null,null,null,null,null,null,null,null,null,null,null,null,null,null,null,null,null,null,null,null,null,null,null,null,null,null,null,null,null,null,null,null,null,null,null,null,null,null,null,null,null,null,null,null,null,null,null,null,null,null,null,null,null,null,null,null,null,null,null,null,null,null,null,null,null,null,null,null,null,null,null,null,"x"]
["d)","maximizes line of sight.",0,0,null,null,null,null,null,null,null,null,null,null,null,null,null,null,null,null,null,null,null,null,null,null,null,null,null,null,null,null,null,null,null,null,null,null,null,null,null,null,null,null,null,null,null,null,null,null,null,null,null,null,null,null,null,null,null,null,null,null,null,null,null,null,null,null,null,null,null,null,null,null,null,null,null,null,null,null,null,null,null,null,null,"x"]
["Note:","See Appendix for additional information.",null,null,null,null,null,null,null,null,null,null,null,null,null,null,null,null,null,null,null,null,null,null,null,null,null,null,null,null,null,null,null,null,null,null,null,null,null,null,null,null,null,null,null,null,null,null,null,null,null,null,null,null,null,null,null,null,null,null,null,null,null,null,null,null,null,null,null,null,null,null,null,null,null,null,null,null,null,null,null,null,null,null,null,"x"]
["FIT 10.04","HVAC system in each fitness center facility complies with the American College of Sports Medicine guidelines and standards.",0,{"$f":"IFERROR(C276/($C$3-C277),0)","v":0},null,null,null,null,null,null,null,null,null,null,null,null,null,null,null,null,null,null,null,null,null,null,null,null,null,null,null,null,null,null,null,null,null,null,null,null,null,null,null,null,null,null,null,null,null,null,null,null,null,null,null,null,null,null,null,null,null,null,null,null,null,null,null,null,null,null,null,null,null,null,null,null,null,null,null,null,null,null,null,null,null,"x"]
["N/A:","The facility was not constructed with full HVAC due to local area guidelines.",{"$f":"SUM(E277:CG277)","v":0},{"$f":"IFERROR(_xlfn.IFS((SUM(E277:CG277)+COUNTA(E276:CG276))>$C$3,\"ERROR\"),\" \")","v":" "},null,null,null,null,null,null,null,null,null,null,null,null,null,null,null,null,null,null,null,null,null,null,null,null,null,null,null,null,null,null,null,null,null,null,null,null,null,null,null,null,null,null,null,null,null,null,null,null,null,null,null,null,null,null,null,null,null,null,null,null,null,null,null,null,null,null,null,null,null,null,null,null,null,null,null,null,null,null,null,null,null,"x"]
["Note:","See Appendix for additional information.",null,null,null,null,null,null,null,null,null,null,null,null,null,null,null,null,null,null,null,null,null,null,null,null,null,null,null,null,null,null,null,null,null,null,null,null,null,null,null,null,null,null,null,null,null,null,null,null,null,null,null,null,null,null,null,null,null,null,null,null,null,null,null,null,null,null,null,null,null,null,null,null,null,null,null,null,null,null,null,null,null,null,null,"x"]
["FIT 10.05","Indoor facility lay-out minimizes the negative impact of noise-generating activities on surrounding activity and non-activity areas.",0,{"$f":"IFERROR(C279/($C$3),0)","v":0},null,null,null,null,null,null,null,null,null,null,null,null,null,null,null,null,null,null,null,null,null,null,null,null,null,null,null,null,null,null,null,null,null,null,null,null,null,null,null,null,null,null,null,null,null,null,null,null,null,null,null,null,null,null,null,null,null,null,null,null,null,null,null,null,null,null,null,null,null,null,null,null,null,null,null,null,null,null,null,null,null,"x"]
["FIT 10.06","Floor surfaces are appropriate to the activity being conducted and provide the proper level of absorption and slip resistance to minimize the risk of impact or fall-related injuries.",{"$f":"SUM(E280:CG280)","v":0},{"$f":"IFERROR(C280/$C$3,0)","v":0},null,null,null,null,null,null,null,null,null,null,null,null,null,null,null,null,null,null,null,null,null,null,null,null,null,null,null,null,null,null,null,null,null,null,null,null,null,null,null,null,null,null,null,null,null,null,null,null,null,null,null,null,null,null,null,null,null,null,null,null,null,null,null,null,null,null,null,null,null,null,null,null,null,null,null,null,null,null,null,null,null,"x"]
["Note:","See Appendix for additional information.",null,null,null,null,null,null,null,null,null,null,null,null,null,null,null,null,null,null,null,null,null,null,null,null,null,null,null,null,null,null,null,null,null,null,null,null,null,null,null,null,null,null,null,null,null,null,null,null,null,null,null,null,null,null,null,null,null,null,null,null,null,null,null,null,null,null,null,null,null,null,null,null,null,null,null,null,null,null,null,null,null,null,null,"x"]
["FIT 10.07","All MWR-owned physical activity areas have a clock, a chart of target heart rates, and a chart depicting ratings of perceived exertion to enable patrons to monitor their level of physical exertion.",{"$f":"SUM(E282:CG282)","v":0},{"$f":"IFERROR(C282/($C$3),0)","v":0},null,null,null,null,null,null,null,null,null,null,null,null,null,null,null,null,null,null,null,null,null,null,null,null,null,null,null,null,null,null,null,null,null,null,null,null,null,null,null,null,null,null,null,null,null,null,null,null,null,null,null,null,null,null,null,null,null,null,null,null,null,null,null,null,null,null,null,null,null,null,null,null,null,null,null,null,null,null,null,null,null,"x"]
["FIT 10.08","Facilities have locker rooms, restrooms, and showers that are available to patrons and are:",null,null,null,null,null,null,null,null,null,null,null,null,null,null,null,null,null,null,null,null,null,null,null,null,null,null,null,null,null,null,null,null,null,null,null,null,null,null,null,null,null,null,null,null,null,null,null,null,null,null,null,null,null,null,null,null,null,null,null,null,null,null,null,null,null,null,null,null,null,null,null,null,null,null,null,null,null,null,null,null,null,null,null,"x"]
["a)","properly illuminated;",{"$f":"SUM(E284:CG284)","v":0},{"$f":"IFERROR(C284/$C$3,0)","v":0},null,null,null,null,null,null,null,null,null,null,null,null,null,null,null,null,null,null,null,null,null,null,null,null,null,null,null,null,null,null,null,null,null,null,null,null,null,null,null,null,null,null,null,null,null,null,null,null,null,null,null,null,null,null,null,null,null,null,null,null,null,null,null,null,null,null,null,null,null,null,null,null,null,null,null,null,null,null,null,null,null,"x"]
["b)","large enough to accommodate expected user demand;",{"$f":"SUM(E285:CG285)","v":0},0,null,null,null,null,null,null,null,null,null,null,null,null,null,null,null,null,null,null,null,null,null,null,null,null,null,null,null,null,null,null,null,null,null,null,null,null,null,null,null,null,null,null,null,null,null,null,null,null,null,null,null,null,null,null,null,null,null,null,null,null,null,null,null,null,null,null,null,null,null,null,null,null,null,null,null,null,null,null,null,null,null,"x"]
["c)","well-ventilated using negative exhaust to pull damp air out of wet areas such as showers and steam rooms, and control excessive odor, heat, and humidity;",0,0,null,null,null,null,null,null,null,null,null,null,null,null,null,null,null,null,null,null,null,null,null,null,null,null,null,null,null,null,null,null,null,null,null,null,null,null,null,null,null,null,null,null,null,null,null,null,null,null,null,null,null,null,null,null,null,null,null,null,null,null,null,null,null,null,null,null,null,null,null,null,null,null,null,null,null,null,null,null,null,null,null,"x"]
["d)","designed with non-skid floor surfaces;",{"$f":"SUM(E287:CG287)","v":0},0,null,null,null,null,null,null,null,null,null,null,null,null,null,null,null,null,null,null,null,null,null,null,null,null,null,null,null,null,null,null,null,null,null,null,null,null,null,null,null,null,null,null,null,null,null,null,null,null,null,null,null,null,null,null,null,null,null,null,null,null,null,null,null,null,null,null,null,null,null,null,null,null,null,null,null,null,null,null,null,null,null,"x"]
["e)","designed with materials and finishes that are water and humidity resistant and easily maintained; and",0,0,null,null,null,null,null,null,null,null,null,null,null,null,null,null,null,null,null,null,null,null,null,null,null,null,null,null,null,null,null,null,null,null,null,null,null,null,null,null,null,null,null,null,null,null,null,null,null,null,null,null,null,null,null,null,null,null,null,null,null,null,null,null,null,null,null,null,null,null,null,null,null,null,null,null,null,null,null,null,null,null,null,"x"]
["f)","cleaned according to industry or Service identified standards.",0,0,null,null,null,null,null,null,null,null,null,null,null,null,null,null,null,null,null,null,null,null,null,null,null,null,null,null,null,null,null,null,null,null,null,null,null,null,null,null,null,null,null,null,null,null,null,null,null,null,null,null,null,null,null,null,null,null,null,null,null,null,null,null,null,null,null,null,null,null,null,null,null,null,null,null,null,null,null,null,null,null,null,"x"]
["Note:","See FIT 4.08 for detailed cleaning schedules.",null,null,null,null,null,null,null,null,null,null,null,null,null,null,null,null,null,null,null,null,null,null,null,null,null,null,null,null,null,null,null,null,null,null,null,null,null,null,null,null,null,null,null,null,null,null,null,null,null,null,null,null,null,null,null,null,null,null,null,null,null,null,null,null,null,null,null,null,null,null,null,null,null,null,null,null,null,null,null,null,null,null,null,"x"]
["Note:","See Appendix for additional information.",null,null,null,null,null,null,null,null,null,null,null,null,null,null,null,null,null,null,null,null,null,null,null,null,null,null,null,null,null,null,null,null,null,null,null,null,null,null,null,null,null,null,null,null,null,null,null,null,null,null,null,null,null,null,null,null,null,null,null,null,null,null,null,null,null,null,null,null,null,null,null,null,null,null,null,null,null,null,null,null,null,null,null,"x"]
["FIT 10.09","Indoor play courts:",null,null,null,null,null,null,null,null,null,null,null,null,null,null,null,null,null,null,null,null,null,null,null,null,null,null,null,null,null,null,null,null,null,null,null,null,null,null,null,null,null,null,null,null,null,null,null,null,null,null,null,null,null,null,null,null,null,null,null,null,null,null,null,null,null,null,null,null,null,null,null,null,null,null,null,null,null,null,null,null,null,null,null,"x"]
["a)","meet required dimensions and have the specific markings established by the respective sport’s governing body when abiding by the sport's governing body rules; and",0,{"$f":"IFERROR(C293/($C$3-C295),0)","v":0},null,null,null,null,null,null,null,null,null,null,null,null,null,null,null,null,null,null,null,null,null,null,null,null,null,null,null,null,null,null,null,null,null,null,null,null,null,null,null,null,null,null,null,null,null,null,null,null,null,null,null,null,null,null,null,null,null,null,null,null,null,null,null,null,null,null,null,null,null,null,null,null,null,null,null,null,null,null,null,null,null,"x"]
["b)","are inspected regularly to identify maintenance or repair needs.",{"$f":"SUM(E294:CG294)","v":0},{"$f":"IFERROR(C294/($C$3-C295),0)","v":0},null,null,null,null,null,null,null,null,null,null,null,null,null,null,null,null,null,null,null,null,null,null,null,null,null,null,null,null,null,null,null,null,null,null,null,null,null,null,null,null,null,null,null,null,null,null,null,null,null,null,null,null,null,null,null,null,null,null,null,null,null,null,null,null,null,null,null,null,null,null,null,null,null,null,null,null,null,null,null,null,null,"x"]
["N/A:","The facility does not offer indoor courts.",{"$f":"SUM(E295:CG295)","v":0},{"$f":"IFERROR(_xlfn.IFS(SUM(E295:CG295)+COUNTA(E293:CG293) >$C$3, \"ERROR\",(SUM(E295:CG295)+COUNTA(E294:CG294))>$C$3,\"ERROR\"),\" \")","v":" "},null,null,null,null,null,null,null,null,null,null,null,null,null,null,null,null,null,null,null,null,null,null,null,null,null,null,null,null,null,null,null,null,null,null,null,null,null,null,null,null,null,null,null,null,null,null,null,null,null,null,null,null,null,null,null,null,null,null,null,null,null,null,null,null,null,null,null,null,null,null,null,null,null,null,null,null,null,null,null,null,null,"x"]
["Note:","See Appendix for additional information.",null,null,null,null,null,null,null,null,null,null,null,null,null,null,null,null,null,null,null,null,null,null,null,null,null,null,null,null,null,null,null,null,null,null,null,null,null,null,null,null,null,null,null,null,null,null,null,null,null,null,null,null,null,null,null,null,null,null,null,null,null,null,null,null,null,null,null,null,null,null,null,null,null,null,null,null,null,null,null,null,null,null,null,"x"]
["FIT 10.10","Installations provide:",null,null,null,null,null,null,null,null,null,null,null,null,null,null,null,null,null,null,null,null,null,null,null,null,null,null,null,null,null,null,null,null,null,null,null,null,null,null,null,null,null,null,null,null,null,null,null,null,null,null,null,null,null,null,null,null,null,null,null,null,null,null,null,null,null,null,null,null,null,null,null,null,null,null,null,null,null,null,null,null,null,null,null,"x"]
["a)","unit sports and athletic programs that support morale, overall physical readiness, esprit de corps, unit cohesion, and military readiness;",0,{"$f":"IFERROR(C298/($C$3-C302),0)","v":0},null,null,null,null,null,null,null,null,null,null,null,null,null,null,null,null,null,null,null,null,null,null,null,null,null,null,null,null,null,null,null,null,null,null,null,null,null,null,null,null,null,null,null,null,null,null,null,null,null,null,null,null,null,null,null,null,null,null,null,null,null,null,null,null,null,null,null,null,null,null,null,null,null,null,null,null,null,null,null,null,null,"x"]
["b)","a running track or jogging trail within a reasonable commute;",0,{"$f":"IFERROR(C299/($C$3-C302),0)","v":0},null,null,null,null,null,null,null,null,null,null,null,null,null,null,null,null,null,null,null,null,null,null,null,null,null,null,null,null,null,null,null,null,null,null,null,null,null,null,null,null,null,null,null,null,null,null,null,null,null,null,null,null,null,null,null,null,null,null,null,null,null,null,null,null,null,null,null,null,null,null,null,null,null,null,null,null,null,null,null,null,null,"x"]
["c)","outdoor fields/courts that meet required dimensions and have the specific markings established by the respective sport’s governing body when abiding by the sport's governing body rules; and",0,{"$f":"IFERROR(C300/($C$3-C302),0)","v":0},null,null,null,null,null,null,null,null,null,null,null,null,null,null,null,null,null,null,null,null,null,null,null,null,null,null,null,null,null,null,null,null,null,null,null,null,null,null,null,null,null,null,null,null,null,null,null,null,null,null,null,null,null,null,null,null,null,null,null,null,null,null,null,null,null,null,null,null,null,null,null,null,null,null,null,null,null,null,null,null,null,"x"]
["d)","regular inspections of outdoor fields/courts to identify maintenance or repair needs.",{"$f":"SUM(E301:CG301)","v":0},{"$f":"IFERROR(C301/($C$3-C302),0)","v":0},null,null,null,null,null,null,null,null,null,null,null,null,null,null,null,null,null,null,null,null,null,null,null,null,null,null,null,null,null,null,null,null,null,null,null,null,null,null,null,null,null,null,null,null,null,null,null,null,null,null,null,null,null,null,null,null,null,null,null,null,null,null,null,null,null,null,null,null,null,null,null,null,null,null,null,null,null,null,null,null,null,"x"]
["N/A:","The facility does not offer courts and/or fields.",{"$f":"SUM(E302:CG302)","v":0},{"$f":"IFERROR(_xlfn.IFS(SUM(E302:CG302)+COUNTA(E298:CG298) >$C$3, \"ERROR\",SUM(E302:CG302)+COUNTA(E299:CG299) >$C$3, \"ERROR\",SUM(E302:CG302)+COUNTA(E300:CG300) >$C$3, \"ERROR\",(SUM(E302:CG302)+COUNTA(E301:CG301))>$C$3,\"ERROR\"),\" \")","v":" "},null,null,null,null,null,null,null,null,null,null,null,null,null,null,null,null,null,null,null,null,null,null,null,null,null,null,null,null,null,null,null,null,null,null,null,null,null,null,null,null,null,null,null,null,null,null,null,null,null,null,null,null,null,null,null,null,null,null,null,null,null,null,null,null,null,null,null,null,null,null,null,null,null,null,null,null,null,null,null,null,null,"x"]
["FIT 11 - Auxiliary Services",null,null,null,null,null,null,null,null,null,null,null,null,null,null,null,null,null,null,null,null,null,null,null,null,null,null,null,null,null,null,null,null,null,null,null,null,null,null,null,null,null,null,null,null,null,null,null,null,null,null,null,null,null,null,null,null,null,null,null,null,null,null,null,null,null,null,null,null,null,null,null,null,null,null,null,null,null,null,null,null,null,null,null,null,"x"]
["FIT 11.01","All specialty areas (e.g., dietitians, massage therapists, martial arts instructors) should meet industry standards for required licenses, certification, and educational background.",0,{"$f":"IFERROR(C304/($C$3-C305),0)","v":0},null,null,null,null,null,null,null,null,null,null,null,null,null,null,null,null,null,null,null,null,null,null,null,null,null,null,null,null,null,null,null,null,null,null,null,null,null,null,null,null,null,null,null,null,null,null,null,null,null,null,null,null,null,null,null,null,null,null,null,null,null,null,null,null,null,null,null,null,null,null,null,null,null,null,null,null,null,null,null,null,null,"x"]
["N/A:","The facility does not offer auxiliary services.",{"$f":"SUM(E305:CG305)","v":0},{"$f":"IFERROR(_xlfn.IFS((SUM(E305:CG305)+COUNTA(E304:CG304))>$C$3,\"ERROR\"),\" \")","v":" "},null,null,null,null,null,null,null,null,null,null,null,null,null,null,null,null,null,null,null,null,null,null,null,null,null,null,null,null,null,null,null,null,null,null,null,null,null,null,null,null,null,null,null,null,null,null,null,null,null,null,null,null,null,null,null,null,null,null,null,null,null,null,null,null,null,null,null,null,null,null,null,null,null,null,null,null,null,null,null,null,null,"x"]
["Note:","See Table 3 for Accepted Accreditations and Certifications.",null,null,null,null,null,null,null,null,null,null,null,null,null,null,null,null,null,null,null,null,null,null,null,null,null,null,null,null,null,null,null,null,null,null,null,null,null,null,null,null,null,null,null,null,null,null,null,null,null,null,null,null,null,null,null,null,null,null,null,null,null,null,null,null,null,null,null,null,null,null,null,null,null,null,null,null,null,null,null,null,null,null,null,"x"]
["FIT 12 - Staff Qualifications",null,null,null,null,null,null,null,null,null,null,null,null,null,null,null,null,null,null,null,null,null,null,null,null,null,null,null,null,null,null,null,null,null,null,null,null,null,null,null,null,null,null,null,null,null,null,null,null,null,null,null,null,null,null,null,null,null,null,null,null,null,null,null,null,null,null,null,null,null,null,null,null,null,null,null,null,null,null,null,null,null,null,null,null,"x"]
["FIT 12.01","Fitness personnel have the education, formal training, and experience needed to facilitate and oversee safe, effective use of the facility and associated programs.",{"$f":"SUM(E308:CG308)","v":0},{"$f":"IFERROR(C308/($C$3-C309),0)","v":0},null,null,null,null,null,null,null,null,null,null,null,null,null,null,null,null,null,null,null,null,null,null,null,null,null,null,null,null,null,null,null,null,null,null,null,null,null,null,null,null,null,null,null,null,null,null,null,null,null,null,null,null,null,null,null,null,null,null,null,null,null,null,null,null,null,null,null,null,null,null,null,null,null,null,null,null,null,null,null,null,null,"x"]
["N/A:","The facility is fully unstaffed.",{"$f":"SUM(E309:CG309)","v":0},{"$f":"IFERROR(_xlfn.IFS((SUM(E309:CG309)+COUNTA(E308:CG308))>$C$3,\"ERROR\"),\" \")","v":" "},null,null,null,null,null,null,null,null,null,null,null,null,null,null,null,null,null,null,null,null,null,null,null,null,null,null,null,null,null,null,null,null,null,null,null,null,null,null,null,null,null,null,null,null,null,null,null,null,null,null,null,null,null,null,null,null,null,null,null,null,null,null,null,null,null,null,null,null,null,null,null,null,null,null,null,null,null,null,null,null,null,"x"]
["Note:","See Appendix for additional information.",null,null,null,null,null,null,null,null,null,null,null,null,null,null,null,null,null,null,null,null,null,null,null,null,null,null,null,null,null,null,null,null,null,null,null,null,null,null,null,null,null,null,null,null,null,null,null,null,null,null,null,null,null,null,null,null,null,null,null,null,null,null,null,null,null,null,null,null,null,null,null,null,null,null,null,null,null,null,null,null,null,null,null,"x"]
["FIT 12.02","Professional staff meet current, accepted professional standards in their field and operate within the code and limits of their profession.",0,{"$f":"IFERROR(C311/($C$3-C312),0)","v":0},null,null,null,null,null,null,null,null,null,null,null,null,null,null,null,null,null,null,null,null,null,null,null,null,null,null,null,null,null,null,null,null,null,null,null,null,null,null,null,null,null,null,null,null,null,null,null,null,null,null,null,null,null,null,null,null,null,null,null,null,null,null,null,null,null,null,null,null,null,null,null,null,null,null,null,null,null,null,null,null,null,"x"]
["N/A:","The facility is fully unstaffed.",{"$f":"SUM(E312:CG312)","v":0},{"$f":"IFERROR(_xlfn.IFS((SUM(E312:CG312)+COUNTA(E311:CG311))>$C$3,\"ERROR\"),\" \")","v":" "},null,null,null,null,null,null,null,null,null,null,null,null,null,null,null,null,null,null,null,null,null,null,null,null,null,null,null,null,null,null,null,null,null,null,null,null,null,null,null,null,null,null,null,null,null,null,null,null,null,null,null,null,null,null,null,null,null,null,null,null,null,null,null,null,null,null,null,null,null,null,null,null,null,null,null,null,null,null,null,null,null,"x"]
["Note:","See Table 3 for Accepted Accreditations and Certifications.",null,null,null,null,null,null,null,null,null,null,null,null,null,null,null,null,null,null,null,null,null,null,null,null,null,null,null,null,null,null,null,null,null,null,null,null,null,null,null,null,null,null,null,null,null,null,null,null,null,null,null,null,null,null,null,null,null,null,null,null,null,null,null,null,null,null,null,null,null,null,null,null,null,null,null,null,null,null,null,null,null,null,null,"x"]
["FIT 12.03","The Program Director has:",null,null,null,null,null,null,null,null,null,null,null,null,null,null,null,null,null,null,null,null,null,null,null,null,null,null,null,null,null,null,null,null,null,null,null,null,null,null,null,null,null,null,null,null,null,null,null,null,null,null,null,null,null,null,null,null,null,null,null,null,null,null,null,null,null,null,null,null,null,null,null,null,null,null,null,null,null,null,null,null,null,null,null,"x"]
["a)","professional certification from a National Commission for Certifying Agencies (NCCA) or Distance Education Accrediting Commission (DEAC) accredited health/fitness organization (civilian personnel only);",{"$f":"SUM(E315:CG315)","v":0},{"$f":"IFERROR(C315/$C$3,0)","v":0},null,null,null,null,null,null,null,null,null,null,null,null,null,null,null,null,null,null,null,null,null,null,null,null,null,null,null,null,null,null,null,null,null,null,null,null,null,null,null,null,null,null,null,null,null,null,null,null,null,null,null,null,null,null,null,null,null,null,null,null,null,null,null,null,null,null,null,null,null,null,null,null,null,null,null,null,null,null,null,null,null,"x"]
["b)","competency in business and the design and delivery of exercise programs; and",0,{"$f":"IFERROR(C316/$C$3,0)","v":0},null,null,null,null,null,null,null,null,null,null,null,null,null,null,null,null,null,null,null,null,null,null,null,null,null,null,null,null,null,null,null,null,null,null,null,null,null,null,null,null,null,null,null,null,null,null,null,null,null,null,null,null,null,null,null,null,null,null,null,null,null,null,null,null,null,null,null,null,null,null,null,null,null,null,null,null,null,null,null,null,null,"x"]
["c)","at least three years of experience in the fitness industry/field for civilian personnel.",0,{"$f":"IFERROR(C317/$C$3,0)","v":0},null,null,null,null,null,null,null,null,null,null,null,null,null,null,null,null,null,null,null,null,null,null,null,null,null,null,null,null,null,null,null,null,null,null,null,null,null,null,null,null,null,null,null,null,null,null,null,null,null,null,null,null,null,null,null,null,null,null,null,null,null,null,null,null,null,null,null,null,null,null,null,null,null,null,null,null,null,null,null,null,null,"x"]
["Note:","See Appendix for additional information.",null,null,null,null,null,null,null,null,null,null,null,null,null,null,null,null,null,null,null,null,null,null,null,null,null,null,null,null,null,null,null,null,null,null,null,null,null,null,null,null,null,null,null,null,null,null,null,null,null,null,null,null,null,null,null,null,null,null,null,null,null,null,null,null,null,null,null,null,null,null,null,null,null,null,null,null,null,null,null,null,null,null,null,"x"]
["Note:","See Table 3 for Accepted Accreditations and Certifications.",null,null,null,null,null,null,null,null,null,null,null,null,null,null,null,null,null,null,null,null,null,null,null,null,null,null,null,null,null,null,null,null,null,null,null,null,null,null,null,null,null,null,null,null,null,null,null,null,null,null,null,null,null,null,null,null,null,null,null,null,null,null,null,null,null,null,null,null,null,null,null,null,null,null,null,null,null,null,null,null,null,null,null,"x"]
["Note:","While Program Director and Program Manager can be two distinct roles held by two people or one role held by one person, all requirements in FIT 12.03 and FIT 12.04 should be met. ",null,null,null,null,null,null,null,null,null,null,null,null,null,null,null,null,null,null,null,null,null,null,null,null,null,null,null,null,null,null,null,null,null,null,null,null,null,null,null,null,null,null,null,null,null,null,null,null,null,null,null,null,null,null,null,null,null,null,null,null,null,null,null,null,null,null,null,null,null,null,null,null,null,null,null,null,null,null,null,null,null,null,null,"x"]
["FIT 12.04","The fitness Program Manager has:",null,null,null,null,null,null,null,null,null,null,null,null,null,null,null,null,null,null,null,null,null,null,null,null,null,null,null,null,null,null,null,null,null,null,null,null,null,null,null,null,null,null,null,null,null,null,null,null,null,null,null,null,null,null,null,null,null,null,null,null,null,null,null,null,null,null,null,null,null,null,null,null,null,null,null,null,null,null,null,null,null,null,null,"x"]
["a)","a four-year degree in exercise science or a related field for civilian personnel;",{"$f":"SUM(E322:CG322)","v":0},{"$f":"IFERROR(C322/$C$3,0)","v":0},null,null,null,null,null,null,null,null,null,null,null,null,null,null,null,null,null,null,null,null,null,null,null,null,null,null,null,null,null,null,null,null,null,null,null,null,null,null,null,null,null,null,null,null,null,null,null,null,null,null,null,null,null,null,null,null,null,null,null,null,null,null,null,null,null,null,null,null,null,null,null,null,null,null,null,null,null,null,null,null,null,"x"]
["b)","professional certification by an accredited health/fitness organization; and",0,{"$f":"IFERROR(C323/$C$3,0)","v":0},null,null,null,null,null,null,null,null,null,null,null,null,null,null,null,null,null,null,null,null,null,null,null,null,null,null,null,null,null,null,null,null,null,null,null,null,null,null,null,null,null,null,null,null,null,null,null,null,null,null,null,null,null,null,null,null,null,null,null,null,null,null,null,null,null,null,null,null,null,null,null,null,null,null,null,null,null,null,null,null,null,"x"]
["c)","at least three years of experience in the fitness industry/field for civilian personnel.",0,{"$f":"IFERROR(C324/$C$3,0)","v":0},null,null,null,null,null,null,null,null,null,null,null,null,null,null,null,null,null,null,null,null,null,null,null,null,null,null,null,null,null,null,null,null,null,null,null,null,null,null,null,null,null,null,null,null,null,null,null,null,null,null,null,null,null,null,null,null,null,null,null,null,null,null,null,null,null,null,null,null,null,null,null,null,null,null,null,null,null,null,null,null,null,"x"]
["Note:","See Appendix for additional information.",null,null,null,null,null,null,null,null,null,null,null,null,null,null,null,null,null,null,null,null,null,null,null,null,null,null,null,null,null,null,null,null,null,null,null,null,null,null,null,null,null,null,null,null,null,null,null,null,null,null,null,null,null,null,null,null,null,null,null,null,null,null,null,null,null,null,null,null,null,null,null,null,null,null,null,null,null,null,null,null,null,null,null,"x"]
["Note:","See Table 3 for Accepted Accreditations and Certifications.",null,null,null,null,null,null,null,null,null,null,null,null,null,null,null,null,null,null,null,null,null,null,null,null,null,null,null,null,null,null,null,null,null,null,null,null,null,null,null,null,null,null,null,null,null,null,null,null,null,null,null,null,null,null,null,null,null,null,null,null,null,null,null,null,null,null,null,null,null,null,null,null,null,null,null,null,null,null,null,null,null,null,null,"x"]
["FIT 12.05","Personal trainers have:",null,null,null,null,null,null,null,null,null,null,null,null,null,null,null,null,null,null,null,null,null,null,null,null,null,null,null,null,null,null,null,null,null,null,null,null,null,null,null,null,null,null,null,null,null,null,null,null,null,null,null,null,null,null,null,null,null,null,null,null,null,null,null,null,null,null,null,null,null,null,null,null,null,null,null,null,null,null,null,null,null,null,null,"x"]
["a)","a high school diploma or equivalent;",0,{"$f":"IFERROR(C328/($C$3-C331),0)","v":0},null,null,null,null,null,null,null,null,null,null,null,null,null,null,null,null,null,null,null,null,null,null,null,null,null,null,null,null,null,null,null,null,null,null,null,null,null,null,null,null,null,null,null,null,null,null,null,null,null,null,null,null,null,null,null,null,null,null,null,null,null,null,null,null,null,null,null,null,null,null,null,null,null,null,null,null,null,null,null,null,null,"x"]
["b)","a personal trainer certification from an accredited health/fitness organization; and",0,{"$f":"IFERROR(C329/($C$3-C331),0)","v":0},null,null,null,null,null,null,null,null,null,null,null,null,null,null,null,null,null,null,null,null,null,null,null,null,null,null,null,null,null,null,null,null,null,null,null,null,null,null,null,null,null,null,null,null,null,null,null,null,null,null,null,null,null,null,null,null,null,null,null,null,null,null,null,null,null,null,null,null,null,null,null,null,null,null,null,null,null,null,null,null,null,"x"]
["c)","professional competence in the physical activity program or area.",0,{"$f":"IFERROR(C330/($C$3-C331),0)","v":0},null,null,null,null,null,null,null,null,null,null,null,null,null,null,null,null,null,null,null,null,null,null,null,null,null,null,null,null,null,null,null,null,null,null,null,null,null,null,null,null,null,null,null,null,null,null,null,null,null,null,null,null,null,null,null,null,null,null,null,null,null,null,null,null,null,null,null,null,null,null,null,null,null,null,null,null,null,null,null,null,null,"x"]
["N/A:","The facility is fully unstaffed.",0,{"$f":"IFERROR(_xlfn.IFS(SUM(E331:CG331)+COUNTA(E328:CG328) >$C$3, \"ERROR\",SUM(E331:CG331)+COUNTA(E329:CG329) >$C$3, \"ERROR\",(SUM(E331:CG331)+COUNTA(E330:CG330))>$C$3,\"ERROR\"),\" \")","v":" "},null,null,null,null,null,null,null,null,null,null,null,null,null,null,null,null,null,null,null,null,null,null,null,null,null,null,null,null,null,null,null,null,null,null,null,null,null,null,null,null,null,null,null,null,null,null,null,null,null,null,null,null,null,null,null,null,null,null,null,null,null,null,null,null,null,null,null,null,null,null,null,null,null,null,null,null,null,null,null,null,null,"x"]
["Note:","See FIT 12.07 for additional requirements for fitness instructors or personal trainers working with youth.",null,null,null,null,null,null,null,null,null,null,null,null,null,null,null,null,null,null,null,null,null,null,null,null,null,null,null,null,null,null,null,null,null,null,null,null,null,null,null,null,null,null,null,null,null,null,null,null,null,null,null,null,null,null,null,null,null,null,null,null,null,null,null,null,null,null,null,null,null,null,null,null,null,null,null,null,null,null,null,null,null,null,null,"x"]
["Note:","See Appendix for additional information.",null,null,null,null,null,null,null,null,null,null,null,null,null,null,null,null,null,null,null,null,null,null,null,null,null,null,null,null,null,null,null,null,null,null,null,null,null,null,null,null,null,null,null,null,null,null,null,null,null,null,null,null,null,null,null,null,null,null,null,null,null,null,null,null,null,null,null,null,null,null,null,null,null,null,null,null,null,null,null,null,null,null,null,"x"]
["Note:","See Table 3 for Accepted Accreditations and Certifications."]
["FIT 12.06","Group fitness instructors have:"]
["a)","a high school diploma or equivalent; and",{"$f":"SUM(E336:CG336)","v":0},{"$f":"IFERROR(C336/($C$3-C338),0)","v":0},null,null,null,null,null,null,null,null,null,null,null,null,null,null,null,null,null,null,null,null,null,null,null,null,null,null,null,null,null,null,null,null,null,null,null,null,null,null,null,null,null,null,null,null,null,null,null,null,null,null,null,null,null,null,null,null,null,null,null,null,null,null,null,null,null,null,null,null,null,null,null,null,null,null,null,null,null,null,null,null,null,"x"]
["b)","a primary certification from an accredited health/fitness organization or a certification from a commercial/industry health/fitness organization approved by the Service HQ in the specific physical activity program in which they instruct (e.g. yoga, cardio dance programs).",0,{"$f":"IFERROR(C337/($C$3-C338),0)","v":0},null,null,null,null,null,null,null,null,null,null,null,null,null,null,null,null,null,null,null,null,null,null,null,null,null,null,null,null,null,null,null,null,null,null,null,null,null,null,null,null,null,null,null,null,null,null,null,null,null,null,null,null,null,null,null,null,null,null,null,null,null,null,null,null,null,null,null,null,null,null,null,null,null,null,null,null,null,null,null,null,null,"x"]
["N/A:","The facility is fully unstaffed.",0,{"$f":"IFERROR(_xlfn.IFS(SUM(E338:CG338)+COUNTA(E336:CG336) >$C$3, \"ERROR\",(SUM(E338:CG338)+COUNTA(E337:CG337))>$C$3,\"ERROR\"),\" \")","v":" "},null,null,null,null,null,null,null,null,null,null,null,null,null,null,null,null,null,null,null,null,null,null,null,null,null,null,null,null,null,null,null,null,null,null,null,null,null,null,null,null,null,null,null,null,null,null,null,null,null,null,null,null,null,null,null,null,null,null,null,null,null,null,null,null,null,null,null,null,null,null,null,null,null,null,null,null,null,null,null,null,null,"x"]
["Note:","See Appendix for additional information.",null,null,null,null,null,null,null,null,null,null,null,null,null,null,null,null,null,null,null,null,null,null,null,null,null,null,null,null,null,null,null,null,null,null,null,null,null,null,null,null,null,null,null,null,null,null,null,null,null,null,null,null,null,null,null,null,null,null,null,null,null,null,null,null,null,null,null,null,null,null,null,null,null,null,null,null,null,null,null,null,null,null,null,"x"]
["Note:","See Table 3 for Accepted Accreditations and Certifications."]
["FIT 12.07","Instructors or personal trainers working with youth (12 years and older) in strength and conditioning are qualified by:"]
["a)","appropriate certifications/education for working with youth in a fitness setting from an accredited health/fitness organization; ",{"$f":"SUM(E342:CG342)","v":0},{"$f":"IFERROR(C342/($C$3-C347),0)","v":0},null,null,null,null,null,null,null,null,null,null,null,null,null,null,null,null,null,null,null,null,null,null,null,null,null,null,null,null,null,null,null,null,null,null,null,null,null,null,null,null,null,null,null,null,null,null,null,null,null,null,null,null,null,null,null,null,null,null,null,null,null,null,null,null,null,null,null,null,null,null,null,null,null,null,null,null,null,null,null,null,null,"x"]
["b)","knowledge of the physical and psychosocial needs of youth;",0,{"$f":"IFERROR(C343/($C$3-C347),0)","v":0},null,null,null,null,null,null,null,null,null,null,null,null,null,null,null,null,null,null,null,null,null,null,null,null,null,null,null,null,null,null,null,null,null,null,null,null,null,null,null,null,null,null,null,null,null,null,null,null,null,null,null,null,null,null,null,null,null,null,null,null,null,null,null,null,null,null,null,null,null,null,null,null,null,null,null,null,null,null,null,null,null,"x"]
["c)","an understanding of youth resistance training guidelines;",0,{"$f":"IFERROR(C344/($C$3-C347),0)","v":0},null,null,null,null,null,null,null,null,null,null,null,null,null,null,null,null,null,null,null,null,null,null,null,null,null,null,null,null,null,null,null,null,null,null,null,null,null,null,null,null,null,null,null,null,null,null,null,null,null,null,null,null,null,null,null,null,null,null,null,null,null,null,null,null,null,null,null,null,null,null,null,null,null,null,null,null,null,null,null,null,null,"x"]
["d)","practical experience working with youth; and",0,{"$f":"IFERROR(C345/($C$3-C347),0)","v":0},null,null,null,null,null,null,null,null,null,null,null,null,null,null,null,null,null,null,null,null,null,null,null,null,null,null,null,null,null,null,null,null,null,null,null,null,null,null,null,null,null,null,null,null,null,null,null,null,null,null,null,null,null,null,null,null,null,null,null,null,null,null,null,null,null,null,null,null,null,null,null,null,null,null,null,null,null,null,null,null,null,"x"]
["e)","successful completion of all background check requirements according to DoDI 1402.05.",0,{"$f":"IFERROR(C346/($C$3-C347),0)","v":0},null,null,null,null,null,null,null,null,null,null,null,null,null,null,null,null,null,null,null,null,null,null,null,null,null,null,null,null,null,null,null,null,null,null,null,null,null,null,null,null,null,null,null,null,null,null,null,null,null,null,null,null,null,null,null,null,null,null,null,null,null,null,null,null,null,null,null,null,null,null,null,null,null,null,null,null,null,null,null,null,null,"x"]
["N/A:","Facility does not provide this service.",0,{"$f":"IFERROR(_xlfn.IFS(SUM(E347:CG347)+COUNTA(E342:CG342) >$C$3, \"ERROR\",SUM(E347:CG347)+COUNTA(E343:CG343) >$C$3, \"ERROR\",SUM(E347:CG347)+COUNTA(E344:CG344) >$C$3, \"ERROR\",SUM(E347:CG347)+COUNTA(E345:CG345) >$C$3, \"ERROR\",(SUM(E347:CG347)+COUNTA(E346:CG346))>$C$3,\"ERROR\"),\" \")","v":" "},null,null,null,null,null,null,null,null,null,null,null,null,null,null,null,null,null,null,null,null,null,null,null,null,null,null,null,null,null,null,null,null,null,null,null,null,null,null,null,null,null,null,null,null,null,null,null,null,null,null,null,null,null,null,null,null,null,null,null,null,null,null,null,null,null,null,null,null,null,null,null,null,null,null,null,null,null,null,null,null,null,"x"]
["FIT 12.08","Records of training and up-to-date certification are maintained in personnel records.",{"$f":"SUM(E348:CG348)","v":0},{"$f":"IFERROR(C348/$C$3,0)","v":0},null,null,null,null,null,null,null,null,null,null,null,null,null,null,null,null,null,null,null,null,null,null,null,null,null,null,null,null,null,null,null,null,null,null,null,null,null,null,null,null,null,null,null,null,null,null,null,null,null,null,null,null,null,null,null,null,null,null,null,null,null,null,null,null,null,null,null,null,null,null,null,null,null,null,null,null,null,null,null,null,null,"x"]
["FIT 12.09","All full-time fitness staff members receive a minimum of 20 hours a year of professional development training in their fitness specialty areas.",0,{"$f":"IFERROR(C349/$C$3,0)","v":0},null,null,null,null,null,null,null,null,null,null,null,null,null,null,null,null,null,null,null,null,null,null,null,null,null,null,null,null,null,null,null,null,null,null,null,null,null,null,null,null,null,null,null,null,null,null,null,null,null,null,null,null,null,null,null,null,null,null,null,null,null,null,null,null,null,null,null,null,null,null,null,null,null,null,null,null,null,null,null,null,null,"x"]
["FIT 12.10","Contract Officials are:"]
["a)","certified and/or trained through recognized and approved National Governing Body (NGB) for particular sport; and",{"$f":"SUM(E351:CG351)","v":0},{"$f":"IFERROR(C351/$C$3,0)","v":0},null,null,null,null,null,null,null,null,null,null,null,null,null,null,null,null,null,null,null,null,null,null,null,null,null,null,null,null,null,null,null,null,null,null,null,null,null,null,null,null,null,null,null,null,null,null,null,null,null,null,null,null,null,null,null,null,null,null,null,null,null,null,null,null,null,null,null,null,null,null,null,null,null,null,null,null,null,null,null,null,null,"x"]
["b)","funded through Appropriated Funds (APF) for Category A and B sports.",0,{"$f":"IFERROR(C352/$C$3,0)","v":0},null,null,null,null,null,null,null,null,null,null,null,null,null,null,null,null,null,null,null,null,null,null,null,null,null,null,null,null,null,null,null,null,null,null,null,null,null,null,null,null,null,null,null,null,null,null,null,null,null,null,null,null,null,null,null,null,null,null,null,null,null,null,null,null,null,null,null,null,null,null,null,null,null,null,null,null,null,null,null,null,null,"x"]
["Note:","See Appendix for additional information.",null,null,null,null,null,null,null,null,null,null,null,null,null,null,null,null,null,null,null,null,null,null,null,null,null,null,null,null,null,null,null,null,null,null,null,null,null,null,null,null,null,null,null,null,null,null,null,null,null,null,null,null,null,null,null,null,null,null,null,null,null,null,null,null,null,null,null,null,null,null,null,null,null,null,null,null,null,null,null,null,null,null,null,"x"]
["FIT 13 - Child Play Areas"]
["FIT 13.01","Child play areas in MWR Fitness Centers are optional and not required. Installation MWR Fitness Facility child play areas follow Service-specific child play area policies and guidelines. Installation local operating instructions, including compliance standards for cleaning, including sanitizing and disinfecting, and maintaining child play areas, are based on Service-specific child play area policy.",{"$f":"SUM(E355:CG355)","v":0},{"$f":"IFERROR(C355/($C$3-C356),0)","v":0},null,null,null,null,null,null,null,null,null,null,null,null,null,null,null,null,null,null,null,null,null,null,null,null,null,null,null,null,null,null,null,null,null,null,null,null,null,null,null,null,null,null,null,null,null,null,null,null,null,null,null,null,null,null,null,null,null,null,null,null,null,null,null,null,null,null,null,null,null,null,null,null,null,null,null,null,null,null,null,null,null,"x"]
["N/A:","Facility does not have child play areas.",{"$f":"SUM(E356:CG356)","v":0},{"$f":"IFERROR(_xlfn.IFS((SUM(E356:CG356)+COUNTA(E355:CG355))>$C$3,\"ERROR\"),\" \")","v":" "},null,null,null,null,null,null,null,null,null,null,null,null,null,null,null,null,null,null,null,null,null,null,null,null,null,null,null,null,null,null,null,null,null,null,null,null,null,null,null,null,null,null,null,null,null,null,null,null,null,null,null,null,null,null,null,null,null,null,null,null,null,null,null,null,null,null,null,null,null,null,null,null,null,null,null,null,null,null,null,null,null,"x"]
["Note:","See Appendix for additional information.",null,null,null,null,null,null,null,null,null,null,null,null,null,null,null,null,null,null,null,null,null,null,null,null,null,null,null,null,null,null,null,null,null,null,null,null,null,null,null,null,null,null,null,null,null,null,null,null,null,null,null,null,null,null,null,null,null,null,null,null,null,null,null,null,null,null,null,null,null,null,null,null,null,null,null,null,null,null,null,null,null,null,null,"x"]
["FIT 1 - Pre-Activity Screening",null,{"$f":"SUM(C7:C14)","v":0},{"$f":"IFERROR(C358/($C$3*COUNT(D7:D14)),0)","v":0}]
["FIT 2 - Administrative Operations",null,{"$f":"SUM(C16:C20,C22:C25,C27:C31)","v":0},{"$f":"IFERROR(C359/($C$3*COUNT(D16:D31)-(C21*2+C26*2)),0)","v":0}]
["FIT 3 - Client Supervision and Monitoring for Staffed Facilities",null,{"$f":"SUM(C33,C35:C39,C41:C45,C48)","v":0},{"$f":"IFERROR(C360/($C$3*COUNT(D33:D50)-(C34+C40*4+C46*4+C49)),\"N/A\")","v":"N/A"}]
["FIT 4 - Health, Safety, and Security Issues",null,{"$f":"SUM(C52:C55,C58:C62,C64:C74,C77:C87)","v":0},{"$f":"IFERROR(C361/($C$3*COUNT(D52:D88)-(C56*3+C63+C75*3+C88)),0)","v":0}]
["FIT 5 - Public Access Defibrillation (PAD) Program",null,{"$f":"SUM(C92:C111)","v":0},{"$f":"IFERROR(C362/($C$3*COUNT(D91:D111)),0)","v":0}]
["FIT 6 - Requirements for Unstaffed MWR Facilities",null,{"$f":"SUM(C114:C116,C120:C124,C127:C129,C132:C135,C138:C140,C142,C144,C146,C148,C150,C153)","v":0},{"$f":"IFERROR(C363/($C$3*COUNT(D114:D154)-(C117*3+C125*5+C130*3+C136*4+C141*3+C143+C145+C147+C149+C151+C154)),\"N/A\")","v":"N/A"}]
["FIT 7 - Designing a Fitness Program",null,{"$f":"SUM(C156:C160,C163:C165,C168:C174,C176:C177,C180:C186)","v":0},{"$f":"IFERROR(C364/($C$3*COUNT(D156:D186)-(C161*3+C166*2+C175*6+C178)),0)","v":0}]
["FIT 8 - Facility Equipment",null,{"$f":"SUM(C188:C223)","v":0},{"$f":"IFERROR(C365/($C$3*COUNT(D188:D223)),0)","v":0}]
["FIT 9 - Sauna, Steam, and Whirlpool Facilities",null,{"$f":"SUM(C225,C227:C233,C235:C244,C246:C252,C254,C256:C259,C261)","v":0},{"$f":"IFERROR(C366/($C$3*COUNT(D225:D262)-(C226+C234*5+C245*9+C253*5+C255+C260*3+C262)),\"N/A\")","v":"N/A"}]
["FIT 10 - Indoor/Outdoor Space",null,{"$f":"SUM(C265:C276,C278:C294,C296:C301)","v":0},{"$f":"IFERROR(C367/($C$3*COUNT(D265:D302)-(C277+C295*2+C302*4)),0)","v":0}]
["FIT 11 - Auxiliary Services",null,{"$f":"SUM(C304)","v":0},{"$f":"IFERROR(C368/($C$3*COUNT(D304)-C305),\"N/A\")","v":"N/A"}]
["FIT 12 - Staff Qualifications",null,{"$f":"SUM(C308,C311,C313:C330,C332:C337,C339:C346,C348:C353)","v":0},{"$f":"IFERROR(C369/(($C$3*COUNT(D308:D352))-(C309+C312+C331*3+C338*2+C347*5)),0)","v":0}]
["FIT 13 - Child Play Areas",null,{"$f":"SUM(C355)","v":0},{"$f":"IFERROR(C370/($C$3-C356),\"N/A\")","v":"N/A"}]
["Total -",null,{"$f":"SUM(C358:C370)","v":0},{"$f":"IFERROR(SUM(C7:C13,C16:C20,C22:C25,C27:C31,C33,C35:C39,C41:C45,C48,C52:C55,C58:C62,C64:C74,C76:C87,C92:C116,C118:C124,C126:C129,C131:C135,C137:C140,C142,C144,C146,C148,C150,C153,C156:C160,C162:C165,C167:C174,C177,C179:C225,C228:C233,C235:C244,C246:C252,C254,C256:C259,C261,C265:C276,C278:C294,C296:C301,C304,C308,C311,C313:C330,C332:C337,C339:C346,C348:C353,C355)/(C3*201-(C21*2+C26*2+C34+C40*4+C46*4+C49+C56*3+C63+C75*3+C88+C117*3+C125*5+C130*3+C136*4+C141*3+C143+C145+C147+C149+C151+C154+C161*3+C166*2+C175*6+C178+C226+C234*5+C245*9+C253*5+C255+C260*3+C262+C277+C295*2+C302*4+C305+C309+C312+C331*3+C338*2+C347*5+C356)),0)","v":0}]

{"sheet":"Comments","index":2,"n_rows":356,"n_cols":2,"rows_kept":356,"cut":false,"hidden":false,"merged":[]}
[null,"Fitness Center Standards Compliance Report Comments"]
[null,"Installation Name:"]
[]
[null,"Standard"]
["FIT 1 - Pre-Activity Screening"]
["FIT 1.01","A pre-activity tool, such as a Physical Activity Readiness Questionnaire, is posted within the facility via appropriate signage to increase awareness regarding safe exercise or exercising safely."]
["Note:","See Appendix for additional information."]
["FIT 1.02","Pre-activity screening tools are: "]
["a)","made available to all patrons who request a pre-activity screening tool;"]
["b)","quick, simple, and easy to implement; and"]
["c)","cost-effective."]
["FIT 1.03","If the pre-activity screening tool identifies the presence of a known medical concern, diagnosis, or multiple risk factors, the patron is advised to consult with a qualified medical practitioner prior to beginning a physical fitness program."]
["Note:","See Appendix for additional information."]
["FIT 2 - Administration Operations"]
["FIT 2.01","Administrative operations ensure facility offerings are accessible to prospective patrons and meet an identified need within the military community in accordance with DoD standards."]
["FIT 2.02","The facility complies with applicable federal law or regulation."]
["FIT 2.03","Operating hours at the main staffed fitness facilities on the installation:"]
["a)","add up to a minimum of 90 staffed hours of operation per week; and"]
["b)","accommodate irregular duty hours."]
["N/A:","This installation does not have a main staffed physical fitness facility."]
["FIT 2.04","Each facility maintains a utilization log of some type to monitor usage levels."]
["FIT 2.05","The facility encourages participation by:"]
["a)","offering programming that meets the physical fitness needs of the military community; and"]
["b)","providing partnership opportunities in the military/local community."]
["N/A:","The facility is unstaffed or in an isolated/remote location."]
["FIT 2.06","New patrons are offered an orientation to the facility activities and equipment prior to their participation."]
["Note:","See Appendix for additional information."]
["FIT 2.07","Patrons have access to a schedule of events or programs that are available to them."]
["FIT 2.08","Each facility has a centralized location for the communication and dissemination of relevant information to patrons."]
["FIT 2.09","The facility maintains a comprehensive fitness and health resource for patrons with interests or needs that cannot be met by the fitness facility."]
["FIT 3 - Client Supervision and Monitoring for Staffed Facilities"]
["FIT 3.01","Qualified staff with approved DoD or Service certifications/credentials are available to provide supervision, instruction, and guidance appropriate to the activities being conducted. "]
["N/A:","The facility is fully unstaffed."]
["FIT 3.02","Staffing standards are established based on minimum staffing to ensure sufficient staff is available to respond in an emergency and to ensure health, safety, and optimum exercise benefit. Staffing standards require: "]
["a)","at least two staff on duty during all staffed hours of operation;"]
["b)","at least one certified personal trainer or fitness instructor be included in a roaming capacity and on duty at the installation during peak hours of operation;"]
["c)","consideration of customer usage levels; and"]
["d)","consideration of the scope of the program."]
["N/A:","The facility is fully unstaffed."]
["FIT 3.03","To promote effective supervision and instruction, additional staffing or technology may be needed to ensure:"]
["a)","Service-established ratios are met;"]
["b)","trained staff are able to monitor each activity;"]
["c)","staff and participants can see one another and communicate clearly, allowing quick access to individuals in need of assistance; and"]
["d)","the number or grouping of participants allows for optimal use of available equipment, space, and time."]
["N/A:","The facility is fully unstaffed."]
["Note:","See Appendix for additional information."]
["FIT 3.04","Patrons are encouraged to use spotters for certain activities through proper signage and instruction and trained staff is available, as needed, to perform this task."]
["N/A:","The facility is fully unstaffed."]
["Note:","See Appendix for additional information."]
["FIT 4 - Client Supervision and Monitoring for Staffed Facilities"]
["FIT 4.01","The health and safety of patrons and staff is promoted at all times through:"]
["a)","facility policy and procedures;"]
["b)","facility design and layout; and"]
["c)","staff training and qualifications."]
["N/A:","The facility is fully unstaffed."]
["FIT 4.02","Informational, safety, and warning signage is:"]
["a)","posted in conspicuous locations where necessary;"]
["b)","posted in accordance with applicable federal codes; and"]
["c)","legible and easily understood by the identified Service population. "]
["Note:","See Appendix for additional information."]
["FIT 4.03","All staff are trained on the facility's emergency response plan and review and practice the plan at least quarterly."]
["N/A:","The facility is fully unstaffed."]
["Note:","See Appendix for additional information."]
["FIT 4.04","The facility is equipped to handle medical emergencies including: "]
["a)","maintaining a readily available communication device, poison control information, first aid supplies and manuals, and Automatic External Defibrillators (AED) in accessible locations throughout the facility;"]
["b)","consulting with a health professional, as necessary, to develop procedures for medical emergencies; and"]
["c)","maintaining emergency contact information for staff, including volunteers."]
["Note:","See FIT 5 - Public Access Defibrillation (PAD) Program for more information on AEDs."]
["Note:","See Appendix for additional information."]
["FIT 4.05","All fitness staff, including contractors, are prepared to respond in medical emergencies through:"]
["a)","current training on basic first-aid;"]
["b)","current certification in Cardiopulmonary Resuscitation (CPR) and the use of AEDs; and"]
["c)","current training on universal precautions for preventing exposure to and transmission of blood-borne pathogens."]
["N/A:","The facility is fully unstaffed."]
["Note:","See FIT 13 - Child Play Areas for additional requirements specific to child play areas."]
["Note:","See Appendix for additional information."]
["FIT 4.06","There is a system in place to document and report all incidents and accidents that involve actual harm, injuries, and deaths to oversight entities and all staff are trained on their reporting responsibilities. "]
["Note:","See Appendix for additional information."]
["FIT 4.07","A review of immediate and ongoing risks is conducted at least annually that includes a review of incidents, accidents, and grievances related to:"]
["a)","facility safety issues; and"]
["b)","serious injuries and deaths."]
["FIT 4.08","There is a written schedule and established procedures for cleaning and disinfecting the various areas in the facility, including all equipment, and written records are maintained as evidence that it has occurred."]
["Note:","See Appendix for additional information."]
["Note:","See Table 1 for Cleaning and Disinfecting Schedule."]
["FIT 4.09","Drinking water is available to patrons and readily accessible from exercise areas."]
["FIT 4.10","Child-resistant covers, fencing, or other safety measures eliminate unsupervised access to standing water, including whirlpools, by children."]
["N/A:","Patrons do not have access to standing water such as whirlpools."]
["FIT 5 - Public Access Defibrillation (PAD) Program"]
["Note:","See Appendix for additional information."]
["FIT 5.01","The fitness facility has a PAD program in place that:"]
["a)","guides the facility’s response to a cardiac emergency;"]
["b)","prepares staff to respond in the event of a cardiac emergency; and"]
["c)","ensures proper number, placement, and maintenance of AEDs."]
["FIT 5.02","The facility has a PAD program in place that is consistent with the installation-wide plan and is:"]
["a)","developed under the guidance of the appropriate authority;"]
["b)","updated based on the most current scientific literature; and"]
["c)","reviewed by the appropriate authority to ensure legal compliance."]
["FIT 5.03","To ensure its effectiveness, the PAD program includes initiation of the local Emergency Medical Services (EMS) response."]
["FIT 5.04","AEDs in operation at the facility are regularly inspected and maintained according to manufacturers' specifications and formalized procedures."]
["Note:","See Appendix for additional information."]
["FIT 5.05","The quantity and location of AEDs is determined based on:"]
["a)","a response time of three minutes or less from the moment of collapse to the moment the AED is at the person’s side;"]
["b)","reducing the potential for tampering, theft, and misuse; and"]
["c)","ensuring close proximity to a telephone, particularly when automatic notification does not occur upon opening the cabinet or removing the device."]
["Note:","See Appendix for additional information."]
["FIT 5.06","AEDs are easily accessible and their location is well-marked, publicized, and known among trained staff."]
["FIT 5.07","Protocols are in place to initiate a post-event review within 24-hours of the incident that includes:"]
["a)","assessing the response including people, the device, and protocols;"]
["b)","completing incident reports; and"]
["c)","restocking supplies."]
["FIT 6 - Requirements for Unstaffed MWR Facilities"]
["FIT 6.01","Unstaffed facilities are authorized provided:"]
["a)","an appropriate operational risk management assessment is conducted by the garrison/installation commander;"]
["b)","patrons are informed of the risks associated with using the unstaffed facility; and"]
["c)","mechanisms are in place (e.g., CCTV, restricted areas, etc.) to protect patrons to the greatest extent possible given the limitations of the facility."]
["N/A:","The facility is fully staffed."]
["Note:","Unit specific facilities, CO approved tenant facilities, non-MWR facilities, and facilities onboard ships are excluded from all FIT 6 Standards. Lodging fitness facilities will operate per Service specific policy."]
["FIT 6.02","Unstaffed facilities must be granted appropriate waivers from Service headquarters prior to operation based on the following criteria:"]
["a)","appropriate access to fully staffed fitness facilities will be maintained for all patrons (unstaffed facilities will not eliminate the installation requirement to operate a fully staffed facility 90 hours per week);"]
["b)","there is no access to a staffed facility within a reasonable commute of the targeted geographic area;"]
["c)","the chosen facility can meet applicable Service fitness facility standards;"]
["d)","completion of a risk assessment certified by the installation Safety Office that is documented and incorporated into facility Standard Operating Procedures; and"]
["e)","additional criteria identified by each military Service."]
["N/A:","The facility is fully staffed."]
["FIT 6.03","Appropriate signage is displayed that:"]
["a)","communicates to patrons that the facility is unstaffed;"]
["b)","informs them of the inherent risk of using an unstaffed facility; and"]
["c)","indicates that by using the facility they are assuming personal responsibility and waiving the facility’s liability."]
["N/A:","The facility is fully staffed."]
["FIT 6.04","The facility uses signage and handouts to:"]
["a)","outline the proper steps for engaging in safe physical activity;"]
["b)","make self-administered, pre-activity screening tools available;"]
["c)","encourage patrons to consult with a qualified medical practitioner prior to beginning a fitness program; and"]
["d)","inform patrons of facility eligibility requirements including any age restrictions."]
["N/A:","The facility is fully staffed."]
["FIT 6.05","The facility ensures patrons can initiate an emergency response by:"]
["a)","posting emergency response procedures in highly visible areas throughout the facility;"]
["b)","making an active phone line available within the facility; and"]
["c)","posting emergency numbers and contacts by the phone."]
["N/A:","The facility is fully staffed."]
["FIT 6.06","Information on reporting an adverse incident is displayed in the facility."]
["N/A:","The facility is fully staffed."]
["FIT 6.07","Facility policy highly encourages patrons work out with a partner. "]
["N/A:","The facility is fully staffed."]
["FIT 6.08","Rules, policies, and guidelines for use of the facility are communicated to patrons and appropriately enforced when violations are reported."]
["N/A:","The facility is fully staffed."]
["FIT 6.09","Random inspections of unstaffed facilities are conducted throughout the day/evening to promote rule enforcement."]
["N/A:","The facility is fully staffed."]
["FIT 6.10","Individuals responsible for preventative maintenance and regular cleaning of the equipment and facility are identified to ensure the facility is maintained according to established procedures."]
["N/A:","The facility is fully staffed."]
["Note:","See FIT 4.08 and FIT 8.06 for more information on appropriate cleaning and maintenance schedules."]
["FIT 6.11","Unsupervised youth under the age of 18 (excluding all Active Duty) are prohibited from using unstaffed facilities and the participation of supervised youth is further limited based on the appropriateness of available equipment to their size, weight, and experience level."]
["N/A:","The facility is fully staffed."]
["FIT 7 - Designing a Fitness Program"]
["FIT 7.01","The facility offers an array of physical fitness activities that promote the development of a physical fitness program that is appropriate to the individual’s current fitness level, goals, age, and overall health."]
["FIT 7.02","Fitness programs geared towards serving individuals with elevated risk of fitness-related health issues have a medical liaison or medical advisory committee to assist in reviewing:"]
["a)","pre-activity screening protocols;"]
["b)","programming; and"]
["c)","emergency response protocols."]
["N/A:","Facility does not provide this service."]
["Note:","See Appendix for additional information."]
["FIT 7.03","When staff works one-on-one with patrons in scheduled or fee-based appointments, a record is created for each patron that contains:"]
["a)","training logs, progress entries, activity instruction, and supervision notes as applicable; and"]
["b)","results of pre-activity screenings and medical clearance, as needed."]
["N/A:","Facility does not provide this service."]
["Note:","See Appendix for additional information."]
["FIT 7.04","Facilities that offer staff-led programming designed specifically for youth under the age of 18:"]
["a)","have parents complete a waiver and release for the youth;"]
["b)","develop and inform parents of age limits;"]
["c)","develop and inform parents of policies and procedures regarding the use of restrooms and locker rooms;"]
["d)","establish sign-in and sign-out procedures if the parent will not be on-site while the youth is in the facility;"]
["e)","conduct training (to include prevention, identification, and reporting) before staff work with youth; and"]
["f)","ensure individuals (e.g., military, nonappropriated fund employees, appropriated fund employees, contractors, specified volunteers) who have regular contact with children under age 18 have a CNACI and Installation Records Check (IRC) per DoDI 1402.05."]
["N/A:","Facility does not provide this service."]
["Note:","This standard does not apply to general use of the facility by youth working out with a parent."]
["FIT 7.05","Facility follows Service-specific policies/guidelines governing the age and associated requirements for use of the facility by youth. "]
["N/A:","Facility does not provide this service."]
["Note:","See Appendix for additional information. "]
["FIT 7.06","Policies and procedures governing the use of activity areas containing free weights and exercise devices by youth under the age of 16 require:"]
["a)","youth be at least 12 years of age to participate;"]
["b)","direct supervision by a responsible qualified adult (e.g., an adult family member, legal guardian, qualified C&Y staff member, qualified coach) at all times;"]
["c)","youth access be limited to activities and equipment that are appropriate to the youth’s size, fitness level, and experience;"]
["d)","appropriate involvement of the child’s health care provider in designing the fitness program when youth are medically referred; and"]
["e)","an increased level of supervision and instruction appropriate to the age of youth."]
["Note:","See Appendix for additional information."]
["FIT 8 - Facility Equipment"]
["FIT 8.01","The quantity and quality of equipment are in accordance with Service-specific requirements to fulfill the facility’s mission."]
["FIT 8.02","The variety, amount, and availability of exercise equipment at each facility match patron needs and preferences, limit wait times, and are determined based on:"]
["a)","installation size;"]
["b)","facility size;"]
["c)","the hours of heaviest usage;"]
["d)","patrons’ preferred mode of exercise; and"]
["e)","industry guidelines."]
["Note:","See Appendix for additional information."]
["FIT 8.03","Cardiovascular equipment shall be made up of a sufficient blend of equipment to meet the needs of patrons including but not limited to:"]
["a)","treadmills;"]
["b)","stationary bikes, including a mix of upright and recumbent;"]
["c)","rowing machines; and"]
["d)","elliptical machines."]
["FIT 8.04","Free weight equipment shall be made up of a sufficient blend of equipment to meet the needs of patrons including, but not limited to:"]
["a)","free weights;"]
["b)","selectorized machines; and"]
["c)","Olympic benches."]
["FIT 8.05","Manufacturer-recommended safety equipment, such as collars, are required for patrons to promote safe use of the facility’s equipment."]
["FIT 8.06","When purchasing and installing new equipment, staff:"]
["a)","purchase commercial-grade equipment;"]
["b)","purchase equipment that will enhance the facility’s offerings;"]
["c)","ensure customer uses equipment for its intended use;"]
["d)","install equipment according to manufacturers’ instructions; and"]
["e)","inspect all equipment prior to use to ensure it is operating properly."]
["FIT 8.07","Equipment is regularly inspected and maintained according to manufacturers’ instructions and consistent with industry guidelines."]
["Note:","See Appendix for additional information."]
["Note:","See Table 2 for Preventative Maintenance Practices."]
["FIT 8.08","Equipment that is in need of repair is:"]
["a)","removed from service immediately or clearly marked \"out of order\";"]
["b)","repaired according to manufacturers' specifications; and"]
["c)","re-inspected and tested to ensure proper performance prior to use."]
["Note:","See Appendix for additional information."]
["FIT 8.09","The organization maintains records on facility equipment including:"]
["a)","manufacturer-provided user manuals, warranties, and operating guides for reference;"]
["b)","documentation of equipment selection, purchase, installation, and set-up; and"]
["c)","records of inspections, maintenance, equipment rotation plan, and repairs."]
["FIT 9 - Sauna, Steam, and Whirlpool Facilities "]
["FIT 9.01","Sauna, steam, and whirlpool facilities are maintained and properly monitored to ensure the safety of patrons."]
["N/A:","The facility does not offer a sauna, steam room, or whirlpool."]
["Note:","See Appendix for additional information."]
["FIT 9.02","Proper signage promotes safe usage of the sauna, steam room, or whirlpool by:"]
["a)","educating patrons on potential health risks, developed under the guidance of the appropriate Service authority;"]
["b)","recommending that patrons wait at least ten minutes after exercising to cool down, or until sweating has subsided, before using one of these facilities;"]
["c)","informing users of age restrictions;"]
["d)","encouraging patrons to take a soap shower prior to entering these facilities; and"]
["e)","informing patrons of an emergency call/alarm in the steam/sauna room that sounds at the control counter."]
["N/A:","The facility does not offer a sauna, steam room, or whirlpool."]
["FIT 9.03","Facilities that offer a sauna, steam room, or whirlpool to patrons post signage prohibiting:"]
["a)","food;"]
["b)","children or youth under 18 years-of-age (excluding all Active Duty);"]
["c)","spending more than ten minutes in these areas at one time;"]
["d)","shaving;"]
["e)","diving or jumping into the whirlpool;"]
["f)","use of body lotions, oils, or suntan preparations;"]
["g)","exercise in the sauna, steam room, or whirlpool;"]
["h)","submerging to the bottom of the whirlpool; and"]
["i)","use by individuals at increased risk of injury or illness unless authorized by a physician."]
["N/A:","The facility does not offer a sauna, steam room, or whirlpool."]
["Note:","See Appendix for additional information."]
["FIT 9.04","Sauna, steam room, and whirlpool areas are equipped with:"]
["a)","thermometers and time clocks visible to patrons to facilitate self-monitoring;"]
["b)","emergency systems to shut off the equipment automatically when unsafe conditions arise, including whirlpool drains when they become clogged;"]
["c)","drain covers and other anti-entrapment devices or systems consistent with the Virginia Graeme Baker Pool and Spa Safety Act;"]
["d)","controls to shut off the equipment that are easily accessible by patrons in the event of an emergency; and"]
["e)","an emergency call/alarm in the steam/sauna room that sounds at the control counter."]
["N/A:","The facility does not offer a sauna, steam room, or whirlpool."]
["FIT 9.05","Whirlpool water chemistry, filtration rates, and circulation are at appropriate levels, comply with all applicable codes and industry standards, and records are kept on file to ensure compliance with the codes and standards."]
["N/A:","The facility does not offer a whirlpool."]
["FIT 9.06","Saunas, steam rooms, and whirlpools are kept at the following temperatures:"]
["a)","160 to 170 degrees Fahrenheit for the sauna;"]
["b)","100 to 110 degrees Fahrenheit for the steam room; and"]
["c)","102 to 105 degrees Fahrenheit for the whirlpool."]
["N/A:","The facility does not offer either a sauna, a steam room, or a whirlpool."]
["FIT 9.07","Staff are trained on proper usage, monitoring, and emergency procedures for sauna, steam, and whirlpool areas."]
["N/A:","The facility does not offer a sauna, steam room, or whirlpool."]
["FIT 10 - Indoor/Outdoor Space"]
["Note:","See Appendix for additional information."]
["FIT 10.01","Facilities are well-maintained and spacious enough to ensure the comfort and safety of patrons."]
["FIT 10.02","Physical activity spaces (e.g. group exercise/unit pt., gymnasium, and free weight area) are:"]
["a)","large enough to accommodate expected patron demand;"]
["b)","large enough to accommodate the type of equipment or activities to be conducted; and"]
["c)","properly illuminated."]
["FIT 10.03","The indoor facility is designed in a way that:"]
["a)","separates physical activity spaces from operational, storage, and maintenance spaces;"]
["b)","facilitates safe and easy movement throughout the facility;"]
["c)","meets industry guidelines for square footage allotments; and"]
["d)","maximizes line of sight."]
["Note:","See Appendix for additional information."]
["FIT 10.04","HVAC system in each fitness center facility complies with the American College of Sports Medicine guidelines and standards."]
["N/A:","The facility was not constructed with full HVAC due to local area guidelines."]
["Note:","See Appendix for additional information."]
["FIT 10.05","Indoor facility lay-out minimizes the negative impact of noise-generating activities on surrounding activity and non-activity areas."]
["FIT 10.06","Floor surfaces are appropriate to the activity being conducted and provide the proper level of absorption and slip resistance to minimize the risk of impact or fall-related injuries."]
["Note:","See Appendix for additional information."]
["FIT 10.07","All MWR-owned physical activity areas have a clock, a chart of target heart rates, and a chart depicting ratings of perceived exertion to enable patrons to monitor their level of physical exertion."]
["FIT 10.08","Facilities have locker rooms, restrooms, and showers that are available to patrons and are:"]
["a)","properly illuminated;"]
["b)","large enough to accommodate expected user demand;"]
["c)","well-ventilated using negative exhaust to pull damp air out of wet areas such as showers and steam rooms, and control excessive odor, heat, and humidity;"]
["d)","designed with non-skid floor surfaces;"]
["e)","designed with materials and finishes that are water and humidity resistant and easily maintained; and"]
["f)","cleaned according to industry or Service identified standards."]
["Note:","See FIT 4.08 for detailed cleaning schedules."]
["Note:","See Appendix for additional information."]
["FIT 10.09","Indoor play courts:"]
["a)","meet required dimensions and have the specific markings established by the respective sport’s governing body when abiding by the sport's governing body rules; and"]
["b)","are inspected regularly to identify maintenance or repair needs."]
["N/A:","The facility does not offer indoor courts."]
["Note:","See Appendix for additional information."]
["FIT 10.10","Installations provide:"]
["a)","unit sports and athletic programs that support morale, overall physical readiness, esprit de corps, unit cohesion, and military readiness;"]
["b)","a running track or jogging trail within a reasonable commute;"]
["c)","outdoor fields/courts that meet required dimensions and have the specific markings established by the respective sport’s governing body when abiding by the sport's governing body rules; and"]
["d)","regular inspections of outdoor fields/courts to identify maintenance or repair needs."]
["N/A:","The facility does not offer courts and/or fields."]
["FIT 11 - Auxiliary Services"]
["FIT 11.01","All specialty areas (e.g., dietitians, massage therapists, martial arts instructors) should meet industry standards for required licenses, certification, and educational background."]
["N/A:","The facility does not offer auxiliary services."]
["Note:","See Table 3 for Accepted Accreditations and Certifications."]
["FIT 12 - Staff Qualifications"]
["FIT 12.01","Fitness personnel have the education, formal training, and experience needed to facilitate and oversee safe, effective use of the facility and associated programs."]
["N/A:","The facility is fully unstaffed."]
["Note:","See Appendix for additional information."]
["FIT 12.02","Professional staff meet current, accepted professional standards in their field and operate within the code and limits of their profession."]
["N/A:","The facility is fully unstaffed."]
["Note:","See Table 3 for Accepted Accreditations and Certifications."]
["FIT 12.03","The Program Director has:"]
["a)","professional certification from a National Commission for Certifying Agencies (NCCA) or Distance Education Accrediting Commission (DEAC) accredited health/fitness organization (civilian personnel only);"]
["b)","competency in business and the design and delivery of exercise programs; and"]
["c)","at least three years of experience in the fitness industry/field for civilian personnel."]
["Note:","See Appendix for additional information."]
["Note:","See Table 3 for Accepted Accreditations and Certifications."]
["Note:","While Program Director and Program Manager can be two distinct roles held by two people or one role held by one person, all requirements in FIT 12.03 and FIT 12.04 should be met. "]
["FIT 12.04","The fitness Program Manager has:"]
["a)","a four-year degree in exercise science or a related field for civilian personnel;"]
["b)","professional certification by an accredited health/fitness organization; and"]
["c)","at least three years of experience in the fitness industry/field for civilian personnel."]
["Note:","See Appendix for additional information."]
["Note:","See Table 3 for Accepted Accreditations and Certifications."]
["FIT 12.05","Personal trainers have:"]
["a)","a high school diploma or equivalent;"]
["b)","a personal trainer certification from an accredited health/fitness organization; and"]
["c)","professional competence in the physical activity program or area."]
["N/A:","The facility is fully unstaffed."]
["Note:","See FIT 12.07 for additional requirements for fitness instructors or personal trainers working with youth."]
["Note:","See Appendix for additional information."]
["Note:","See Table 3 for Accepted Accreditations and Certifications."]
["FIT 12.06","Group fitness instructors have:"]
["a)","a high school diploma or equivalent; and"]
["b)","a primary certification from an accredited health/fitness organization or a certification from a commercial/industry health/fitness organization approved by the Service HQ in the specific physical activity program in which they instruct (e.g. yoga, cardio dance programs)."]
["N/A:","The facility is fully unstaffed."]
["Note:","See Appendix for additional information."]
["Note:","See Table 3 for Accepted Accreditations and Certifications."]
["FIT 12.07","Instructors or personal trainers working with youth (12 years and older) in strength and conditioning are qualified by:"]
["a)","appropriate certifications/education for working with youth in a fitness setting from an accredited health/fitness organization; "]
["b)","knowledge of the physical and psychosocial needs of youth;"]
["c)","an understanding of youth resistance training guidelines;"]
["d)","practical experience working with youth; and"]
["e)","successful completion of all background check requirements according to DoDI 1402.05."]
["N/A:","Facility does not provide this service."]
["FIT 12.08","Records of training and up-to-date certification are maintained in personnel records."]
["FIT 12.09","All full-time fitness staff members receive a minimum of 20 hours a year of professional development training in their fitness specialty areas."]
["FIT 12.10","Contract Officials are:"]
["a)","certified and/or trained through recognized and approved National Governing Body (NGB) for particular sport; and"]
["b)","funded through Appropriated Funds (APF) for Category A and B sports."]
["Note:","See Appendix for additional information."]
["FIT 13 - Child Play Areas"]
["FIT 13.01","Child play areas in MWR Fitness Centers are optional and not required. Installation MWR Fitness Facility child play areas follow Service-specific child play area policies and guidelines. Installation local operating instructions, including compliance standards for cleaning, including sanitizing and disinfecting, and maintaining child play areas, are based on Service-specific child play area policy."]
["N/A:","Facility does not have child play areas."]
["Note:","See Appendix for additional information."]